Workbook

Sheet About I-JEDI
B1: International Jobs and Economic Development Impacts (I-JEDI) Model
B3: The I-JEDI model was developed by the National Renewable Energy Laboratory (NREL) with support from USAID. The model is intended to provide countries outside of the United States a tool to estimate gross economic impacts that could be supported by the construction and operation of renewable energy facilities.
B5: This file uses macros but they should only be enabled if this model was downloaded from its official sources:
B6: https://www.ec-leds.org/tools-page/development-impact-assessment-tools
B7: http://www.nrel.gov/analysis/jedi
B9: Inquiries should be sent to jedisupport@nrel.gov
B11: National Renewable Energy Laboratory
B12: 15013 Denver West Parkway
B13: Golden, CO 80401 USA
B15: USAID
B16: 1300 Pennsylvania Avenue NW
B17: Washington, DC 20523 USA
B19: 9/27/16 Model Release

Sheet Help
B1: I-JEDI Help
B3: The best source of information about I-JEDI is the I-JEDI user guide. This can be obtained, free of charge, by clicking the link below:
B4: http://www.nrel.gov/docs/fy16osti/67036.pdf
B6: Additional support can be obtained by e-mailing jedisupport@nrel.gov.
B8: Macros
C9: This model uses macros to populate default data. Please download models from http://www.nrel.gov/analysis/jedi to ensure that malicious code has not been added to macros.
B11: Input-Output Data
C12: Input-output data for all countries come from the Organization for Economic Cooperation and Development (OECD) Structural Analysis (STAN) dataset.
B14: Renewable Energy Sector Data
C15: Default data come from a number of different sources which are listed in the "Default-Data" tab.
B17: Questions
C18: Please direct questions about this model to jedisupport@nrel.gov
B20: Scenario Inputs
C21: Currency year | D21: Year in which currency is reported - this is used to adjust default project costs and data in the input-output model for inflation. The currency year does not affect how project costs are distributed. For example, solar PV modules were more expensive (in real dollars) in 2008 than in 2014. Setting the currency year to 2008 wouldn't increase module prices relative to other project costs. It would only change dollar values to 2008 values.
B23: Types of Impacts
C24: Direct | D24: Direct effects are the expenditures specified in the scenario input and jobs/income/value added directly associated with those expenditures.
C25: Indirect | D25: Indirect effects provide inputs to the industries in which a direct effect occurs. These commonly include manufactured components and business to business services.
C26: Induced | D26: Induced effects arise as a result of expenditures made by households that receive payments as a result of direct and indirect effects. These effects commonly occur in retail sales, accommodation and leisure, and real estate.
B28: Impact Phase
C29: Construction | D29: Impact estimates during the construction phase are over the equivalent of one year. If a product with an impact of 200 jobs takes two years to complete, this is the equivalent of an average of 100 jobs each year.
C30: Operating | D30: Operating estimates are annual and assumed to be ongoing for the life of the facility.
B32: Metrics
C33: Earnings | D33: Earnings are all payments made to workers, including wages and salaries. These are the employer's payroll. These do not include payments for "informal sector" labor such as family members working on a family farm without a salary.
C34: Value Added (GDP) | D34: Value added consists of payments made within the country of analysis to workers, property type income (including land and capital), and taxes. This is the equivalent of GDP.
C35: Output | D35: Output is all economic activity that arises as a result of the scenario, including payments for inputs that are purchased from other industries.
B37: Interpreting results
C38: Gross vs. Net | D38: Impact results are gross, not net. Far-reaching impacts from projects such as greenhouse gas reductions, changes in property values, or changes in individual or business consumption patterns are not considered.
C39: Prices, Taxes, Technology | D39: Input-output models do not estimate supply-side changes such as changes in taxes, prices, or technological shifts.
C40: Feasibility / Profitability | D40: This tool does not evaluate the feasibility or profitability of a project.
C41: National Renewable Energy Laboratory (NREL) | D41: NREL is not responsible for how JEDI Lite is used or its results are interpreted.
B43: Further Input-Output Data
C44: Organisation for Economic Cooperation and Development | D44: https://stats.oecd.org/Index.aspx?DataSetCode=STAN_IO_TOT_DOM_IMP
C45: World Input Output Database | D45: http://www.wiod.org/new_site/database/niots.htm
C46: WIOD Sources of Other I-O Data | D46: http://www.wiod.org/new_site/otherdb.htm
C47: International Food Policy Research Institute | D47: http://ebrary.ifpri.org/cdm/search/collection/p15738coll3/searchterm/Social%20Accounting%20Matrices/field/series/mode/all/conn/and/order/date
B49: Support
C50: E-Mail | D50: Please contact jedisupport@nrel.gov if you have questions or comments about this model.
B52: Custom regions
C53: The I-JEDI user guide contains detailed information about how to enter custom regions in its appendix, including how to derive total requirements tables. The format of the CustomRegion worksheets is the same as country IO Data worksheets.
C54: Direct requirements | D54: This is the percentage of output for each industry that is paid for each input.
C55: Total requirements | D55: This is what is multiplied by final demand to produce impact estimates. It is also known as the Leontief inverse.
C56: Type 1 vs. type 2 total requirements | D56: Type 2 total requirements tables include labor payments and household expenditures. These are used to calculate induced impacts. Type 1 tables only include payments between industries.
C61: Click to access the user guide.

Sheet Wind-Inputs
A1: I-JEDI - Utility Scale Land-Based Wind | E1: Click for Help
A4: Country | B4: Colombia | C4: =IF(B4="","Choose a Country from the Drop-Down Menu","") -> 
A5: Project Size (MW) | B5: 500
A6: Dollar Year | B6: 2014 | C6: =IF(B6="","Choose a Currency Year from the Drop-Down Menu","") -> 
A11: Wind Plant Construction
A12: Equipment | B12: ="Cost (US $"&B6&")" -> Cost (US $2014) | C12: ="% Manufactured and Purchased in "&B4 -> % Manufactured and Purchased in Colombia
A13: Turbine (Generator, Gearbox, Nacelle) | B13: ='Default-Data'!D142 -> 366543749.9 | C13: ='Default-Data'!E142 -> 0
A14: Blades | B14: ='Default-Data'!D143 -> 85812918.03 | C14: ='Default-Data'!E143 -> 0
A15: Tower | B15: ='Default-Data'!D144 -> 95007159.25 | C15: ='Default-Data'!E144 -> 0.1
A16: Equipment Shipping/Transportation | B16: ='Default-Data'!D145 -> 65381270.88 | C16: ='Default-Data'!E145 -> 0.5
A17: Equipment Subtotal | B17: =SUM(B13:B16) -> 612745098
A19: Construction | B19: ="Cost (US $"&B6&")" -> Cost (US $2014) | C19: ="% Purchased in "&B4 -> % Purchased in Colombia
A20: Electrical Balance of Plant | B20: ='Default-Data'!D149 -> 153186274.5 | C20: ='Default-Data'!E149 -> 0.15
A21: Construction (Excluding Site Improvements) | B21: ='Default-Data'!D150 -> 234885620.9 | C21: ='Default-Data'!E150 -> 0.9
A22: Subtotal | B22: =SUM(B20:B21) -> 388071895.4
A24: Other | B24: ="Cost (US $"&B6&")" -> Cost (US $2014) | C24: ="% Spent in "&B4 -> % Spent in Colombia
A25: Engineering and Other Professional Services | B25: ='Default-Data'!D154 -> 20424836.6 | C25: ='Default-Data'!E154 -> 0.5
A26: Site Improvement (i.e., Road Construction) | B26: ='Default-Data'!D157 -> 0 | C26: ='Default-Data'!E157 -> 0.9 | E26: default is zero - highly site specific
A27: Subtotal | B27: =SUM(B25:B26) -> 20424836.6
A29: Construction Total | B29: =B17+B22+B27 -> 1021241830
A32: Operations and Maintenance (O&M) | B32: ="Cost (US $"&B6&")" -> Cost (US $2014) | C32: ="% Spent in "&B4 -> % Spent in Colombia
A33: Plant Operations (staff, equipment such as trucks) | B33: ='Default-Data'!D164 -> 3375315.738 | C33: ='Default-Data'!E164 -> 0.5
A34: Replacement Parts | B34: ='Default-Data'!D165 -> 49019607.84 | C34: ='Default-Data'!E165 -> 0
A35: Civil Works (Access Road Maintenance, Etc.) | B35: ='Default-Data'!D166 -> 0 | C35: ='Default-Data'!E166 -> 0.9 | E35: default is zero - highly site specific
A36: O&M Total | B36: =SUM(B33:B35) -> 52394923.58
B39: Click Arrow to go to Results

Sheet Wind-Results
A1: I-JEDI - Utility Scale Land-Based Wind | H1: Click for help
A2: Estimated Project Gross Impacts | H2: Return to inputs
A3: =wind_country -> Colombia
B5: Nameplate Capacity (MW) | C5: =wind_capacity -> 500
B11: Impact Totals
B12: Construction Phase (Single Year Equivalent) | D12: ="($ "&wind_dollar_year&" US)" -> ($ 2014 US)
C13: Jobs | D13: Earnings | E13: Output | F13: GDP (Value Added)
B14: Direct | C14: =TRANSPOSE(C42:F42) -> 7664.603431 | D14: =TRANSPOSE(J42:M42) -> 30991636.34 | E14: =TRANSPOSE(Q42:T42) -> 286778769.7 | F14: =TRANSPOSE(X42:AA42) -> 135854149.8
B15: Indirect | C15: 5521.442707 | D15: 27786840.84 | E15: 190163667.6 | F15: 100505272.8
B16: Induced | C16: 4277.592074 | D16: 26574896.45 | E16: 209209777.8 | F16: 68028628.68
B17: Total | C17: 17463.63821 | D17: 85353373.64 | E17: 686152215.1 | F17: =SUM(F14:F16) -> 304388051.3
B19: Operations and Maintenance Phase (Annual, Ongoing) | D19: ="($ "&wind_dollar_year&" US)" -> ($ 2014 US)
C20: Jobs | D20: Earnings | E20: Output | F20: GDP
B21: Direct | C21: =TRANSPOSE(C61:F61) -> 15 | D21: =TRANSPOSE(J61:M61) -> 157309.9773 | E21: =TRANSPOSE(Q61:T61) -> 1687657.869 | F21: =TRANSPOSE(X61:AA61) -> 892582.3183
B22: Indirect | C22: 21.36312614 | D22: 150357.7436 | E22: 1193799.951 | F22: 703502.7891
B23: Induced | C23: 22.39045766 | D23: 139102.58 | E23: 1095079.332 | F23: 356086.3456
B24: Total | C24: 58.7535838 | D24: 446770.3009 | E24: 3976537.152 | F24: 1952171.453
B27: Detailed Impacts
B28: Construction
C29: Jobs | J29: ="Earnings ($"&wind_dollar_year&" US)" -> Earnings ($2014 US) | Q29: ="Output ($"&wind_dollar_year&" US)" -> Output ($2014 US) | X29: ="GDP ($"&wind_dollar_year&" US)" -> GDP ($2014 US)
C30: Direct | D30: Indirect | E30: Induced | F30: Total | J30: Direct | K30: Indirect | L30: Induced | M30: Total | Q30: Direct | R30: Indirect | S30: Induced | T30: Total | X30: Direct | Y30: Indirect | Z30: Induced | AA30: Total
B31: Agriculture | C31: =Calculations!O50 -> 0 | D31: =Calculations!P50 -> 70.63424367 | E31: =Calculations!Q50 -> 281.2951961 | F31: =SUM(C31:E31) -> 351.9294397 | I31: Agriculture | J31: =Calculations!L50 -> 0 | K31: =Calculations!M50 -> 345737.6706 | L31: =Calculations!N50 -> 1376872.474 | M31: =SUM(J31:L31) -> 1722610.144 | P31: Agriculture | Q31: =Calculations!D50 -> 0 | R31: =Calculations!G50 -> 1891625.809 | S31: =Calculations!H50 -> 7533247.688 | T31: =SUM(Q31:S31) -> 9424873.498 | W31: Agriculture | X31: =Calculations!I50 -> 0 | Y31: =Calculations!J50 -> 1309574.303 | Z31: =Calculations!K50 -> 5215274.365 | AA31: =SUM(X31:Z31) -> 6524848.668
B32: Mining and Extraction | C32: =Calculations!O51 -> 0 | D32: =Calculations!P51 -> 139.4060503 | E32: =Calculations!Q51 -> 12.32435807 | F32: =SUM(C32:E32) -> 151.7304083 | I32: Mining and Extraction | J32: =Calculations!L51 -> 0 | K32: =Calculations!M51 -> 1461997.507 | L32: =Calculations!N51 -> 129249.6326 | M32: =SUM(J32:L32) -> 1591247.139 | P32: Mining and Extraction | Q32: =Calculations!D51 -> 0 | R32: =Calculations!G51 -> 21525162.96 | S32: =Calculations!H51 -> 1902957.694 | T32: =SUM(Q32:S32) -> 23428120.65 | W32: Mining and Extraction | X32: =Calculations!I51 -> 0 | Y32: =Calculations!J51 -> 17626595.47 | Z32: =Calculations!K51 -> 1558300.187 | AA32: =SUM(X32:Z32) -> 19184895.65
B33: Utilities | C33: =Calculations!O52 -> 0 | D33: =Calculations!P52 -> 53.28193042 | E33: =Calculations!Q52 -> 49.32490195 | F33: 102.6068324 | I33: Utilities | J33: =Calculations!L52 -> 0 | K33: =Calculations!M52 -> 558785.2842 | L33: =Calculations!N52 -> 517286.6136 | M33: 1076071.898 | P33: Utilities | Q33: =Calculations!D52 -> 0 | R33: =Calculations!G52 -> 5994777.942 | S33: =Calculations!H52 -> 5549570.593 | T33: 11544348.54 | W33: Utilities | X33: =Calculations!I52 -> 0 | Y33: =Calculations!J52 -> 3170567.265 | Z33: =Calculations!K52 -> 2935102.355 | AA33: 6105669.62
B34: Construction | C34: =Calculations!O53 -> 5679.535742 | D34: =Calculations!P53 -> 93.5255192 | E34: =Calculations!Q53 -> 29.88601356 | F34: 5802.947275 | I34: Construction | J34: =Calculations!L53 -> 20701618.64 | K34: =Calculations!M53 -> 340895.7562 | L34: =Calculations!N53 -> 108932.998 | M34: 21151447.39 | P34: Construction | Q34: =Calculations!D53 -> 211397058.8 | R34: =Calculations!G53 -> 3481097.854 | S34: =Calculations!H53 -> 1112382.359 | T34: 215990539 | W34: Construction | X34: =Calculations!I53 -> 104971897.2 | Y34: =Calculations!J53 -> 1728583.398 | Z34: =Calculations!K53 -> 552367.6031 | AA34: 107252848.2
B35: Manufacturing | C35: =Calculations!O54 -> 914.5439078 | D35: =Calculations!P54 -> 2204.331566 | E35: =Calculations!Q54 -> 645.5831297 | F35: 3764.458603 | I35: Manufacturing | J35: =Calculations!L54 -> 3890294.358 | K35: =Calculations!M54 -> 9376803.651 | L35: =Calculations!N54 -> 2746186.799 | M35: 16013284.81 | P35: Manufacturing | Q35: =Calculations!D54 -> 32478657.1 | R35: =Calculations!G54 -> 83071139.96 | S35: =Calculations!H54 -> 28320591.76 | T35: 143870388.8 | W35: Manufacturing | X35: =Calculations!I54 -> 9173960.517 | Y35: =Calculations!J54 -> 30779326.64 | Z35: =Calculations!K54 -> 8478685.184 | AA35: 48431972.35
B36: =IF(wind_country<>"Zambia","Sales","Trade, Transportation, and Warehousing") -> Sales | C36: =Calculations!O55 -> 0 | D36: =Calculations!P55 -> 1413.160475 | E36: =Calculations!Q55 -> 821.9484709 | F36: 2235.108946 | I36: =IF(wind_country<>"Zambia","Sales","Trade, Transportation, and Warehousing") -> Sales | J36: =Calculations!L55 -> 0 | K36: =Calculations!M55 -> 4679137.49 | L36: =Calculations!N55 -> 2721566.285 | M36: 7400703.775 | P36: =IF(wind_country<>"Zambia","Sales","Trade, Transportation, and Warehousing") -> Sales | Q36: =Calculations!D55 -> 0 | R36: =Calculations!G55 -> 17953505.54 | S36: =Calculations!H55 -> 10442449.16 | T36: 28395954.71 | W36: =IF(wind_country<>"Zambia","Sales","Trade, Transportation, and Warehousing") -> Sales | X36: =Calculations!I55 -> 0 | Y36: =Calculations!J55 -> 10786242.83 | Z36: =Calculations!K55 -> 6273693.579 | AA36: 17059936.41
B37: =IF(wind_country<>"Zambia","Transportation and Warehousing","") -> Transportation and Warehousing | C37: =Calculations!O56 -> 804.2074096 | D37: =Calculations!P56 -> 385.2253346 | E37: =Calculations!Q56 -> 181.2451454 | F37: 1370.67789 | I37: =IF(wind_country<>"Zambia","Transportation and Warehousing","") -> Transportation and Warehousing | J37: =Calculations!L56 -> 3606775.189 | K37: =Calculations!M56 -> 1727690.099 | L37: =Calculations!N56 -> 812863.0574 | M37: 6147328.346 | P37: =IF(wind_country<>"Zambia","Transportation and Warehousing","") -> Transportation and Warehousing | Q37: =Calculations!D56 -> 32690635.44 | R37: =Calculations!G56 -> 15659220.28 | S37: =Calculations!H56 -> 7367525.969 | T37: 55717381.69 | W37: =IF(wind_country<>"Zambia","Transportation and Warehousing","") -> Transportation and Warehousing | X37: =Calculations!I56 -> 14260195.07 | Y37: =Calculations!J56 -> 6830810.5 | Z37: =Calculations!K56 -> 3213836.504 | AA37: 24304842.08
B38: =IF(wind_country<>"Zambia","Information","") -> Information | C38: =Calculations!O57 -> 0 | D38: =Calculations!P57 -> 76.29772282 | E38: =Calculations!Q57 -> 131.9623846 | F38: 208.2601074 | I38: =IF(wind_country<>"Zambia","Information","") -> Information | J38: =Calculations!L57 -> 0 | K38: =Calculations!M57 -> 342186.2699 | L38: =Calculations!N57 -> 591835.6993 | M38: 934021.9692 | P38: =IF(wind_country<>"Zambia","Information","") -> Information | Q38: =Calculations!D57 -> 0 | R38: =Calculations!G57 -> 2578469.375 | S38: =Calculations!H57 -> 4459647.743 | T38: 7038117.118 | W38: =IF(wind_country<>"Zambia","Information","") -> Information | X38: =Calculations!I57 -> 0 | Y38: =Calculations!J57 -> 1409727.068 | Z38: =Calculations!K57 -> 2438224.086 | AA38: 3847951.154
B39: Finance, Professional, and Business Services | C39: =Calculations!O58 -> 266.3163713 | D39: =Calculations!P58 -> 923.6731037 | E39: =Calculations!Q58 -> 966.9643478 | F39: 2156.953823 | I39: Finance, Professional, and Business Services | J39: =Calculations!L58 -> 2792948.154 | K39: =Calculations!M58 -> 8115791.612 | L39: =Calculations!N58 -> 9029374.553 | M39: 19938114.32 | P39: Finance, Professional, and Business Services | Q39: =Calculations!D58 -> 10212418.3 | R39: =Calculations!G58 -> 34214102.84 | S39: =Calculations!H58 -> 32643400.83 | T39: 77069921.97 | W39: Finance, Professional, and Business Services | X39: =Calculations!I58 -> 7448096.994 | Y39: =Calculations!J58 -> 24880669.33 | Z39: =Calculations!K58 -> 23456823.37 | AA39: 55785589.69
B40: =IF(wind_country<>"Zambia","Education and Health Care","") -> Education and Health Care | C40: =Calculations!O59 -> 0 | D40: =Calculations!P59 -> 8.103743705 | E40: =Calculations!Q59 -> 514.4692995 | F40: 522.5730432 | I40: =IF(wind_country<>"Zambia","Education and Health Care","") -> Education and Health Care | J40: =Calculations!L59 -> 0 | K40: =Calculations!M59 -> 84986.64921 | L40: =Calculations!N59 -> 5395410.254 | M40: 5480396.903 | P40: =IF(wind_country<>"Zambia","Education and Health Care","") -> Education and Health Care | Q40: =Calculations!D59 -> 0 | R40: =Calculations!G59 -> 150309.8466 | S40: =Calculations!H59 -> 12216378.83 | T40: 12366688.68 | W40: =IF(wind_country<>"Zambia","Education and Health Care","") -> Education and Health Care | X40: =Calculations!I59 -> 0 | Y40: =Calculations!J59 -> 115413.435 | Z40: =Calculations!K59 -> 7308449.124 | AA40: 7423862.559
B41: Other | C41: =Calculations!O60 -> 0 | D41: =Calculations!P60 -> 153.8030171 | E41: =Calculations!Q60 -> 642.5888266 | F41: 796.3918437 | I41: Other | J41: =Calculations!L60 -> 0 | K41: =Calculations!M60 -> 752828.856 | L41: =Calculations!N60 -> 3145318.085 | M41: 3898146.941 | P41: Other | Q41: =Calculations!D60 -> 0 | R41: =Calculations!G60 -> 3644255.172 | S41: =Calculations!H60 -> 97661625.2 | T41: 101305880.4 | W41: Other | X41: =Calculations!I60 -> 0 | Y41: =Calculations!J60 -> 1867762.555 | Z41: =Calculations!K60 -> 6597872.324 | AA41: 8465634.878
B42: Total | C42: =Calculations!O61 -> 7664.603431 | D42: =Calculations!P61 -> 5521.442707 | E42: =Calculations!Q61 -> 4277.592074 | F42: 17463.63821 | I42: Total | J42: =Calculations!L61 -> 30991636.34 | K42: =Calculations!M61 -> 27786840.84 | L42: =Calculations!N61 -> 26574896.45 | M42: 85353373.64 | P42: Total | Q42: =Calculations!D61 -> 286778769.7 | R42: =Calculations!G61 -> 190163667.6 | S42: =Calculations!H61 -> 209209777.8 | T42: 686152215.1 | W42: Total | X42: =Calculations!I61 -> 135854149.8 | Y42: =Calculations!J61 -> 100505272.8 | Z42: =Calculations!K61 -> 68028628.68 | AA42: 304388051.3
B46: Detailed Impacts
B47: O&M
C48: Jobs | J48: ="Earnings ($"&wind_dollar_year&" US)" -> Earnings ($2014 US) | Q48: ="Output ($"&wind_dollar_year&" US)" -> Output ($2014 US) | X48: ="GDP ($"&wind_dollar_year&" US)" -> GDP ($2014 US)
C49: Direct | D49: Indirect | E49: Induced | F49: Total | J49: Direct | K49: Indirect | L49: Induced | M49: Total | Q49: Direct | R49: Indirect | S49: Induced | T49: Total | X49: Direct | Y49: Indirect | Z49: Induced | AA49: Total
B50: Agriculture | C50: =Calculations!Z50 -> 0 | D50: =Calculations!AA50 -> 0.1027127527 | E50: =Calculations!AB50 -> 1.472400376 | F50: =SUM(C50:E50) -> 1.575113128 | I50: Agriculture | J50: =Calculations!W50 -> 0 | K50: =Calculations!X50 -> 502.7542732 | L50: =Calculations!Y50 -> 7207.046462 | M50: =SUM(J50:L50) -> 7709.800735 | P50: Agriculture | Q50: =Calculations!E50 -> 0 | R50: =Calculations!R50 -> 2750.706793 | S50: =Calculations!S50 -> 39431.73179 | T50: =SUM(Q50:S50) -> 42182.43858 | W50: Agriculture | X50: =Calculations!T50 -> 0 | Y50: =Calculations!U50 -> 1904.316865 | Z50: =Calculations!V50 -> 27298.62451 | AA50: =SUM(X50:Z50) -> 29202.94137
B51: Mining and Extraction | C51: =Calculations!Z51 -> 0 | D51: =Calculations!AA51 -> 1.184220325 | E51: =Calculations!AB51 -> 0.06451012925 | F51: =SUM(C51:E51) -> 1.248730454 | I51: Mining and Extraction | J51: =Calculations!W51 -> 0 | K51: =Calculations!X51 -> 12419.31149 | L51: =Calculations!Y51 -> 676.5391311 | M51: =SUM(J51:L51) -> 13095.85062 | P51: Mining and Extraction | Q51: =Calculations!E51 -> 0 | R51: =Calculations!R51 -> 182850.9983 | S51: =Calculations!S51 -> 9960.765993 | T51: =SUM(Q51:S51) -> 192811.7643 | W51: Mining and Extraction | X51: =Calculations!T51 -> 0 | Y51: =Calculations!U51 -> 149733.6204 | Z51: =Calculations!V51 -> 8156.70446 | AA51: =SUM(X51:Z51) -> 157890.3248
B52: Utilities | C52: =Calculations!Z52 -> 15 | D52: =Calculations!AA52 -> 4.547998924 | E52: =Calculations!AB52 -> 0.258184303 | F52: 19.80618323 | I52: Utilities | J52: =Calculations!W52 -> 157309.9773 | K52: =Calculations!X52 -> 47696.37383 | L52: =Calculations!Y52 -> 2707.664456 | M52: 207714.0156 | P52: Utilities | Q52: =Calculations!E52 -> 1687657.869 | R52: =Calculations!R52 -> 511697.7448 | S52: =Calculations!S52 -> 29048.45138 | T52: 2228404.065 | W52: Utilities | X52: =Calculations!T52 -> 892582.3183 | Y52: =Calculations!U52 -> 270630.8949 | Z52: =Calculations!V52 -> 15363.38292 | AA52: 1178576.596
B53: Construction | C53: =Calculations!Z53 -> 0 | D53: =Calculations!AA53 -> 1.743318984 | E53: =Calculations!AB53 -> 0.1564341596 | F53: 1.899753144 | I53: Construction | J53: =Calculations!W53 -> 0 | K53: =Calculations!X53 -> 6354.308947 | L53: =Calculations!Y53 -> 570.1945477 | M53: 6924.503495 | P53: Construction | Q53: =Calculations!E53 -> 0 | R53: =Calculations!R53 -> 64887.78707 | S53: =Calculations!S53 -> 5822.609934 | T53: 70710.397 | W53: Construction | X53: =Calculations!T53 -> 0 | Y53: =Calculations!U53 -> 32220.85565 | Z53: =Calculations!V53 -> 2891.290991 | AA53: 35112.14664
B54: Manufacturing | C54: =Calculations!Z54 -> 0 | D54: =Calculations!AA54 -> 2.082359732 | E54: =Calculations!AB54 -> 3.379214632 | F54: 5.461574365 | I54: Manufacturing | J54: =Calculations!W54 -> 0 | K54: =Calculations!X54 -> 8857.958867 | L54: =Calculations!Y54 -> 14374.53085 | M54: 23232.48972 | P54: Manufacturing | Q54: =Calculations!E54 -> 0 | R54: =Calculations!R54 -> 84955.69806 | S54: =Calculations!S54 -> 148240.178 | T54: 233195.8761 | W54: Manufacturing | X54: =Calculations!T54 -> 0 | Y54: =Calculations!U54 -> 29824.34843 | Z54: =Calculations!V54 -> 44380.49218 | AA54: 74204.84061
B55: =IF(wind_country<>"Zambia","Sales","Trade, Transportation, and Warehousing") -> Sales | C55: =Calculations!Z55 -> 0 | D55: =Calculations!AA55 -> 2.89654417 | E55: =Calculations!AB55 -> 4.302374353 | F55: 7.198918523 | I55: =IF(wind_country<>"Zambia","Sales","Trade, Transportation, and Warehousing") -> Sales | J55: =Calculations!W55 -> 0 | K55: =Calculations!X55 -> 9590.792165 | L55: =Calculations!Y55 -> 14245.65821 | M55: 23836.45038 | P55: =IF(wind_country<>"Zambia","Sales","Trade, Transportation, and Warehousing") -> Sales | Q55: =Calculations!E55 -> 0 | R55: =Calculations!R55 -> 36799.16238 | S55: =Calculations!S55 -> 54659.54018 | T55: 91458.70255 | W55: =IF(wind_country<>"Zambia","Sales","Trade, Transportation, and Warehousing") -> Sales | X55: =Calculations!T55 -> 0 | Y55: =Calculations!U55 -> 22108.47906 | Z55: =Calculations!V55 -> 32838.7719 | AA55: 54947.25097
B56: =IF(wind_country<>"Zambia","Transportation and Warehousing","") -> Transportation and Warehousing | C56: =Calculations!Z56 -> 0 | D56: =Calculations!AA56 -> 1.600156875 | E56: =Calculations!AB56 -> 0.9487023736 | F56: 2.548859249 | I56: =IF(wind_country<>"Zambia","Transportation and Warehousing","") -> Transportation and Warehousing | J56: =Calculations!W56 -> 0 | K56: =Calculations!X56 -> 7176.514476 | L56: =Calculations!Y56 -> 4254.818026 | M56: 11431.3325 | P56: =IF(wind_country<>"Zambia","Transportation and Warehousing","") -> Transportation and Warehousing | Q56: =Calculations!E56 -> 0 | R56: =Calculations!R56 -> 65045.58952 | S56: =Calculations!S56 -> 38564.28462 | T56: 103609.8741 | W56: =IF(wind_country<>"Zambia","Transportation and Warehousing","") -> Transportation and Warehousing | X56: =Calculations!T56 -> 0 | Y56: =Calculations!U56 -> 28373.96039 | Z56: =Calculations!V56 -> 16822.37785 | AA56: 45196.33824
B57: =IF(wind_country<>"Zambia","Information","") -> Information | C57: =Calculations!Z57 -> 0 | D57: =Calculations!AA57 -> 0.4600838518 | E57: =Calculations!AB57 -> 0.6907386523 | F57: 1.150822504 | I57: =IF(wind_country<>"Zambia","Information","") -> Information | J57: =Calculations!W57 -> 0 | K57: =Calculations!X57 -> 2063.421702 | L57: =Calculations!Y57 -> 3097.881223 | M57: 5161.302925 | P57: =IF(wind_country<>"Zambia","Information","") -> Information | Q57: =Calculations!E57 -> 0 | R57: =Calculations!R57 -> 15548.4604 | S57: =Calculations!S57 -> 23343.4026 | T57: 38891.863 | W57: =IF(wind_country<>"Zambia","Information","") -> Information | X57: =Calculations!T57 -> 0 | Y57: =Calculations!U57 -> 8500.812809 | Z57: =Calculations!V57 -> 12762.54309 | AA57: 21263.3559
B58: Finance, Professional, and Business Services | C58: =Calculations!Z58 -> 0 | D58: =Calculations!AA58 -> 5.936308178 | E58: =Calculations!AB58 -> 5.061439686 | F58: 10.99774786 | I58: Finance, Professional, and Business Services | J58: =Calculations!W58 -> 0 | K58: =Calculations!X58 -> 51013.59535 | L58: =Calculations!Y58 -> 47262.99869 | M58: 98276.59403 | P58: Finance, Professional, and Business Services | Q58: =Calculations!E58 -> 0 | R58: =Calculations!R58 -> 210429.3634 | S58: =Calculations!S58 -> 170867.3177 | T58: 381296.6811 | W58: Finance, Professional, and Business Services | X58: =Calculations!T58 -> 0 | Y58: =Calculations!U58 -> 150298.5662 | Z58: =Calculations!V58 -> 122781.4624 | AA58: 273080.0285
B59: =IF(wind_country<>"Zambia","Education and Health Care","") -> Education and Health Care | C59: =Calculations!Z59 -> 0 | D59: =Calculations!AA59 -> 0.1288824601 | E59: =Calculations!AB59 -> 2.69291762 | F59: 2.82180008 | I59: =IF(wind_country<>"Zambia","Education and Health Care","") -> Education and Health Care | J59: =Calculations!W59 -> 0 | K59: =Calculations!X59 -> 1351.633124 | L59: =Calculations!Y59 -> 28241.52063 | M59: 29593.15376 | P59: =IF(wind_country<>"Zambia","Education and Health Care","") -> Education and Health Care | Q59: =Calculations!E59 -> 0 | R59: =Calculations!R59 -> 2337.491933 | S59: =Calculations!S59 -> 63944.927 | T59: 66282.41894 | W59: =IF(wind_country<>"Zambia","Education and Health Care","") -> Education and Health Care | X59: =Calculations!T59 -> 0 | Y59: =Calculations!U59 -> 1835.912016 | Z59: =Calculations!V59 -> 38255.05513 | AA59: 40090.96715
B60: Other | C60: =Calculations!Z60 -> 0 | D60: =Calculations!AA60 -> 0.6805398891 | E60: =Calculations!AB60 -> 3.363541372 | F60: 4.044081261 | I60: Other | J60: =Calculations!W60 -> 0 | K60: =Calculations!X60 -> 3331.079428 | L60: =Calculations!Y60 -> 16463.72776 | M60: 19794.80719 | P60: Other | Q60: =Calculations!E60 -> 0 | R60: =Calculations!R60 -> 16496.94828 | S60: =Calculations!S60 -> 511196.1229 | T60: 527693.0712 | W60: Other | X60: =Calculations!T60 -> 0 | Y60: =Calculations!U60 -> 8071.022478 | Z60: =Calculations!V60 -> 34535.64022 | AA60: 42606.6627
B61: Total | C61: =Calculations!Z61 -> 15 | D61: =Calculations!AA61 -> 21.36312614 | E61: =Calculations!AB61 -> 22.39045766 | F61: 58.7535838 | I61: Total | J61: =Calculations!W61 -> 157309.9773 | K61: =Calculations!X61 -> 150357.7436 | L61: =Calculations!Y61 -> 139102.58 | M61: 446770.3009 | P61: Total | Q61: =Calculations!E61 -> 1687657.869 | R61: =Calculations!R61 -> 1193799.951 | S61: =Calculations!S61 -> 1095079.332 | T61: 3976537.152 | W61: Total | X61: =Calculations!T61 -> 892582.3183 | Y61: =Calculations!U61 -> 703502.7891 | Z61: =Calculations!V61 -> 356086.3456 | AA61: 1952171.453

Sheet Solar-PV-Inputs
A1: I-JEDI - Solar Photovoltaics | E1: Click for Help | AI1: ='Default-Data'!Z124 -> 1373114.205
A3: Project Description
A4: Country | B4: Mexico
A5: Project Size (MW) | B5: 100
A6: Dollar Year | B6: 2009
A11: Solar Photovoltaic Installation | B11: Expenditures | C11: ="Local Content ("&pv_country&")" -> Local Content (Mexico)
A12: Equipment | B12: ="Cost (US $"&B6&")" -> Cost (US $2009) | C12: ="% Manufactured in "&B4 -> % Manufactured in Mexico | E12: ="Module purchased from retailer or wholesaler in "&pv_country&"? Choose yes or no - if yes is chosen the assumed reseller's margin will appear; you can change this margin." -> Module purchased from retailer or wholesaler in Mexico? Choose yes or no - if yes is chosen the assumed reseller's margin will appear; you can change this margin.
A13: Module | B13: ='Default-Data'!Z109 -> 65565873.93 | C13: ='Default-Data'!AE109 -> 0 | E13: ='Default-Data'!AA110 -> 6556521.828 | F13: Yes
A14: Inverter | B14: ='Default-Data'!Z110 -> 23962958.13 | C14: ='Default-Data'!AE110 -> 0
A15: Subtotal | B15: =B13+B14 -> 89528832.07
A17: Installation | B17: ="Cost (US $"&B6&")" -> Cost (US $2009) | C17: ="% of Workers Residing in "&B4 -> % of Workers Residing in Mexico
A18: Construction and installation costs | B18: ='Default-Data'!Z112 -> 71888874.4 | C18: ='Default-Data'!AE112 -> 1
A19: Subtotal | B19: =SUM(B18:B18) -> 71888874.4
A21: Other | B21: ="Cost (US $"&B6&")" -> Cost (US $2009) | C21: ="% of Expenditures Made in "&B4 -> % of Expenditures Made in Mexico
A22: Design and civil engineering | B22: ='Default-Data'!Z114 -> 1109396.21 | C22: ='Default-Data'!AE114 -> 0.5
A23: Other (public relations, legal, environmental studies) | B23: ='Default-Data'!Z115 -> 5546981.05 | C23: ='Default-Data'!AE115 -> 0.9
A24: Infrastructure - electricity and other | B24: ='Default-Data'!Z116 -> 47925916.27 | C24: ='Default-Data'!AE116 -> 0.85
A25: Transportation - Country Specific | B25: ='Default-Data'!Z117 -> 2.980232239e-08 | C25: ='Default-Data'!AE117 -> 1
A26: Subtotal | B26: =SUM(B23:B25) -> 53472897.32
A28: Construction Total | B28: =B26+B19+B15 -> 214890603.8
A30: Operations and Maintenance
B31: ="Annual Cost (US $"&B6&")" -> Annual Cost (US $2009) | C31: ="% of Expenditures Made in "&pv_country -> % of Expenditures Made in Mexico
A32: Maintenance and repair services | B32: ='Default-Data'!Z123 -> 750829.4856 | C32: ='Default-Data'!AE123 -> 0.9
A33: Repair parts | B33: ='Default-Data'!Z124 -> 1373114.205 | C33: ='Default-Data'!AE124 -> 0
A34: O&M Total | B34: =SUM(B32:B33) -> 2123943.691
B37: Click arrow to go to results

Sheet Solar-PV-Results
A1: I-JEDI - Solar Photovoltaics | F1: Click for help
A2: Estimated Project Gross Impacts | F2: Return to inputs
A3: =pv_country -> Mexico
B5: Nameplate Capacity (MW) | C5: =pv_nameplate -> 100
B6: Construction Cost | C6: ='Solar-PV-Inputs'!B28/(pv_nameplate*1000) -> 2148.906038
B11: Impact Totals
B12: Construction Phase (Single Year Equivalent) | D12: ="( $ "&pv_dollar_year&" US)" -> ( $ 2009 US)
C13: Jobs | D13: Earnings | E13: Output | F13: GDP (Value Added)
B14: Direct | C14: =TRANSPOSE(C42:F42) -> 6836.887274 | D14: =TRANSPOSE(J42:M42) -> 23151736 | E14: =TRANSPOSE(Q42:T42) -> 124729406.1 | F14: =TRANSPOSE(X42:AA42) -> 63537949.32
B15: Indirect | C15: 2420.217716 | D15: 10869527.02 | E15: 81891348.47 | F15: 47068467.59
B16: Induced | C16: 4808.514792 | D16: 12773337.44 | E16: 104212320.3 | F16: 37405207.22
B17: Total | C17: 14065.61978 | D17: 46794600.46 | E17: 310833074.9 | F17: 148011624.1
B19: Operations and Maintenance Phase (Annual, Ongoing) | D19: ="( $ "&pv_dollar_year&" US)" -> ( $ 2009 US)
C20: Jobs | D20: Earnings | E20: Output | F20: GDP
B21: Direct | C21: =TRANSPOSE(C61:F61) -> 54.89174376 | D21: =TRANSPOSE(J61:M61) -> 149476.7205 | E21: =TRANSPOSE(Q61:T61) -> 675746.537 | F21: =TRANSPOSE(X61:AA61) -> 339861.6796
B22: Indirect | C22: 15.25394723 | D22: 62983.17933 | E22: 436694.5221 | F22: 258616.177
B23: Induced | C23: 30.02876672 | D23: 79768.4081 | E23: 650797.0946 | F23: 233592.3441
B24: Total | C24: 100.1744577 | D24: 292228.3079 | E24: 1763238.154 | F24: 832070.2007
B27: Detailed Impacts
B28: Construction
C29: Jobs | J29: ="Earnings ($"&pv_dollar_year&" US)" -> Earnings ($2009 US) | Q29: ="Output ($"&pv_dollar_year&" US)" -> Output ($2009 US) | X29: ="GDP ($"&pv_dollar_year&" US)" -> GDP ($2009 US)
C30: Direct | D30: Indirect | E30: Induced | F30: Total | J30: Direct | K30: Indirect | L30: Induced | M30: Total | Q30: Direct | R30: Indirect | S30: Induced | T30: Total | X30: Direct | Y30: Indirect | Z30: Induced | AA30: Total
B31: Agriculture | C31: =Calculations!O7 -> 0 | D31: =Calculations!P7 -> 37.18772747 | E31: =Calculations!Q7 -> 253.2123619 | F31: =SUM(C31:E31) -> 290.4000893 | I31: Agriculture | J31: =Calculations!L7 -> 0 | K31: =Calculations!M7 -> 36103.7678 | L31: =Calculations!N7 -> 245831.6477 | M31: =SUM(J31:L31) -> 281935.4155 | P31: Agriculture | Q31: =Calculations!D7 -> 0 | R31: =Calculations!G7 -> 359357.0479 | S31: =Calculations!H7 -> 2446873.016 | T31: =SUM(Q31:S31) -> 2806230.064 | W31: Agriculture | X31: =Calculations!I7 -> 0 | Y31: =Calculations!J7 -> 219163.0438 | Z31: =Calculations!K7 -> 1492287.799 | AA31: =SUM(X31:Z31) -> 1711450.842
B32: Mining and Extraction | C32: =Calculations!O8 -> 0 | D32: =Calculations!P8 -> 32.81431264 | E32: =Calculations!Q8 -> 4.072002768 | F32: =SUM(C32:E32) -> 36.88631541 | I32: Mining and Extraction | J32: =Calculations!L8 -> 0 | K32: =Calculations!M8 -> 581878.0277 | L32: =Calculations!N8 -> 72206.56928 | M32: =SUM(J32:L32) -> 654084.597 | P32: Mining and Extraction | Q32: =Calculations!D8 -> 0 | R32: =Calculations!G8 -> 10890315.57 | S32: =Calculations!H8 -> 1351404.055 | T32: =SUM(Q32:S32) -> 12241719.63 | W32: Mining and Extraction | X32: =Calculations!I8 -> 0 | Y32: =Calculations!J8 -> 9375770.49 | Z32: =Calculations!K8 -> 1163460.707 | AA32: =SUM(X32:Z32) -> 10539231.2
B33: Utilities | C33: =Calculations!O9 -> 255.4648041 | D33: =Calculations!P9 -> 12.00016266 | E33: =Calculations!Q9 -> 8.089597543 | F33: 275.5545643 | I33: Utilities | J33: =Calculations!L9 -> 4401440.466 | K33: =Calculations!M9 -> 206752.5573 | L33: =Calculations!N9 -> 139376.859 | M33: 4747569.882 | P33: Utilities | Q33: =Calculations!D9 -> 40737028.83 | R33: =Calculations!G9 -> 1913574.647 | S33: =Calculations!H9 -> 1289986.578 | T33: 43940590.05 | W33: Utilities | X33: =Calculations!I9 -> 18222803.14 | Y33: =Calculations!J9 -> 855995.0271 | Z33: =Calculations!K9 -> 577046.7836 | AA33: 19655844.95
B34: Construction | C34: =Calculations!O10 -> 5839.623967 | D34: =Calculations!P10 -> 463.1388525 | E34: =Calculations!Q10 -> 6.996593595 | F34: 6309.759413 | I34: Construction | J34: =Calculations!L10 -> 15901987.8 | K34: =Calculations!M10 -> 1261181.957 | L34: =Calculations!N10 -> 19052.55314 | M34: 17182222.31 | P34: Construction | Q34: =Calculations!D10 -> 71888874.4 | R34: =Calculations!G10 -> 5701485.402 | S34: =Calculations!H10 -> 86131.78538 | T34: 77676491.59 | W34: Construction | X34: =Calculations!I10 -> 36155973.08 | Y34: =Calculations!J10 -> 2867519.549 | Z34: =Calculations!K10 -> 43319.3389 | AA34: 39066811.97
B35: Manufacturing | C35: =Calculations!O11 -> 0 | D35: =Calculations!P11 -> 414.3851405 | E35: =Calculations!Q11 -> 220.4456579 | F35: 634.8307983 | I35: Manufacturing | J35: =Calculations!L11 -> 0 | K35: =Calculations!M11 -> 2325836.232 | L35: =Calculations!N11 -> 1061749.685 | M35: 3387585.918 | P35: Manufacturing | Q35: =Calculations!D11 -> 0 | R35: =Calculations!G11 -> 31122678.49 | S35: =Calculations!H11 -> 14091345.33 | T35: 45214023.82 | W35: Manufacturing | X35: =Calculations!I11 -> 0 | Y35: =Calculations!J11 -> 9963659.673 | Z35: =Calculations!K11 -> 4772107.113 | AA35: 14735766.79
B36: =IF(pv_country<>"Zambia","Sales","Trade, Transportation, and Warehousing") -> Sales | C36: =Calculations!O12 -> 221.7240274 | D36: =Calculations!P12 -> 437.6391549 | E36: =Calculations!Q12 -> 281.4158276 | F36: 940.7790099 | I36: =IF(pv_country<>"Zambia","Sales","Trade, Transportation, and Warehousing") -> Sales | J36: =Calculations!L12 -> 1005323.425 | K36: =Calculations!M12 -> 1984308.6 | L36: =Calculations!N12 -> 1275973.232 | M36: 4265605.256 | P36: =IF(pv_country<>"Zambia","Sales","Trade, Transportation, and Warehousing") -> Sales | Q36: =Calculations!D12 -> 6556521.828 | R36: =Calculations!G12 -> 12941270.76 | S36: =Calculations!H12 -> 8321646.682 | T36: 27819439.27 | W36: =IF(pv_country<>"Zambia","Sales","Trade, Transportation, and Warehousing") -> Sales | X36: =Calculations!I12 -> 4992582.284 | Y36: =Calculations!J12 -> 9854364.984 | Z36: =Calculations!K12 -> 6336668.57 | AA36: 21183615.84
B37: =IF(pv_country<>"Zambia","Transportation and Warehousing","") -> Transportation and Warehousing | C37: =Calculations!O13 -> 1.040805169e-12 | D37: =Calculations!P13 -> 115.1319028 | E37: =Calculations!Q13 -> 167.9182033 | F37: 283.0501061 | I37: =IF(pv_country<>"Zambia","Transportation and Warehousing","") -> Transportation and Warehousing | J37: =Calculations!L13 -> 7.027280406e-09 | K37: =Calculations!M13 -> 777344.491 | L37: =Calculations!N13 -> 1133745.618 | M37: 1911090.109 | P37: =IF(pv_country<>"Zambia","Transportation and Warehousing","") -> Transportation and Warehousing | Q37: =Calculations!D13 -> 2.980232239e-08 | R37: =Calculations!G13 -> 3296676.636 | S37: =Calculations!H13 -> 4808154.857 | T37: 8104831.493 | W37: =IF(pv_country<>"Zambia","Transportation and Warehousing","") -> Transportation and Warehousing | X37: =Calculations!I13 -> 2.178237121e-08 | Y37: =Calculations!J13 -> 2409524.778 | Z37: =Calculations!K13 -> 3514256.795 | AA37: 5923781.573
B38: =IF(pv_country<>"Zambia","Information","") -> Information | C38: =Calculations!O14 -> 0 | D38: =Calculations!P14 -> 19.57595354 | E38: =Calculations!Q14 -> 25.54909529 | F38: 45.12504883 | I38: =IF(pv_country<>"Zambia","Information","") -> Information | J38: =Calculations!L14 -> 0 | K38: =Calculations!M14 -> 223963.7985 | L38: =Calculations!N14 -> 292301.0835 | M38: 516264.8821 | P38: =IF(pv_country<>"Zambia","Information","") -> Information | Q38: =Calculations!D14 -> 0 | R38: =Calculations!G14 -> 1435896.043 | S38: =Calculations!H14 -> 1874025.945 | T38: 3309921.988 | W38: =IF(pv_country<>"Zambia","Information","") -> Information | X38: =Calculations!I14 -> 0 | Y38: =Calculations!J14 -> 876098.8192 | Z38: =Calculations!K14 -> 1143419.766 | AA38: 2019518.585
B39: Finance, Professional, and Business Services | C39: =Calculations!O15 -> 520.0744755 | D39: =Calculations!P15 -> 785.86775 | E39: =Calculations!Q15 -> 2252.522166 | F39: 3558.464392 | I39: Finance, Professional, and Business Services | J39: =Calculations!L15 -> 1842984.307 | K39: =Calculations!M15 -> 3295457.71 | L39: =Calculations!N15 -> 4123054.726 | M39: 9261496.743 | P39: Finance, Professional, and Business Services | Q39: =Calculations!D15 -> 5546981.05 | R39: =Calculations!G15 -> 13475294.62 | S39: =Calculations!H15 -> 14766169.68 | T39: 33788445.35 | W39: Finance, Professional, and Business Services | X39: =Calculations!I15 -> 4166590.816 | Y39: =Calculations!J15 -> 10087741.68 | Z39: =Calculations!K15 -> 11670444.6 | AA39: 25924777.1
B40: =IF(pv_country<>"Zambia","Education and Health Care","") -> Education and Health Care | C40: =Calculations!O16 -> 0 | D40: =Calculations!P16 -> 16.23995265 | E40: =Calculations!Q16 -> 1244.915633 | F40: 1261.155586 | I40: =IF(pv_country<>"Zambia","Education and Health Care","") -> Education and Health Care | J40: =Calculations!L16 -> 0 | K40: =Calculations!M16 -> 62007.00465 | L40: =Calculations!N16 -> 3749233.661 | M40: 3811240.665 | P40: =IF(pv_country<>"Zambia","Education and Health Care","") -> Education and Health Care | Q40: =Calculations!D16 -> 0 | R40: =Calculations!G16 -> 80140.0416 | S40: =Calculations!H16 -> 5605689.61 | T40: 5685829.651 | W40: =IF(pv_country<>"Zambia","Education and Health Care","") -> Education and Health Care | X40: =Calculations!I16 -> 0 | Y40: =Calculations!J16 -> 71902.21241 | Z40: =Calculations!K16 -> 4674299.442 | AA40: 4746201.654
B41: Other | C41: =Calculations!O17 -> 0 | D41: =Calculations!P17 -> 86.2368062 | E41: =Calculations!Q17 -> 343.3776523 | F41: 429.6144585 | I41: Other | J41: =Calculations!L17 -> 0 | K41: =Calculations!M17 -> 114692.8786 | L41: =Calculations!N17 -> 660811.8059 | M41: 775504.6845 | P41: Other | Q41: =Calculations!D17 -> 0 | R41: =Calculations!G17 -> 674659.2076 | S41: =Calculations!H17 -> 49570892.76 | T41: 50245551.96 | W41: Other | X41: =Calculations!I17 -> 0 | Y41: =Calculations!J17 -> 486727.3292 | Z41: =Calculations!K17 -> 2017896.305 | AA41: 2504623.634
B42: Total | C42: =Calculations!O18 -> 6836.887274 | D42: =Calculations!P18 -> 2420.217716 | E42: =Calculations!Q18 -> 4808.514792 | F42: 14065.61978 | I42: Total | J42: =Calculations!L18 -> 23151736 | K42: =Calculations!M18 -> 10869527.02 | L42: =Calculations!N18 -> 12773337.44 | M42: 46794600.46 | P42: Total | Q42: =Calculations!D18 -> 124729406.1 | R42: =Calculations!G18 -> 81891348.47 | S42: =Calculations!H18 -> 104212320.3 | T42: 310833074.9 | W42: Total | X42: =Calculations!I18 -> 63537949.32 | Y42: =Calculations!J18 -> 47068467.59 | Z42: =Calculations!K18 -> 37405207.22 | AA42: 148011624.1
B46: Detailed Impacts
B47: O&M
C48: Jobs | J48: ="Earnings ($"&pv_dollar_year&" US)" -> Earnings ($2009 US) | Q48: ="Output ($"&pv_dollar_year&" US)" -> Output ($2009 US) | X48: ="GDP ($"&pv_dollar_year&" US)" -> GDP ($2009 US)
C49: Direct | D49: Indirect | E49: Induced | F49: Total | J49: Direct | K49: Indirect | L49: Induced | M49: Total | Q49: Direct | R49: Indirect | S49: Induced | T49: Total | X49: Direct | Y49: Indirect | Z49: Induced | AA49: Total
B50: Agriculture | C50: =Calculations!Z7 -> 0 | D50: =Calculations!AA7 -> 0.2724909071 | E50: =Calculations!AB7 -> 1.581289707 | F50: =SUM(C50:E50) -> 1.853780614 | I50: Agriculture | J50: =Calculations!W7 -> 0 | K50: =Calculations!X7 -> 264.5482558 | L50: =Calculations!Y7 -> 1535.197774 | M50: =SUM(J50:L50) -> 1799.746029 | P50: Agriculture | Q50: =Calculations!E7 -> 0 | R50: =Calculations!R7 -> 2633.167839 | S50: =Calculations!S7 -> 15280.51429 | T50: =SUM(Q50:S50) -> 17913.68213 | W50: Agriculture | X50: =Calculations!T7 -> 0 | Y50: =Calculations!U7 -> 1605.904439 | Z50: =Calculations!V7 -> 9319.210636 | AA50: =SUM(X50:Z50) -> 10925.11507
B51: Mining and Extraction | C51: =Calculations!Z8 -> 0 | D51: =Calculations!AA8 -> 0.138595821 | E51: =Calculations!AB8 -> 0.02542931165 | F51: =SUM(C51:E51) -> 0.1640251326 | I51: Mining and Extraction | J51: =Calculations!W8 -> 0 | K51: =Calculations!X8 -> 2457.642914 | L51: =Calculations!Y8 -> 450.9238962 | M51: =SUM(J51:L51) -> 2908.56681 | P51: Mining and Extraction | Q51: =Calculations!E8 -> 0 | R51: =Calculations!R8 -> 45996.76501 | S51: =Calculations!S8 -> 8439.403613 | T51: =SUM(Q51:S51) -> 54436.16862 | W51: Mining and Extraction | X51: =Calculations!T8 -> 0 | Y51: =Calculations!U8 -> 39599.87285 | Z51: =Calculations!V8 -> 7265.713359 | AA51: =SUM(X51:Z51) -> 46865.58621
B52: Utilities | C52: =Calculations!Z9 -> 0 | D52: =Calculations!AA9 -> 0.05691640917 | E52: =Calculations!AB9 -> 0.05051885 | F52: 0.1074352592 | I52: Utilities | J52: =Calculations!W9 -> 0 | K52: =Calculations!X9 -> 980.6211364 | L52: =Calculations!Y9 -> 870.3966541 | M52: 1851.017791 | P52: Utilities | Q52: =Calculations!E9 -> 0 | R52: =Calculations!R9 -> 9076.026772 | S52: =Calculations!S9 -> 8055.856682 | T52: 17131.88345 | W52: Utilities | X52: =Calculations!T9 -> 0 | Y52: =Calculations!U9 -> 4059.958566 | Z52: =Calculations!V9 -> 3603.608183 | AA52: 7663.566749
B53: Construction | C53: =Calculations!Z10 -> 54.89174376 | D53: =Calculations!AA10 -> 4.221764775 | E53: =Calculations!AB10 -> 0.04369313312 | F53: 59.15720167 | I53: Construction | J53: =Calculations!W10 -> 149476.7205 | K53: =Calculations!X10 -> 11496.36557 | L53: =Calculations!Y10 -> 118.9815772 | M53: 161092.0676 | P53: Construction | Q53: =Calculations!E10 -> 675746.537 | R53: =Calculations!R10 -> 51972.16797 | S53: =Calculations!S10 -> 537.8856888 | T53: 728256.5907 | W53: Construction | X53: =Calculations!T10 -> 339861.6796 | Y53: =Calculations!U10 -> 26139.01416 | Z53: =Calculations!V10 -> 270.5255945 | AA53: 366271.2194
B54: Manufacturing | C54: =Calculations!Z11 -> 0 | D54: =Calculations!AA11 -> 3.134058694 | E54: =Calculations!AB11 -> 1.376664422 | F54: 4.510723116 | I54: Manufacturing | J54: =Calculations!W11 -> 0 | K54: =Calculations!X11 -> 14064.98638 | L54: =Calculations!Y11 -> 6630.536664 | M54: 20695.52304 | P54: Manufacturing | Q54: =Calculations!E11 -> 0 | R54: =Calculations!R11 -> 156894.5533 | S54: =Calculations!S11 -> 87999.25551 | T54: 244893.8088 | W54: Manufacturing | X54: =Calculations!T11 -> 0 | Y54: =Calculations!U11 -> 61279.49732 | Z54: =Calculations!V11 -> 29801.40386 | AA54: 91080.90118
B55: =IF(pv_country<>"Zambia","Sales","Trade, Transportation, and Warehousing") -> Sales | C55: =Calculations!Z12 -> 0 | D55: =Calculations!AA12 -> 2.159791871 | E55: =Calculations!AB12 -> 1.757417957 | F55: 3.917209828 | I55: =IF(pv_country<>"Zambia","Sales","Trade, Transportation, and Warehousing") -> Sales | J55: =Calculations!W12 -> 0 | K55: =Calculations!X12 -> 9792.756281 | L55: =Calculations!Y12 -> 7968.344526 | M55: 17761.10081 | P55: =IF(pv_country<>"Zambia","Sales","Trade, Transportation, and Warehousing") -> Sales | Q55: =Calculations!E12 -> 0 | R55: =Calculations!R12 -> 63866.43214 | S55: =Calculations!S12 -> 51967.97718 | T55: 115834.4093 | W55: =IF(pv_country<>"Zambia","Sales","Trade, Transportation, and Warehousing") -> Sales | X55: =Calculations!T12 -> 0 | Y55: =Calculations!U12 -> 48632.25136 | Z55: =Calculations!V12 -> 39571.95736 | AA55: 88204.20872
B56: =IF(pv_country<>"Zambia","Transportation and Warehousing","") -> Transportation and Warehousing | C56: =Calculations!Z13 -> 0 | D56: =Calculations!AA13 -> 0.5219037181 | E56: =Calculations!AB13 -> 1.048634927 | F56: 1.570538645 | I56: =IF(pv_country<>"Zambia","Transportation and Warehousing","") -> Transportation and Warehousing | J56: =Calculations!W13 -> 0 | K56: =Calculations!X13 -> 3523.775515 | L56: =Calculations!Y13 -> 7080.145152 | M56: 10603.92067 | P56: =IF(pv_country<>"Zambia","Transportation and Warehousing","") -> Transportation and Warehousing | Q56: =Calculations!E13 -> 0 | R56: =Calculations!R13 -> 14944.14451 | S56: =Calculations!S13 -> 30026.51896 | T56: 44970.66348 | W56: =IF(pv_country<>"Zambia","Transportation and Warehousing","") -> Transportation and Warehousing | X56: =Calculations!T13 -> 0 | Y56: =Calculations!U13 -> 10922.6019 | Z56: =Calculations!V13 -> 21946.23539 | AA56: 32868.83729
B57: =IF(pv_country<>"Zambia","Information","") -> Information | C57: =Calculations!Z14 -> 0 | D57: =Calculations!AA14 -> 0.1319363816 | E57: =Calculations!AB14 -> 0.1595519315 | F57: 0.2914883131 | I57: =IF(pv_country<>"Zambia","Information","") -> Information | J57: =Calculations!W14 -> 0 | K57: =Calculations!X14 -> 1509.45256 | L57: =Calculations!Y14 -> 1825.395456 | M57: 3334.848016 | P57: =IF(pv_country<>"Zambia","Information","") -> Information | Q57: =Calculations!E14 -> 0 | R57: =Calculations!R14 -> 9677.532587 | S57: =Calculations!S14 -> 11703.13296 | T57: 21380.66555 | W57: =IF(pv_country<>"Zambia","Information","") -> Information | X57: =Calculations!T14 -> 0 | Y57: =Calculations!U14 -> 5904.65787 | Z57: =Calculations!V14 -> 7140.559384 | AA57: 13045.21725
B58: Finance, Professional, and Business Services | C58: =Calculations!Z15 -> 0 | D58: =Calculations!AA15 -> 4.071619636 | E58: =Calculations!AB15 -> 14.06680973 | F58: 18.13842937 | I58: Finance, Professional, and Business Services | J58: =Calculations!W15 -> 0 | K58: =Calculations!X15 -> 18101.71536 | L58: =Calculations!Y15 -> 25748.12679 | M58: 43849.84216 | P58: Finance, Professional, and Business Services | Q58: =Calculations!E15 -> 0 | R58: =Calculations!R15 -> 77498.63323 | S58: =Calculations!S15 -> 92213.47627 | T58: 169712.1095 | W58: Finance, Professional, and Business Services | X58: =Calculations!T15 -> 0 | Y58: =Calculations!U15 -> 57454.01432 | Z58: =Calculations!V15 -> 72880.93596 | AA58: 130334.9503
B59: =IF(pv_country<>"Zambia","Education and Health Care","") -> Education and Health Care | C59: =Calculations!Z16 -> 0 | D59: =Calculations!AA16 -> 0.02682954863 | E59: =Calculations!AB16 -> 7.774392459 | F59: 7.801222008 | I59: =IF(pv_country<>"Zambia","Education and Health Care","") -> Education and Health Care | J59: =Calculations!W16 -> 0 | K59: =Calculations!X16 -> 102.4399506 | L59: =Calculations!Y16 -> 23413.64597 | M59: 23516.08592 | P59: =IF(pv_country<>"Zambia","Education and Health Care","") -> Education and Health Care | Q59: =Calculations!E16 -> 0 | R59: =Calculations!R16 -> 132.3970082 | S59: =Calculations!S16 -> 35007.0558 | T59: 35139.45281 | W59: =IF(pv_country<>"Zambia","Education and Health Care","") -> Education and Health Care | X59: =Calculations!T16 -> 0 | Y59: =Calculations!U16 -> 118.7875326 | Z59: =Calculations!V16 -> 29190.60325 | AA59: 29309.39079
B60: Other | C60: =Calculations!Z17 -> 0 | D60: =Calculations!AA17 -> 0.5180394639 | E60: =Calculations!AB17 -> 2.144364293 | F60: 2.662403757 | I60: Other | J60: =Calculations!W17 -> 0 | K60: =Calculations!X17 -> 688.875397 | L60: =Calculations!Y17 -> 4126.713638 | M60: 4815.589035 | P60: Other | Q60: =Calculations!E17 -> 0 | R60: =Calculations!R17 -> 4002.701786 | S60: =Calculations!S17 -> 309566.0176 | T60: 313568.7194 | W60: Other | X60: =Calculations!T17 -> 0 | Y60: =Calculations!U17 -> 2899.616687 | Z60: =Calculations!V17 -> 12601.59114 | AA60: 15501.20783
B61: Total | C61: =Calculations!Z18 -> 54.89174376 | D61: =Calculations!AA18 -> 15.25394723 | E61: =Calculations!AB18 -> 30.02876672 | F61: 100.1744577 | I61: Total | J61: =Calculations!W18 -> 149476.7205 | K61: =Calculations!X18 -> 62983.17933 | L61: =Calculations!Y18 -> 79768.4081 | M61: 292228.3079 | P61: Total | Q61: =Calculations!E18 -> 675746.537 | R61: =Calculations!R18 -> 436694.5221 | S61: =Calculations!S18 -> 650797.0946 | T61: =SUM(Q61:S61) -> 1763238.154 | W61: Total | X61: =Calculations!T18 -> 339861.6796 | Y61: =Calculations!U18 -> 258616.177 | Z61: =Calculations!V18 -> 233592.3441 | AA61: 832070.2007

Sheet Biopower-Inputs
A1: I-JEDI - Biopower | B1: Project Inputs | C1: Click for Help
A3: Project Description
A4: Country | B4: South Africa
A5: Project Size (MW) | B5: 500
A6: Plant Capacity Factor | B6: ='Default-Data'!C78 -> 0.8 | C6: (used to calculate fuel use and utility O&M impacts)
A7: Plant Heat Rate (Btu/kWh) | B7: ='Default-Data'!C79 -> 14000 | C7: (used to calculate fuel use)
A8: Boiler Type | B8: Stoker boiler | C8: <- Select from List
A9: Dollar Year | B9: 2014
A13: Biopower Facility Construction
A14: Equipment | B14: Cost | C14: ="% Manufactured in "&B4 -> % Manufactured in South Africa
A15: Feedstock handling equipment | B15: ='Default-Data'!D90 -> 221281472.2 | C15: ='Default-Data'!E90 -> 0.1
A16: Turbines, boilers, and air quality control equipment | B16: ='Default-Data'!D91 -> 663844416.6 | C16: ='Default-Data'!E91 -> 0.1
A17: Other equipment | B17: ='Default-Data'!D92 -> 0 | C17: ='Default-Data'!E92 -> 0
A18: Equipment Subtotal | B18: =SUM(B15:B17) -> 885125888.7
A20: General Construction | B20: Cost | C20: ="% Residing in or Purchased in "&biopower_country -> % Residing in or Purchased in South Africa
A21: Construction Labor | B21: ='Default-Data'!D96 -> 221281472.2 | C21: ='Default-Data'!E96 -> 1
A22: General Construction Subtotal | B22: =SUM(B21:B21) -> 221281472.2
A24: Contractors and Balance of Plant | C24: ="% Purchased in "&biopower_country -> % Purchased in South Africa
A25: Balance of Plant | B25: ='Default-Data'!D100 -> 189669833.3 | C25: ='Default-Data'!E100 -> 0.2
A26: Professional Services (legal, engineering, development, etc.) | B26: ='Default-Data'!D101 -> 284504750 | C26: ='Default-Data'!E101 -> 0.9
A27: Contractors and Balance of Plant Subtotal | B27: =SUM(B25:B26) -> 474174583.3
A29: Total Construction Cost | B29: =B27+B22+B18 -> 1580581944
A32: Biopower Facility O&M
A33: Feedstock Information
A34: Feedstock Type | B34: Forest Residues | C34: <- Select from List
A35: Feedstock Heating Value (Btu / dry kg) | B35: ='Default-Data'!C73 -> 18893.63128
A36: Feedstock Cost ($/dry metric tonne) | B36: ='Default-Data'!C132 -> 11.5
A37: Feedstock Transportation Cost ($/dry metric tonne)
A38: ="Percent Purchased Directly from Farmers in "&B4 -> Percent Purchased Directly from Farmers in South Africa | B38: ='Default-Data'!D132 -> 0.5 | C38: =IF(B38+B39>1,"You have indicated that the percentage of feedstock purchased from farmers and wholesalers in "&B4&" is greater than 100%. Please revise these figures.","") -> 
A39: ="Percent Purchased from Wholesalers in "&B4 -> Percent Purchased from Wholesalers in South Africa | B39: ='Default-Data'!E132 -> 0.5
A40: Calculated Annual Feedstock Consumption (dry metric tonnes / yr) | B40: ='Default-Data'!C83 -> 2598208.85
A41: Annual Feedstock Material Cost | B41: =B36*B40 -> 29879401.77 | C41: ="% Transportation Purchased in "&biopower_country -> % Transportation Purchased in South Africa
A42: Annual Feedstock Transportation Cost | B42: =B40*B37 -> 0 | C42: ='Default-Data'!D133 -> 1
A43: Feedstock Subtotal | B43: =SUM(B41:B42) -> 29879401.77 | C43: ='Default-Data'!D133 -> 1
A45: Operations | C45: ="% Residing in / Purchased in "&biopower_country -> % Residing in / Purchased in South Africa
A46: Plant operators, including maintenance | B46: ='Default-Data'!G117+'Default-Data'!G118 -> 39810877.83 | C46: ='Default-Data'!G119 -> 1
A47: Operations subtotal | B47: =SUM(B46:B46) -> 39810877.83
A49: Materials | C49: ="% Manufactured in "&biopower_country -> % Manufactured in South Africa
A50: Chemicals (including ammonia) | B50: ='Default-Data'!D111 -> 1270000 | C50: ='Default-Data'!E111 -> 0.5
A51: Water | B51: ='Default-Data'!D112 -> 170850 | C51: ='Default-Data'!E112 -> 1
A52: Solids/Ash Disposal | B52: ='Default-Data'!D113 -> 320000 | C52: ='Default-Data'!E113 -> 1
A53: Materials Subtotal | B53: =SUM(B50:B52) -> 1760850
A55: O&M Annual Total | B55: =B53+B47+B43 -> 71451129.61
B58: Click arrow to go to results

Sheet Biopower-Results
A1: I-JEDI - Biopower | G1: Click fof help
A2: Estimated Gross Economic Impacts | G2: Return to inputs
A3: =biopower_country -> South Africa
B5: Nameplate Capacity (MW) | C5: =biopower_capacity -> 500
B6: Annual Generation (MWh) | C6: =biopower_capacity*365.25*24*'Biopower-Inputs'!B6 -> 3506400
B7: Boiler Type | C7: =biopower_boiler_type -> Stoker boiler
B8: Fuel | C8: ='Biopower-Inputs'!B34 -> Forest Residues
B9: Dollar Year | C9: =biopower_dollar_year -> 2014
B11: Impact Totals
B12: Construction Phase (Single Year Equivalent) | D12: ="( $ "&biopower_dollar_year&" US)" -> ( $ 2014 US)
C13: Jobs | D13: Earnings | E13: Output | F13: GDP (Value Added)
B14: Direct | C14: =TRANSPOSE(C42:F42) -> 9002.85203 | D14: =TRANSPOSE(J42:M42) -> 123572561.1 | E14: =TRANSPOSE(Q42:T42) -> 581654155.5 | F14: =TRANSPOSE(X42:AA42) -> 202287253.5
B15: Indirect | C15: 6499.078714 | D15: 90665920.38 | E15: 573577548.2 | F15: 364500372.2
B16: Induced | C16: 9261.371654 | D16: 143483606.1 | E16: 977083507.4 | F16: 367936707.1
B17: Total | C17: 24763.3024 | D17: 357722087.6 | E17: 2132315211 | F17: 934724332.9
B19: Operations and Maintenance Phase (Annual, Ongoing) | D19: ="( $ "&biopower_dollar_year&" US)" -> ( $ 2014 US)
C20: Jobs | D20: Earnings | E20: Output | F20: GDP
B21: Direct | C21: =TRANSPOSE(C61:F61) -> 557.8154477 | D21: =TRANSPOSE(J61:M61) -> 11195491.38 | E21: =TRANSPOSE(Q61:T61) -> 70816129.61 | F21: =TRANSPOSE(X61:AA61) -> 34301202.45
B22: Indirect | C22: 685.2395524 | D22: 10019639.39 | E22: 48273484.41 | F22: 23449789.2
B23: Induced | C23: 861.4275819 | D23: 12777370.92 | E23: 83494115.9 | F23: 24049926.21
B24: Total | C24: 2104.482582 | D24: 33992501.69 | E24: 202583729.9 | F24: 81800917.86
B27: Detailed Impacts
B28: Construction
C29: Jobs | J29: ="Earnings ($"&biopower_dollar_year&" US)" -> Earnings ($2014 US) | Q29: ="Output ($"&biopower_dollar_year&" US)" -> Output ($2014 US) | X29: ="GDP ($"&biopower_dollar_year&" US)" -> GDP ($2014 US)
C30: Direct | D30: Indirect | E30: Induced | F30: Total | J30: Direct | K30: Indirect | L30: Induced | M30: Total | Q30: Direct | R30: Indirect | S30: Induced | T30: Total | X30: Direct | Y30: Indirect | Z30: Induced | AA30: Total
B31: Agriculture | C31: =Calculations!O28 -> 0 | D31: =Calculations!P28 -> 32.9528642 | E31: =Calculations!Q28 -> 153.6368872 | F31: =SUM(C31:E31) -> 186.5897514 | I31: Agriculture | J31: =Calculations!L28 -> 0 | K31: =Calculations!M28 -> 474236.2985 | L31: =Calculations!N28 -> 2211042.665 | M31: =SUM(J31:L31) -> 2685278.964 | P31: Agriculture | Q31: =Calculations!D28 -> 0 | R31: =Calculations!G28 -> 4720287.289 | S31: =Calculations!H28 -> 22007502.63 | T31: =SUM(Q31:S31) -> 26727789.92 | W31: Agriculture | X31: =Calculations!I28 -> 0 | Y31: =Calculations!J28 -> 2878787.367 | Z31: =Calculations!K28 -> 13421835.72 | AA31: =SUM(X31:Z31) -> 16300623.09
B32: Mining and Extraction | C32: =Calculations!O29 -> 0 | D32: =Calculations!P29 -> 127.3856211 | E32: =Calculations!Q29 -> 39.37571925 | F32: =SUM(C32:E32) -> 166.7613403 | I32: Mining and Extraction | J32: =Calculations!L29 -> 0 | K32: =Calculations!M29 -> 2010615.119 | L32: =Calculations!N29 -> 621494.1355 | M32: =SUM(J32:L32) -> 2632109.254 | P32: Mining and Extraction | Q32: =Calculations!D29 -> 0 | R32: =Calculations!G29 -> 37630280.06 | S32: =Calculations!H29 -> 11631762.91 | T32: =SUM(Q32:S32) -> 49262042.97 | W32: Mining and Extraction | X32: =Calculations!I29 -> 0 | Y32: =Calculations!J29 -> 32396937.16 | Z32: =Calculations!K29 -> 10014102.78 | AA32: =SUM(X32:Z32) -> 42411039.94
B33: Utilities | C33: =Calculations!O30 -> 0 | D33: =Calculations!P30 -> 75.44250298 | E33: =Calculations!Q30 -> 72.9185076 | F33: 148.3610106 | I33: Utilities | J33: =Calculations!L30 -> 0 | K33: =Calculations!M30 -> 2080548.144 | L33: =Calculations!N30 -> 2010941.574 | M33: 4091489.718 | P33: Utilities | Q33: =Calculations!D30 -> 0 | R33: =Calculations!G30 -> 19256275.39 | S33: =Calculations!H30 -> 18612039.74 | T33: 37868315.13 | W33: Utilities | X33: =Calculations!I30 -> 0 | Y33: =Calculations!J30 -> 8613866.199 | Z33: =Calculations!K30 -> 8325681.718 | AA33: 16939547.92
B34: Construction | C34: =Calculations!O31 -> 2802.04238 | D34: =Calculations!P31 -> 527.2308997 | E34: =Calculations!Q31 -> 132.3783288 | F34: 3461.651608 | I34: Construction | J34: =Calculations!L31 -> 29715512.58 | K34: =Calculations!M31 -> 5591256.058 | L34: =Calculations!N31 -> 1403865.239 | M34: 36710633.88 | P34: Construction | Q34: =Calculations!D31 -> 221281472.2 | R34: =Calculations!G31 -> 25276657.84 | S34: =Calculations!H31 -> 6346520.52 | T34: 252904650.5 | W34: Construction | X34: =Calculations!I31 -> 65886702.5 | Y34: =Calculations!J31 -> 12712706.49 | Z34: =Calculations!K31 -> 3191935.149 | AA34: 81791344.14
B35: Manufacturing | C35: =Calculations!O32 -> 1825.391772 | D35: =Calculations!P32 -> 1131.521889 | E35: =Calculations!Q32 -> 869.7253418 | F35: 3826.639003 | I35: Manufacturing | J35: =Calculations!L32 -> 23431891.87 | K35: =Calculations!M32 -> 14524935.94 | L35: =Calculations!N32 -> 11164348.65 | M35: 49121176.46 | P35: Manufacturing | Q35: =Calculations!D32 -> 104318408.3 | R35: =Calculations!G32 -> 134069596.3 | S35: =Calculations!H32 -> 126599690.2 | T35: 364987694.8 | W35: Manufacturing | X35: =Calculations!I32 -> 27309271.2 | Y35: =Calculations!J32 -> 50654360.74 | Z35: =Calculations!K32 -> 43456814.57 | AA35: 121420446.5
B36: =IF(biopower_country<>"Zambia","Sales","Trade, Transportation, and Warehousing") -> Sales | C36: =Calculations!O33 -> 0 | D36: =Calculations!P33 -> 1445.779738 | E36: =Calculations!Q33 -> 1019.780688 | F36: 2465.560426 | I36: =IF(biopower_country<>"Zambia","Sales","Trade, Transportation, and Warehousing") -> Sales | J36: =Calculations!L33 -> 0 | K36: =Calculations!M33 -> 13880841.64 | L36: =Calculations!N33 -> 9790851.166 | M36: 23671692.8 | P36: =IF(biopower_country<>"Zambia","Sales","Trade, Transportation, and Warehousing") -> Sales | Q36: =Calculations!D33 -> 0 | R36: =Calculations!G33 -> 90528121.49 | S36: =Calculations!H33 -> 63854007.36 | T36: 154382128.8 | W36: =IF(biopower_country<>"Zambia","Sales","Trade, Transportation, and Warehousing") -> Sales | X36: =Calculations!I33 -> 0 | Y36: =Calculations!J33 -> 68934277.56 | Z36: =Calculations!K33 -> 48622790.29 | AA36: 117557067.8
B37: =IF(biopower_country<>"Zambia","Transportation and Warehousing","") -> Transportation and Warehousing | C37: =Calculations!O34 -> 0 | D37: =Calculations!P34 -> 563.3347342 | E37: =Calculations!Q34 -> 440.7606894 | F37: 1004.095424 | I37: =IF(biopower_country<>"Zambia","Transportation and Warehousing","") -> Transportation and Warehousing | J37: =Calculations!L34 -> 0 | K37: =Calculations!M34 -> 10054155.43 | L37: =Calculations!N34 -> 7866506.732 | M37: 17920662.16 | P37: =IF(biopower_country<>"Zambia","Transportation and Warehousing","") -> Transportation and Warehousing | Q37: =Calculations!D34 -> 0 | R37: =Calculations!G34 -> 42639138.35 | S37: =Calculations!H34 -> 33361436.59 | T37: 76000574.95 | W37: =IF(biopower_country<>"Zambia","Transportation and Warehousing","") -> Transportation and Warehousing | X37: =Calculations!I34 -> 0 | Y37: =Calculations!J34 -> 31164737.02 | Z37: =Calculations!K34 -> 24383710.32 | AA37: 55548447.34
B38: =IF(biopower_country<>"Zambia","Information","") -> Information | C38: =Calculations!O35 -> 0 | D38: =Calculations!P35 -> 281.4600522 | E38: =Calculations!Q35 -> 166.0677592 | F38: 447.5278114 | I38: =IF(biopower_country<>"Zambia","Information","") -> Information | J38: =Calculations!L35 -> 0 | K38: =Calculations!M35 -> 5023377.649 | L38: =Calculations!N35 -> 2963905.758 | M38: 7987283.407 | P38: =IF(biopower_country<>"Zambia","Information","") -> Information | Q38: =Calculations!D35 -> 0 | R38: =Calculations!G35 -> 32206312.52 | S38: =Calculations!H35 -> 19002448.51 | T38: 51208761.03 | W38: =IF(biopower_country<>"Zambia","Information","") -> Information | X38: =Calculations!I35 -> 0 | Y38: =Calculations!J35 -> 19650386.6 | Z38: =Calculations!K35 -> 11594169.91 | AA38: 31244556.52
B39: Finance, Professional, and Business Services | C39: =Calculations!O36 -> 4375.417878 | D39: =Calculations!P36 -> 1873.13633 | E39: =Calculations!Q36 -> 5333.485765 | F39: 11582.03997 | I39: Finance, Professional, and Business Services | J39: =Calculations!L36 -> 70425156.62 | K39: =Calculations!M36 -> 30152697.73 | L39: =Calculations!N36 -> 88708331.39 | M39: 189286185.7 | P39: Finance, Professional, and Business Services | Q39: =Calculations!D36 -> 256054275 | R39: =Calculations!G36 -> 141737438.3 | S39: =Calculations!H36 -> 219883357 | T39: 617675070.3 | W39: Finance, Professional, and Business Services | X39: =Calculations!I36 -> 109091279.8 | Y39: =Calculations!J36 -> 107591131.5 | Z39: =Calculations!K36 -> 164350264.8 | AA39: 381032676.1
B40: =IF(biopower_country<>"Zambia","Education and Health Care","") -> Education and Health Care | C40: =Calculations!O37 -> 0 | D40: =Calculations!P37 -> 112.2423099 | E40: =Calculations!Q37 -> 728.8444304 | F40: 841.0867403 | I40: =IF(biopower_country<>"Zambia","Education and Health Care","") -> Education and Health Care | J40: =Calculations!L37 -> 0 | K40: =Calculations!M37 -> 1887313.942 | L40: =Calculations!N37 -> 12255256.11 | M40: 14142570.05 | P40: =IF(biopower_country<>"Zambia","Education and Health Care","") -> Education and Health Care | Q40: =Calculations!D37 -> 0 | R40: =Calculations!G37 -> 3513559.056 | S40: =Calculations!H37 -> 20842906.02 | T40: 24356465.08 | W40: =IF(biopower_country<>"Zambia","Education and Health Care","") -> Education and Health Care | X40: =Calculations!I37 -> 0 | Y40: =Calculations!J37 -> 2650364.167 | Z40: =Calculations!K37 -> 16362171.33 | AA40: 19012535.49
B41: Other | C41: =Calculations!O38 -> 0 | D41: =Calculations!P38 -> 328.5917723 | E41: =Calculations!Q38 -> 304.3975373 | F41: 632.9893095 | I41: Other | J41: =Calculations!L38 -> 0 | K41: =Calculations!M38 -> 4985942.443 | L41: =Calculations!N38 -> 4487062.687 | M41: 9473005.13 | P41: Other | Q41: =Calculations!D38 -> 0 | R41: =Calculations!G38 -> 41999881.6 | S41: =Calculations!H38 -> 434941836 | T41: 476941717.6 | W41: Other | X41: =Calculations!I38 -> 0 | Y41: =Calculations!J38 -> 27252817.4 | Z41: =Calculations!K38 -> 24213230.51 | AA41: 51466047.91
B42: Total | C42: =Calculations!O39 -> 9002.85203 | D42: =Calculations!P39 -> 6499.078714 | E42: =Calculations!Q39 -> 9261.371654 | F42: 24763.3024 | I42: Total | J42: =Calculations!L39 -> 123572561.1 | K42: =Calculations!M39 -> 90665920.38 | L42: =Calculations!N39 -> 143483606.1 | M42: 357722087.6 | P42: Total | Q42: =Calculations!D39 -> 581654155.5 | R42: =Calculations!G39 -> 573577548.2 | S42: =Calculations!H39 -> 977083507.4 | T42: 2132315211 | W42: Total | X42: =Calculations!I39 -> 202287253.5 | Y42: =Calculations!J39 -> 364500372.2 | Z42: =Calculations!K39 -> 367936707.1 | AA42: 934724332.9
B46: Detailed Impacts
B47: O&M
C48: Jobs | J48: ="Earnings ($"&biopower_dollar_year&" US)" -> Earnings ($2014 US) | Q48: ="Output ($"&biopower_dollar_year&" US)" -> Output ($2014 US) | X48: ="GDP ($"&biopower_dollar_year&" US)" -> GDP ($2014 US)
C49: Direct | D49: Indirect | E49: Induced | F49: Total | J49: Direct | K49: Indirect | L49: Induced | M49: Total | Q49: Direct | R49: Indirect | S49: Induced | T49: Total | X49: Direct | Y49: Indirect | Z49: Induced | AA49: Total
B50: Agriculture | C50: =Calculations!Z28 -> 244.3486175 | D50: =Calculations!AA28 -> 11.68780894 | E50: =Calculations!AB28 -> 16.18860152 | F50: =SUM(C50:E50) -> 272.225028 | I50: Agriculture | J50: =Calculations!W28 -> 3516507.191 | K50: =Calculations!X28 -> 168203.3834 | L50: =Calculations!Y28 -> 232975.8778 | M50: =SUM(J50:L50) -> 3917686.452 | P50: Agriculture | Q50: =Calculations!E28 -> 28385431.68 | R50: =Calculations!R28 -> 1357746.59 | S50: =Calculations!S28 -> 1880593.585 | T50: =SUM(Q50:S50) -> 31623771.86 | W50: Agriculture | X50: =Calculations!T28 -> 11463424.6 | Y50: =Calculations!U28 -> 548324.4305 | Z50: =Calculations!V28 -> 759475.6001 | AA50: =SUM(X50:Z50) -> 12771224.63
B51: Mining and Extraction | C51: =Calculations!Z29 -> 0 | D51: =Calculations!AA29 -> 79.32624346 | E51: =Calculations!AB29 -> 12.7078198 | F51: =SUM(C51:E51) -> 92.03406326 | I51: Mining and Extraction | J51: =Calculations!W29 -> 0 | K51: =Calculations!X29 -> 1252060.814 | L51: =Calculations!Y29 -> 200576.2849 | M51: =SUM(J51:L51) -> 1452637.099 | P51: Mining and Extraction | Q51: =Calculations!E29 -> 0 | R51: =Calculations!R29 -> 6204625.45 | S51: =Calculations!S29 -> 993961.881 | T51: =SUM(Q51:S51) -> 7198587.331 | W51: Mining and Extraction | X51: =Calculations!T29 -> 0 | Y51: =Calculations!U29 -> 3695441.168 | Z51: =Calculations!V29 -> 591998.2897 | AA51: =SUM(X51:Z51) -> 4287439.458
B52: Utilities | C52: =Calculations!Z30 -> 257.5831154 | D52: =Calculations!AA30 -> 41.17842345 | E52: =Calculations!AB30 -> 10.24646337 | F52: 309.0080022 | I52: Utilities | J52: =Calculations!W30 -> 7103609.393 | K52: =Calculations!X30 -> 1135615.722 | L52: =Calculations!Y30 -> 282576.2603 | M52: 8521801.375 | P52: Utilities | Q52: =Calculations!E30 -> 39981727.83 | R52: =Calculations!R30 -> 6391663.196 | S52: =Calculations!S30 -> 1590443.183 | T52: 47963834.21 | W52: Utilities | X52: =Calculations!T30 -> 21739127.96 | Y52: =Calculations!U30 -> 3475317.141 | Z52: =Calculations!V30 -> 864766.2251 | AA52: 26079211.32
B53: Construction | C53: =Calculations!Z31 -> 0 | D53: =Calculations!AA31 -> 6.442964562 | E53: =Calculations!AB31 -> 6.867355401 | F53: 13.31031996 | I53: Construction | J53: =Calculations!W31 -> 0 | K53: =Calculations!X31 -> 68327.3015 | L53: =Calculations!Y31 -> 72827.9441 | M53: 141155.2456 | P53: Construction | Q53: =Calculations!E31 -> 0 | R53: =Calculations!R31 -> 508810.5355 | S53: =Calculations!S31 -> 542325.3139 | T53: 1051135.849 | W53: Construction | X53: =Calculations!T31 -> 0 | Y53: =Calculations!U31 -> 151498.6684 | Z53: =Calculations!V31 -> 161477.7155 | AA53: 312976.3839
B54: Manufacturing | C54: =Calculations!Z32 -> 12.00319033 | D54: =Calculations!AA32 -> 116.1505314 | E54: =Calculations!AB32 -> 114.655305 | F54: 242.8090268 | I54: Manufacturing | J54: =Calculations!W32 -> 154080.5991 | K54: =Calculations!X32 -> 1490982.229 | L54: =Calculations!Y32 -> 1471788.55 | M54: 3116851.378 | P54: Manufacturing | Q54: =Calculations!E32 -> 955000 | R54: =Calculations!R32 -> 9959094.002 | S54: =Calculations!S32 -> 10818245.45 | T54: 21732339.45 | W54: Manufacturing | X54: =Calculations!T32 -> 221291.6191 | Y54: =Calculations!U32 -> 2406642.343 | Z54: =Calculations!V32 -> 2537978.874 | AA54: 5165912.836
B55: =IF(biopower_country<>"Zambia","Sales","Trade, Transportation, and Warehousing") -> Sales | C55: =Calculations!Z33 -> 43.88052441 | D55: =Calculations!AA33 -> 178.9268894 | E55: =Calculations!AB33 -> 160.2663154 | F55: 383.0737292 | I55: =IF(biopower_country<>"Zambia","Sales","Trade, Transportation, and Warehousing") -> Sales | J55: =Calculations!W33 -> 421294.1945 | K55: =Calculations!X33 -> 1717865.973 | L55: =Calculations!Y33 -> 1538706.959 | M55: 3677867.126 | P55: =IF(biopower_country<>"Zambia","Sales","Trade, Transportation, and Warehousing") -> Sales | Q55: =Calculations!E33 -> 1493970.089 | R55: =Calculations!R33 -> 6091800.964 | S55: =Calculations!S33 -> 5456477.211 | T55: 13042248.26 | W55: =IF(biopower_country<>"Zambia","Sales","Trade, Transportation, and Warehousing") -> Sales | X55: =Calculations!T33 -> 877358.2749 | Y55: =Calculations!U33 -> 3577509.366 | Z55: =Calculations!V33 -> 3204405.141 | AA55: 7659272.781
B56: =IF(biopower_country<>"Zambia","Transportation and Warehousing","") -> Transportation and Warehousing | C56: =Calculations!Z34 -> 0 | D56: =Calculations!AA34 -> 67.01612536 | E56: =Calculations!AB34 -> 29.42419332 | F56: 96.44031867 | I56: =IF(biopower_country<>"Zambia","Transportation and Warehousing","") -> Transportation and Warehousing | J56: =Calculations!W34 -> 0 | K56: =Calculations!X34 -> 1196074.909 | L56: =Calculations!Y34 -> 525150.3148 | M56: 1721225.223 | P56: =IF(biopower_country<>"Zambia","Transportation and Warehousing","") -> Transportation and Warehousing | Q56: =Calculations!E34 -> 0 | R56: =Calculations!R34 -> 6492974.258 | S56: =Calculations!S34 -> 2850814.319 | T56: 9343788.577 | W56: =IF(biopower_country<>"Zambia","Transportation and Warehousing","") -> Transportation and Warehousing | X56: =Calculations!T34 -> 0 | Y56: =Calculations!U34 -> 3433539.139 | Z56: =Calculations!V34 -> 1507534.475 | AA56: 4941073.614
B57: =IF(biopower_country<>"Zambia","Information","") -> Information | C57: =Calculations!Z35 -> 0 | D57: =Calculations!AA35 -> 6.584062253 | E57: =Calculations!AB35 -> 12.09037323 | F57: 18.67443549 | I57: =IF(biopower_country<>"Zambia","Information","") -> Information | J57: =Calculations!W35 -> 0 | K57: =Calculations!X35 -> 117509.5041 | L57: =Calculations!Y35 -> 215783.7682 | M57: 333293.2723 | P57: =IF(biopower_country<>"Zambia","Information","") -> Information | Q57: =Calculations!E35 -> 0 | R57: =Calculations!R35 -> 884276.2745 | S57: =Calculations!S35 -> 1623804.543 | T57: 2508080.818 | W57: =IF(biopower_country<>"Zambia","Information","") -> Information | X57: =Calculations!T35 -> 0 | Y57: =Calculations!U35 -> 359087.9041 | Z57: =Calculations!V35 -> 659396.3754 | AA57: 1018484.28
B58: Finance, Professional, and Business Services | C58: =Calculations!Z36 -> 0 | D58: =Calculations!AA36 -> 134.8308813 | E58: =Calculations!AB36 -> 404.1475696 | F58: 538.9784509 | I58: Finance, Professional, and Business Services | J58: =Calculations!W36 -> 0 | K58: =Calculations!X36 -> 2170386.683 | L58: =Calculations!Y36 -> 6694046.849 | M58: 8864433.532 | P58: Finance, Professional, and Business Services | Q58: =Calculations!E36 -> 0 | R58: =Calculations!R36 -> 8393728.312 | S58: =Calculations!S36 -> 18789557.24 | T58: 27183285.55 | W58: Finance, Professional, and Business Services | X58: =Calculations!T36 -> 0 | Y58: =Calculations!U36 -> 4495849.735 | Z58: =Calculations!V36 -> 10785805.06 | AA58: 15281654.79
B59: =IF(biopower_country<>"Zambia","Education and Health Care","") -> Education and Health Care | C59: =Calculations!Z37 -> 0 | D59: =Calculations!AA37 -> 2.529936572 | E59: =Calculations!AB37 -> 23.07618845 | F59: 25.60612502 | I59: =IF(biopower_country<>"Zambia","Education and Health Care","") -> Education and Health Care | J59: =Calculations!W37 -> 0 | K59: =Calculations!X37 -> 42539.97059 | L59: =Calculations!Y37 -> 388017.7823 | M59: 430557.7529 | P59: =IF(biopower_country<>"Zambia","Education and Health Care","") -> Education and Health Care | Q59: =Calculations!E37 -> 0 | R59: =Calculations!R37 -> 206979.3839 | S59: =Calculations!S37 -> 1781076.027 | T59: 1988055.411 | W59: =IF(biopower_country<>"Zambia","Education and Health Care","") -> Education and Health Care | X59: =Calculations!T37 -> 0 | Y59: =Calculations!U37 -> 95927.98547 | Z59: =Calculations!V37 -> 844707.6219 | AA59: 940635.6073
B60: Other | C60: =Calculations!Z38 -> 0 | D60: =Calculations!AA38 -> 40.56568571 | E60: =Calculations!AB38 -> 71.75739678 | F60: 112.3230825 | I60: Other | J60: =Calculations!W38 -> 0 | K60: =Calculations!X38 -> 660072.8974 | L60: =Calculations!Y38 -> 1154920.334 | M60: 1814993.231 | P60: Other | Q60: =Calculations!E38 -> 0 | R60: =Calculations!R38 -> 1781785.446 | S60: =Calculations!S38 -> 37166817.15 | T60: 38948602.6 | W60: Other | X60: =Calculations!T38 -> 0 | Y60: =Calculations!U38 -> 1210651.318 | Z60: =Calculations!V38 -> 2132380.832 | AA60: 3343032.15
B61: Total | C61: =Calculations!Z39 -> 557.8154477 | D61: =Calculations!AA39 -> 685.2395524 | E61: =Calculations!AB39 -> 861.4275819 | F61: 2104.482582 | I61: Total | J61: =Calculations!W39 -> 11195491.38 | K61: =Calculations!X39 -> 10019639.39 | L61: =Calculations!Y39 -> 12777370.92 | M61: 33992501.69 | P61: Total | Q61: =Calculations!E39 -> 70816129.61 | R61: =Calculations!R39 -> 48273484.41 | S61: =Calculations!S39 -> 83494115.9 | T61: 202583729.9 | W61: Total | X61: =Calculations!T39 -> 34301202.45 | Y61: =Calculations!U39 -> 23449789.2 | Z61: =Calculations!V39 -> 24049926.21 | AA61: 81800917.86

Sheet Geothermal-Inputs
A1: I-JEDI - Geothermal | B1: Project Inputs | E1: Click for Help
A3: Project Description
A4: Country | B4: Mexico
A5: Project Size (MW) | B5: 150
A6: Drilling depth (m) | B6: 3000 | C6: =IF(B6>3000,"Default costs assume a well up to 3,000m deep. You are encouraged to customize drilling costs for wells deeper than 3,000m.","") -> 
A7: Resource temperature (degrees celsius) | B7: 200
A8: Number of exploration drills per production drill | B8: 2
A9: Number of production drills | B9: 1
A10: Dollar Year | B10: 2012
A15: Geothermal Facility Construction
A16: Drilling | B16: ="Expenditures ($"&B10&")" -> Expenditures ($2012) | C16: ="% Spent in "&B4 -> % Spent in Mexico
A17: Site preparation | B17: ='Default-Data'!G229 -> 107152.83 | C17: ='Default-Data'!I229 -> 1
A18: Rig operator and drilling services | B18: ='Default-Data'!G230 -> 4029099.484 | C18: ='Default-Data'!I230 -> 1
A19: Cement and cement additives | B19: ='Default-Data'!G231 -> 66803.6665 | C19: ='Default-Data'!I231 -> 0.9
A20: Petroleum | B20: ='Default-Data'!G232 -> 419274.3183 | C20: ='Default-Data'!I232 -> 1
A21: Bits and stabilizers | B21: ='Default-Data'!G233 -> 278597.3581 | C21: ='Default-Data'!I233 -> 0.9
A22: Mud and detergents | B22: ='Default-Data'!G234 -> 88420.06613 | C22: ='Default-Data'!I234 -> 0.8
A23: Casing and wellhead | B23: ='Default-Data'!G235 -> 1062240.862 | C23: ='Default-Data'!I235 -> 0.8
A24: Worker housing | B24: ='Default-Data'!G236 -> 125567.8092 | C24: ='Default-Data'!I236 -> 1
A25: Professional services (engineers, geologists, supervisors, etc.) | B25: ='Default-Data'!G237 -> 542019.7097 | C25: ='Default-Data'!I237 -> 0.9
A26: Drilling subtotal | B26: =SUM(B17:B25) -> 6719176.104
A28: Other | B28: ="Expenditures ($"&B10&")" -> Expenditures ($2012) | C28: ="% Spent in "&B4 -> % Spent in Mexico
A29: Engineering and design | B29: ='Default-Data'!E246 -> 91459200 | C29: ='Default-Data'!G246 -> 0.6
A30: Mechanical equipment (turbines, generators, pumps, condensers, heat exchangers) | B30: ='Default-Data'!E247 -> 83953380.46 | C30: ='Default-Data'!G247 -> 0
A31: Permitting and environmental assessment | B31: ='Default-Data'!E248 -> 149771.7877 | C31: ='Default-Data'!G248 -> 1
A32: Additional civil works (i.e., roads) | B32: ='Default-Data'!E249 -> 0 | C32: ='Default-Data'!G249 -> 1
A33: Other subtotal | B33: =SUM(B29:B32) -> 175562352.3
A35: Construction total | B35: =B33+B26 -> 182281528.4
A38: Operations and Maintenance (O&M)
B39: ="Expenditures ($"&B10&")" -> Expenditures ($2012) | C39: ="% Spent in "&B4 -> % Spent in Mexico
A40: Plant operations, excluding equipment and field operations | B40: ='Default-Data'!C268 -> 397029.3319 | C40: ='Default-Data'!E268 -> 1
A41: Civil works maintenance | B41: ='Default-Data'!C269 -> 0 | C41: ='Default-Data'!E269 -> 1
A42: Equipment | B42: ='Default-Data'!C270 -> 3511247.045 | C42: ='Default-Data'!E270 -> 0
A43: Field operations, including well equipment | B43: ='Default-Data'!C271 -> 302362.9247 | C43: ='Default-Data'!E271 -> 0.9525426549
A45: O&M Total | B45: =SUM(B40:B43) -> 4210639.302
B48: Click arrow to go to results

Sheet Geothermal-Results
A1: I-JEDI - Geothermal | F1: Click for Help
A2: Estimated Gross Economic Impacts | F2: Return to Inputs
A3: ='Geothermal-Inputs'!B4 -> Mexico
B5: Nameplate capacity (MW) | C5: ='Geothermal-Inputs'!B5 -> 150
B6: Production wells | C6: ='Geothermal-Inputs'!B9 -> 1
B7: Dollar year | C7: ='Geothermal-Inputs'!B10 -> 2012
B11: Impact Totals
B12: Construction Phase (Single Year Equivalent) | D12: ( $ 2014 US)
C13: Jobs | D13: Earnings | E13: Output | F13: GDP (Value Added)
B14: Direct | C14: =TRANSPOSE(Calculations!O83:Q83) -> 6666.666091 | D14: =TRANSPOSE(Calculations!L83:N83) -> 37866428.96 | E14: =Calculations!D83 -> 61425593.63 | F14: =TRANSPOSE(Calculations!I83:K83) -> 37866428.96
B15: Indirect | C15: 877.9055802 | D15: 4461539.721 | E15: =TRANSPOSE(Calculations!G83:H83) -> 31974633.69 | F15: 18587710.44
B16: Induced | C16: 2298.566885 | D16: 6421356.406 | E16: 52389162.48 | F16: 18804182.4
B17: Total | C17: =SUM(C14:C16) -> 9843.138557 | D17: 48749325.08 | E17: 145789389.8 | F17: =SUM(F14:F16) -> 75258321.8
B19: Operations and Maintenance Phase (Annual, Ongoing) | D19: ( $ 2014 US)
C20: Jobs | D20: Earnings | E20: Output | F20: GDP
B21: Direct | C21: =TRANSPOSE(Calculations!Z83:AB83) -> 3.192690555 | D21: =TRANSPOSE(Calculations!W83:Y83) -> 58285.9036 | E21: =Calculations!E83 -> 685042.9149 | F21: =TRANSPOSE(Calculations!T83:V83) -> 425561.0045
B22: Indirect | C22: 7.197034832 | D22: 40334.58584 | E22: =TRANSPOSE(Calculations!R83:S83) -> 354609.2797 | F22: 194440.4575
B23: Induced | C23: 13.25413765 | D23: 37027.21999 | E23: 302089.6087 | F23: 108429.8323
B24: Total | C24: =SUM(C21:C23) -> 23.64386304 | D24: 135647.7094 | E24: 1341741.803 | F24: =SUM(F21:F23) -> 728431.2943
B27: Detailed Impacts
B28: Construction
C29: Jobs | J29: ="Earnings ($"&'Geothermal-Inputs'!B10&" US)" -> Earnings ($2012 US) | Q29: Output ($2014 US) | X29: GDP ($2014 US)
C30: Direct | D30: Indirect | E30: Induced | F30: Total | J30: Direct | K30: Indirect | L30: Induced | M30: Total | Q30: Direct | R30: Indirect | S30: Induced | T30: Total | X30: Direct | Y30: Indirect | Z30: Induced | AA30: Total
B31: Agriculture | C31: =Calculations!O72 -> 0 | D31: =Calculations!P72 -> 5.348934123 | E31: =Calculations!Q72 -> 121.0406072 | F31: =SUM(C31:E31) -> 126.3895413 | I31: Agriculture | J31: =Calculations!L72 -> 0 | K31: =Calculations!M72 -> 5461.303821 | L31: =Calculations!N72 -> 123583.4122 | M31: =SUM(J31:L31) -> 129044.716 | P31: Agriculture | Q31: =Calculations!D72 -> 0 | R31: =Calculations!G72 -> 54358.81456 | S31: =Calculations!H72 -> 1230081.315 | T31: =SUM(Q31:S31) -> 1284440.13 | W31: Agriculture | X31: =Calculations!T72 -> 0 | Y31: =Calculations!U72 -> 423.9486212 | Z31: =Calculations!V72 -> 4325.828615 | AA31: =SUM(X31:Z31) -> 4749.777236
B32: Mining and Extraction | C32: =Calculations!O73 -> 230.1854402 | D32: =Calculations!P73 -> 13.05742514 | E32: =Calculations!Q73 -> 1.946499309 | F32: =SUM(C32:E32) -> 245.1893646 | I32: Mining and Extraction | J32: =Calculations!L73 -> 4292622.495 | K32: =Calculations!M73 -> 243501.9211 | L32: =Calculations!N73 -> 36299.37112 | M32: =SUM(J32:L32) -> 4572423.787 | P32: Mining and Extraction | Q32: =Calculations!D73 -> 4986045.004 | R32: =Calculations!G73 -> 4557334.419 | S32: =Calculations!H73 -> 679371.9437 | T32: =SUM(Q32:S32) -> 10222751.37 | W32: Mining and Extraction | X32: =Calculations!T73 -> 247958.7698 | Y32: =Calculations!U73 -> 54646.49832 | Z32: =Calculations!V73 -> 3372.628003 | AA32: =SUM(X32:Z32) -> 305977.8961
B33: Utilities | C33: =Calculations!O74 -> 683.4049887 | D33: =Calculations!P74 -> 5.765979753 | E33: =Calculations!Q74 -> 3.866990502 | F33: 693.0379589 | I33: Utilities | J33: =Calculations!L74 -> 12382778.44 | K33: =Calculations!M74 -> 104475.1662 | L33: =Calculations!N74 -> 70066.92579 | M33: 12557320.53 | P33: Utilities | Q33: =Calculations!D74 -> 27681668.87 | R33: =Calculations!G74 -> 966957.9518 | S33: =Calculations!H74 -> 648496.4179 | T33: 29297123.24 | W33: Utilities | X33: =Calculations!T74 -> 177602.2347 | Y33: =Calculations!U74 -> 4190.710874 | Z33: =Calculations!V74 -> 1672.737317 | AA33: 183465.6829
B34: Construction | C34: =Calculations!O75 -> 0 | D34: =Calculations!P75 -> 10.15601688 | E34: =Calculations!Q75 -> 3.344512608 | F34: 13.50052949 | I34: Construction | J34: =Calculations!L75 -> 0 | K34: =Calculations!M75 -> 29084.80446 | L34: =Calculations!N75 -> 9578.016298 | M34: 38662.82076 | P34: Construction | Q34: =Calculations!D75 -> 0 | R34: =Calculations!G75 -> 131485.0622 | S34: =Calculations!H75 -> 43299.79494 | T34: 174784.8572 | W34: Construction | X34: =Calculations!T75 -> 0 | Y34: =Calculations!U75 -> 1193.342242 | Z34: =Calculations!V75 -> 125.5736567 | AA34: 1318.915899
B35: Manufacturing | C35: =Calculations!O76 -> 31.40514987 | D35: =Calculations!P76 -> 65.3279748 | E35: =Calculations!Q76 -> 105.3774629 | F35: 202.1105876 | I35: Manufacturing | J35: =Calculations!L76 -> 198387.2264 | K35: =Calculations!M76 -> 667174.8882 | L35: =Calculations!N76 -> 533758.1644 | M35: 1399320.279 | P35: Manufacturing | Q35: =Calculations!D76 -> 800871.2933 | R35: =Calculations!G76 -> 10993040 | S35: =Calculations!H76 -> 7083939.577 | T35: 18877850.87 | W35: Manufacturing | X35: =Calculations!T76 -> 0 | Y35: =Calculations!U76 -> 35265.83417 | Z35: =Calculations!V76 -> 13833.33531 | AA35: 49099.16948
B36: =IF(geo_country<>"Zambia","Sales","Trade, Transportation, and Warehousing") -> Sales | C36: =Calculations!O77 -> 0 | D36: =Calculations!P77 -> 153.3389779 | E36: =Calculations!Q77 -> 134.5224317 | F36: 287.8614096 | I36: =IF(geo_country<>"Zambia","Sales","Trade, Transportation, and Warehousing") -> Sales | J36: =Calculations!L77 -> 0 | K36: =Calculations!M77 -> 731175.7995 | L36: =Calculations!N77 -> 641451.6898 | M36: 1372627.489 | P36: =IF(geo_country<>"Zambia","Sales","Trade, Transportation, and Warehousing") -> Sales | Q36: =Calculations!D77 -> 0 | R36: =Calculations!G77 -> 4768584.885 | S36: =Calculations!H77 -> 4183421.872 | T36: 8952006.757 | W36: =IF(geo_country<>"Zambia","Sales","Trade, Transportation, and Warehousing") -> Sales | X36: =Calculations!T77 -> 0 | Y36: =Calculations!U77 -> 47482.34325 | Z36: =Calculations!V77 -> 18368.67007 | AA36: 65851.01331
B37: =IF(geo_country<>"Zambia","Transportation and Warehousing","") -> Transportation and Warehousing | C37: =Calculations!O78 -> 0 | D37: =Calculations!P78 -> 48.3396 | E37: =Calculations!Q78 -> 80.26828207 | F37: 128.6078821 | I37: =IF(geo_country<>"Zambia","Transportation and Warehousing","") -> Transportation and Warehousing | J37: =Calculations!L78 -> 0 | K37: =Calculations!M78 -> 343239.3697 | L37: =Calculations!N78 -> 569951.6452 | M37: 913191.0149 | P37: =IF(geo_country<>"Zambia","Transportation and Warehousing","") -> Transportation and Warehousing | Q37: =Calculations!D78 -> 0 | R37: =Calculations!G78 -> 1455659.908 | S37: =Calculations!H78 -> 2417134.609 | T37: 3872794.517 | W37: =IF(geo_country<>"Zambia","Transportation and Warehousing","") -> Transportation and Warehousing | X37: =Calculations!T78 -> 0 | Y37: =Calculations!U78 -> 12001.32826 | Z37: =Calculations!V78 -> 10187.09167 | AA37: 22188.41993
B38: =IF(geo_country<>"Zambia","Information","") -> Information | C38: =Calculations!O79 -> 0 | D38: =Calculations!P79 -> 9.465162579 | E38: =Calculations!Q79 -> 12.21298196 | F38: 21.67814454 | I38: =IF(geo_country<>"Zambia","Information","") -> Information | J38: =Calculations!L79 -> 0 | K38: =Calculations!M79 -> 113883.0731 | L38: =Calculations!N79 -> 146944.324 | M38: 260827.3971 | P38: =IF(geo_country<>"Zambia","Information","") -> Information | Q38: =Calculations!D79 -> 0 | R38: =Calculations!G79 -> 730136.9913 | S38: =Calculations!H79 -> 942102.1378 | T38: 1672239.129 | W38: =IF(geo_country<>"Zambia","Information","") -> Information | X38: =Calculations!T79 -> 0 | Y38: =Calculations!U79 -> 1887.928701 | Z38: =Calculations!V79 -> 3314.533528 | AA38: 5202.462229
B39: Finance, Professional, and Business Services | C39: =Calculations!O80 -> 5655.601666 | D39: =Calculations!P80 -> 510.8162157 | E39: =Calculations!Q80 -> 1076.750948 | F39: 7243.168829 | I39: Finance, Professional, and Business Services | J39: =Calculations!L80 -> 20900294.41 | K39: =Calculations!M80 -> 2108342.036 | L39: =Calculations!N80 -> 2072724.063 | M39: 25081360.51 | P39: Finance, Professional, and Business Services | Q39: =Calculations!D80 -> 27831440.66 | R39: =Calculations!G80 -> 7877860.642 | S39: =Calculations!H80 -> 7423184.325 | T39: 43132485.62 | W39: Finance, Professional, and Business Services | X39: =Calculations!T80 -> 0 | Y39: =Calculations!U80 -> 35159.53629 | Z39: =Calculations!V80 -> 33830.16551 | AA39: 68989.7018
B40: =IF(geo_country<>"Zambia","Education and Health Care","") -> Education and Health Care | C40: =Calculations!O81 -> 0 | D40: =Calculations!P81 -> 13.92261405 | E40: =Calculations!Q81 -> 595.0947378 | F40: 609.0173519 | I40: =IF(geo_country<>"Zambia","Education and Health Care","") -> Education and Health Care | J40: =Calculations!L81 -> 0 | K40: =Calculations!M81 -> 55905.29954 | L40: =Calculations!N81 -> 1884798.37 | M40: 1940703.67 | P40: =IF(geo_country<>"Zambia","Education and Health Care","") -> Education and Health Care | Q40: =Calculations!D81 -> 0 | R40: =Calculations!G81 -> 72253.98254 | S40: =Calculations!H81 -> 2818067.796 | T40: 2890321.779 | W40: =IF(geo_country<>"Zambia","Education and Health Care","") -> Education and Health Care | X40: =Calculations!T81 -> 0 | Y40: =Calculations!U81 -> 526.3026802 | Z40: =Calculations!V81 -> 13549.81144 | AA40: 14076.11412
B41: Other | C41: =Calculations!O82 -> 66.06884683 | D41: =Calculations!P82 -> 42.36667923 | E41: =Calculations!Q82 -> 164.1414314 | F41: 272.5769575 | I41: Other | J41: =Calculations!L82 -> 92346.38138 | K41: =Calculations!M82 -> 59296.05928 | L41: =Calculations!N82 -> 332200.4248 | M41: 483842.8654 | P41: Other | Q41: =Calculations!D82 -> 125567.8092 | R41: =Calculations!G82 -> 366961.0345 | S41: =Calculations!H82 -> 24920062.69 | T41: 25412591.53 | W41: Other | X41: =Calculations!T82 -> 0 | Y41: =Calculations!U82 -> 1662.684091 | Z41: =Calculations!V82 -> 5849.45718 | AA41: 7512.14127
B42: Total | C42: =SUM(C31:C41) -> 6666.666091 | D42: =SUM(D31:D41) -> 877.9055802 | E42: 2298.566885 | I42: Total | J42: =SUM(J31:J41) -> 37866428.96 | K42: =SUM(K31:K41) -> 4461539.721 | L42: 6421356.406 | P42: Total | Q42: =SUM(Q31:Q41) -> 61425593.63 | R42: =SUM(R31:R41) -> 31974633.69 | S42: 52389162.48 | W42: Total | X42: =SUM(X31:X41) -> 425561.0045 | Y42: =SUM(Y31:Y41) -> 194440.4575 | Z42: 108429.8323
B46: Detailed Impacts
B47: O&M
C48: Jobs | J48: ="Earnings ($"&'Geothermal-Inputs'!B10&" US)" -> Earnings ($2012 US) | Q48: Output ($2014 US) | X48: GDP ($2014 US)
C49: Direct | D49: Indirect | E49: Induced | F49: Total | J49: Direct | K49: Indirect | L49: Induced | M49: Total | Q49: Direct | R49: Indirect | S49: Induced | T49: Total | X49: Direct | Y49: Indirect | Z49: Induced | AA49: Total
B50: Agriculture | C50: =Calculations!Z72 -> 0 | D50: =Calculations!AA72 -> 0.06840208543 | E50: =Calculations!AB72 -> 0.6979517886 | F50: =SUM(C50:E50) -> 0.766353874 | I50: Agriculture | J50: =Calculations!W72 -> 0 | K50: =Calculations!X72 -> 69.83906737 | L50: =Calculations!Y72 -> 712.6142672 | M50: =SUM(J50:L50) -> 782.4533346 | P50: Agriculture | Q50: =Calculations!E72 -> 0 | R50: =Calculations!R72 -> 695.1396657 | S50: =Calculations!S72 -> 7092.970484 | T50: =SUM(Q50:S50) -> 7788.11015 | W50: Agriculture | X50: =Calculations!T72 -> 0 | Y50: =Calculations!U72 -> 423.9486212 | Z50: =Calculations!V72 -> 4325.828615 | AA50: =SUM(X50:Z50) -> 4749.777236
B51: Mining and Extraction | C51: =Calculations!Z73 -> 0.8252007542 | D51: =Calculations!AA73 -> 0.1818622171 | E51: =Calculations!AB73 -> 0.01122402395 | F51: =SUM(C51:E51) -> 1.018286995 | I51: Mining and Extraction | J51: =Calculations!W73 -> 15388.78966 | K51: =Calculations!X73 -> 3391.464914 | L51: =Calculations!Y73 -> 209.3116649 | M51: =SUM(J51:L51) -> 18989.56623 | P51: Mining and Extraction | Q51: =Calculations!E73 -> 288013.583 | R51: =Calculations!R73 -> 63473.99526 | S51: =Calculations!S73 -> 3917.436258 | T51: =SUM(Q51:S51) -> 355405.0146 | W51: Mining and Extraction | X51: =Calculations!T73 -> 247958.7698 | Y51: =Calculations!U73 -> 54646.49832 | Z51: =Calculations!V73 -> 3372.628003 | AA51: =SUM(X51:Z51) -> 305977.8961
B52: Utilities | C52: =Calculations!Z74 -> 2.367489801 | D52: =Calculations!AA74 -> 0.05586340324 | E52: =Calculations!AB74 -> 0.02229807831 | F52: 2.445651283 | I52: Utilities | J52: =Calculations!W74 -> 42897.11395 | K52: =Calculations!X74 -> 1012.202364 | L52: =Calculations!Y74 -> 404.024214 | M52: 44313.34052 | P52: Utilities | Q52: =Calculations!E74 -> 397029.3319 | R52: =Calculations!R74 -> 9368.323215 | S52: =Calculations!S74 -> 3739.399904 | T52: 410137.055 | W52: Utilities | X52: =Calculations!T74 -> 177602.2347 | Y52: =Calculations!U74 -> 4190.710874 | Z52: =Calculations!V74 -> 1672.737317 | AA52: 183465.6829
B53: Construction | C53: =Calculations!Z75 -> 0 | D53: =Calculations!AA75 -> 0.1832709544 | E53: =Calculations!AB75 -> 0.01928533417 | F53: 0.2025562885 | I53: Construction | J53: =Calculations!W75 -> 0 | K53: =Calculations!X75 -> 524.8514189 | L53: =Calculations!Y75 -> 55.22934628 | M53: 580.0807651 | P53: Construction | Q53: =Calculations!E75 -> 0 | R53: =Calculations!R75 -> 2372.720833 | S53: =Calculations!S75 -> 249.6779389 | T53: 2622.398772 | W53: Construction | X53: =Calculations!T75 -> 0 | Y53: =Calculations!U75 -> 1193.342242 | Z53: =Calculations!V75 -> 125.5736567 | AA53: 1318.915899
B54: Manufacturing | C54: =Calculations!Z76 -> 0 | D54: =Calculations!AA76 -> 0.7778107494 | E54: =Calculations!AB76 -> 0.6076340036 | F54: 1.385444753 | I54: Manufacturing | J54: =Calculations!W76 -> 0 | K54: =Calculations!X76 -> 8378.054273 | L54: =Calculations!Y76 -> 3077.789134 | M54: 11455.84341 | P54: Manufacturing | Q54: =Calculations!E76 -> 0 | R54: =Calculations!R76 -> 147222.8207 | S54: =Calculations!S76 -> 40847.84779 | T54: 188070.6684 | W54: Manufacturing | X54: =Calculations!T76 -> 0 | Y54: =Calculations!U76 -> 35265.83417 | Z54: =Calculations!V76 -> 13833.33531 | AA54: 49099.16948
B55: =IF(geo_country<>"Zambia","Sales","Trade, Transportation, and Warehousing") -> Sales | C55: =Calculations!Z77 -> 0 | D55: =Calculations!AA77 -> 2.005134316 | E55: =Calculations!AB77 -> 0.7756915136 | F55: 2.78082583 | I55: =IF(geo_country<>"Zambia","Sales","Trade, Transportation, and Warehousing") -> Sales | J55: =Calculations!W77 -> 0 | K55: =Calculations!X77 -> 9561.206854 | L55: =Calculations!Y77 -> 3698.778159 | M55: 13259.98501 | P55: =IF(geo_country<>"Zambia","Sales","Trade, Transportation, and Warehousing") -> Sales | Q55: =Calculations!E77 -> 0 | R55: =Calculations!R77 -> 62356.31227 | S55: =Calculations!S77 -> 24122.70433 | T55: 86479.0166 | W55: =IF(geo_country<>"Zambia","Sales","Trade, Transportation, and Warehousing") -> Sales | X55: =Calculations!T77 -> 0 | Y55: =Calculations!U77 -> 47482.34325 | Z55: =Calculations!V77 -> 18368.67007 | AA55: 65851.01331
B56: =IF(geo_country<>"Zambia","Transportation and Warehousing","") -> Transportation and Warehousing | C56: =Calculations!Z78 -> 0 | D56: =Calculations!AA78 -> 0.5452772764 | E56: =Calculations!AB78 -> 0.4628479016 | F56: 1.008125178 | I56: =IF(geo_country<>"Zambia","Transportation and Warehousing","") -> Transportation and Warehousing | J56: =Calculations!W78 -> 0 | K56: =Calculations!X78 -> 3871.786872 | L56: =Calculations!Y78 -> 3286.490208 | M56: 7158.277079 | P56: =IF(geo_country<>"Zambia","Transportation and Warehousing","") -> Transportation and Warehousing | Q56: =Calculations!E78 -> 0 | R56: =Calculations!R78 -> 16420.04216 | S56: =Calculations!S78 -> 13937.83015 | T56: 30357.87231 | W56: =IF(geo_country<>"Zambia","Transportation and Warehousing","") -> Transportation and Warehousing | X56: =Calculations!T78 -> 0 | Y56: =Calculations!U78 -> 12001.32826 | Z56: =Calculations!V78 -> 10187.09167 | AA56: 22188.41993
B57: =IF(geo_country<>"Zambia","Information","") -> Information | C57: =Calculations!Z79 -> 0 | D57: =Calculations!AA79 -> 0.04011245276 | E57: =Calculations!AB79 -> 0.07042324721 | F57: 0.1105357 | I57: =IF(geo_country<>"Zambia","Information","") -> Information | J57: =Calculations!W79 -> 0 | K57: =Calculations!X79 -> 482.6255599 | L57: =Calculations!Y79 -> 847.3193927 | M57: 1329.944953 | P57: =IF(geo_country<>"Zambia","Information","") -> Information | Q57: =Calculations!E79 -> 0 | R57: =Calculations!R79 -> 3094.250662 | S57: =Calculations!S79 -> 5432.407252 | T57: 8526.657913 | W57: =IF(geo_country<>"Zambia","Information","") -> Information | X57: =Calculations!T79 -> 0 | Y57: =Calculations!U79 -> 1887.928701 | Z57: =Calculations!V79 -> 3314.533528 | AA57: 5202.462229
B58: Finance, Professional, and Business Services | C58: =Calculations!Z80 -> 0 | D58: =Calculations!AA80 -> 2.949731176 | E58: =Calculations!AB80 -> 6.208827497 | F58: 9.158558672 | I58: Finance, Professional, and Business Services | J58: =Calculations!W80 -> 0 | K58: =Calculations!X80 -> 12201.80035 | L58: =Calculations!Y80 -> 11951.86889 | M58: 24153.66924 | P58: Finance, Professional, and Business Services | Q58: =Calculations!E80 -> 0 | R58: =Calculations!R80 -> 46699.94594 | S58: =Calculations!S80 -> 42804.02171 | T58: 89503.96764 | W58: Finance, Professional, and Business Services | X58: =Calculations!T80 -> 0 | Y58: =Calculations!U80 -> 35159.53629 | Z58: =Calculations!V80 -> 33830.16551 | AA58: 68989.7018
B59: =IF(geo_country<>"Zambia","Education and Health Care","") -> Education and Health Care | C59: =Calculations!Z81 -> 0 | D59: =Calculations!AA81 -> 0.1130321233 | E59: =Calculations!AB81 -> 3.431471854 | F59: 3.544503977 | I59: =IF(geo_country<>"Zambia","Education and Health Care","") -> Education and Health Care | J59: =Calculations!W81 -> 0 | K59: =Calculations!X81 -> 453.8727202 | L59: =Calculations!Y81 -> 10868.24021 | M59: 11322.11293 | P59: =IF(geo_country<>"Zambia","Education and Health Care","") -> Education and Health Care | Q59: =Calculations!E81 -> 0 | R59: =Calculations!R81 -> 586.6011249 | S59: =Calculations!S81 -> 16249.71573 | T59: 16836.31686 | W59: =IF(geo_country<>"Zambia","Education and Health Care","") -> Education and Health Care | X59: =Calculations!T81 -> 0 | Y59: =Calculations!U81 -> 526.3026802 | Z59: =Calculations!V81 -> 13549.81144 | AA59: 14076.11412
B60: Other | C60: =Calculations!Z82 -> 0 | D60: =Calculations!AA82 -> 0.276538078 | E60: =Calculations!AB82 -> 0.9464824105 | F60: 1.223020489 | I60: Other | J60: =Calculations!W82 -> 0 | K60: =Calculations!X82 -> 386.8814448 | L60: =Calculations!Y82 -> 1915.554507 | M60: 2302.435952 | P60: Other | Q60: =Calculations!E82 -> 0 | R60: =Calculations!R82 -> 2319.127863 | S60: =Calculations!S82 -> 143695.5972 | T60: 146014.725 | W60: Other | X60: =Calculations!T82 -> 0 | Y60: =Calculations!U82 -> 1662.684091 | Z60: =Calculations!V82 -> 5849.45718 | AA60: 7512.14127
B61: Total | C61: =SUM(C50:C60) -> 3.192690555 | D61: =SUM(D50:D60) -> 7.197034832 | E61: 13.25413765 | I61: Total | J61: =SUM(J50:J60) -> 58285.9036 | K61: =SUM(K50:K60) -> 40334.58584 | L61: 37027.21999 | P61: Total | Q61: =SUM(Q50:Q60) -> 685042.9149 | R61: =SUM(R50:R60) -> 354609.2797 | S61: 302089.6087 | W61: Total | X61: =SUM(X50:X60) -> 425561.0045 | Y61: =SUM(Y50:Y60) -> 194440.4575 | Z61: 108429.8323

Sheet General Impact Estimates
B1: General Impact Estimates | D1: Click for help
B4: Select Country | C4: Mexico | F4: Impact Totals
B5: Currency Year | C5: 2012 | H5: ="( $ "&general_dollar_year&" US)" -> ( $ 2012 US)
G6: Jobs | H6: Earnings | I6: Output | J6: GDP (Value Added)
F7: Direct | G7: =TRANSPOSE(G28:J28) -> 4.577432422 | H7: =TRANSPOSE(N28:Q28) -> 46161.29287 | I7: =TRANSPOSE(U28:X28) -> 1000000 | J7: =TRANSPOSE(AB28:AE28) -> 376641.7734
F8: Indirect | G8: 10.68658873 | H8: 68714.35922 | I8: 711674.1938 | J8: 472749.4844
B9: Industry | C9: ="Change in Final Demand ($ "&general_dollar_year&" )" -> Change in Final Demand ($ 2012 ) | F9: Induced | G9: 15.43875633 | H9: 43130.24672 | I9: 351881.6524 | J9: 126301.8239
A10: 2 | B10: =HLOOKUP(general_country,'Default-Data'!$P$5:$X$47,'General Impact Estimates'!A10,FALSE) -> Agriculture, hunting, forestry and fishing | C10: 0 | F10: Total | G10: 30.70277748 | H10: 158005.8988 | I10: 2063555.846 | J10: 975693.0817
A11: 3 | B11: =HLOOKUP(general_country,'Default-Data'!$P$5:$X$47,'General Impact Estimates'!A11,FALSE) -> Mining and quarrying | C11: 0
A12: 4 | B12: =HLOOKUP(general_country,'Default-Data'!$P$5:$X$47,'General Impact Estimates'!A12,FALSE) -> Manufacturing: Food products, beverages and tobacco | C12: 0
A13: 5 | B13: =HLOOKUP(general_country,'Default-Data'!$P$5:$X$47,'General Impact Estimates'!A13,FALSE) -> Manufacturing: Textiles, textile products, leather and footwear | C13: 0
A14: 6 | B14: =HLOOKUP(general_country,'Default-Data'!$P$5:$X$47,'General Impact Estimates'!A14,FALSE) -> Manufacturing: Wood and products of wood and cork | C14: 0 | F14: Detailed Impacts
A15: 7 | B15: =HLOOKUP(general_country,'Default-Data'!$P$5:$X$47,'General Impact Estimates'!A15,FALSE) -> Manufacturing: Pulp, paper, paper products, printing and publishing | C15: 0 | G15: Jobs | N15: ="Earnings ( $ "&general_dollar_year&" US)" -> Earnings ( $ 2012 US) | U15: ="Output ( $ "&general_dollar_year&" US)" -> Output ( $ 2012 US) | AB15: ="GDP ( $ "&general_dollar_year&" US)" -> GDP ( $ 2012 US)
A16: 8 | B16: =HLOOKUP(general_country,'Default-Data'!$P$5:$X$47,'General Impact Estimates'!A16,FALSE) -> Manufacturing: Coke, refined petroleum products and nuclear fuel | C16: 0 | G16: Direct | H16: Indirect | I16: Induced | J16: Total | N16: Direct | O16: Indirect | P16: Induced | Q16: Total | U16: Direct | V16: Indirect | W16: Induced | X16: Total | AB16: Direct | AC16: Indirect | AD16: Induced | AE16: Total
A17: 9 | B17: =HLOOKUP(general_country,'Default-Data'!$P$5:$X$47,'General Impact Estimates'!A17,FALSE) -> Manufacturing: Chemicals and chemical products | C17: 0 | F17: Agriculture | G17: =Calculations!O94 -> 0 | H17: =Calculations!P94 -> 0.07269710285 | I17: =Calculations!Q94 -> 0.8129919786 | J17: =SUM(G17:I17) -> 0.8856890815 | M17: Agriculture | N17: =Calculations!L94 -> 0 | O17: =Calculations!M94 -> 74.22431394 | P17: =Calculations!N94 -> 830.0712063 | Q17: =SUM(N17:P17) -> 904.2955202 | T17: Agriculture | U17: =Calculations!D94 -> 0 | V17: =Calculations!G94 -> 738.7879982 | W17: =Calculations!H94 -> 8262.072255 | X17: =SUM(U17:W17) -> 9000.860253 | AA17: Agriculture | AB17: =Calculations!I94 -> 0 | AC17: =Calculations!J94 -> 450.568668 | AD17: =Calculations!K94 -> 5038.835092 | AE17: =SUM(AB17:AD17) -> 5489.40376
A18: 10 | B18: =HLOOKUP(general_country,'Default-Data'!$P$5:$X$47,'General Impact Estimates'!A18,FALSE) -> Manufacturing: Rubber and plastics products | C18: 0 | F18: Mining and Extraction | G18: =Calculations!O95 -> 0 | H18: =Calculations!P95 -> 0.8187137196 | I18: =Calculations!Q95 -> 0.01307402831 | J18: =SUM(G18:I18) -> 0.8317877479 | M18: Mining and Extraction | N18: =Calculations!L95 -> 0 | O18: =Calculations!M95 -> 15267.81593 | P18: =Calculations!N95 -> 243.8115459 | Q18: =SUM(N18:P18) -> 15511.62747 | T18: Mining and Extraction | U18: =Calculations!D95 -> 0 | V18: =Calculations!G95 -> 285749.4624 | W18: =Calculations!H95 -> 4563.129297 | X18: =SUM(U18:W18) -> 290312.5917 | AA18: Mining and Extraction | AB18: =Calculations!I95 -> 0 | AC18: =Calculations!J95 -> 246009.5264 | AD18: =Calculations!K95 -> 3928.522798 | AE18: =SUM(AB18:AD18) -> 249938.0492
A19: 11 | B19: =HLOOKUP(general_country,'Default-Data'!$P$5:$X$47,'General Impact Estimates'!A19,FALSE) -> Manufacturing: Other non-metallic mineral products | C19: 0 | F19: Utilities | G19: =Calculations!O96 -> 0 | H19: =Calculations!P96 -> 0.2303182512 | I19: =Calculations!Q96 -> 0.02597336822 | J19: 0.2562916194 | M19: Utilities | N19: =Calculations!L96 -> 0 | O19: =Calculations!M96 -> 4173.19148 | P19: =Calculations!N96 -> 470.6176709 | Q19: 4643.809151 | T19: Utilities | U19: =Calculations!D96 -> 0 | V19: =Calculations!G96 -> 38624.49644 | W19: =Calculations!H96 -> 4355.748027 | X19: 42980.24447 | AA19: Utilities | AB19: =Calculations!I96 -> 0 | AC19: =Calculations!J96 -> 17277.8088 | AD19: =Calculations!K96 -> 1948.446932 | AE19: 19226.25573
A20: 12 | B20: =HLOOKUP(general_country,'Default-Data'!$P$5:$X$47,'General Impact Estimates'!A20,FALSE) -> Manufacturing: Basic metals | C20: 1000000 | F20: Construction | G20: =Calculations!O97 -> 0 | H20: =Calculations!P97 -> 0.1043974739 | I20: =Calculations!Q97 -> 0.02246404729 | J20: 0.1268615212 | M20: Construction | N20: =Calculations!L97 -> 0 | O20: =Calculations!M97 -> 298.9735198 | P20: =Calculations!N97 -> 64.33254594 | Q20: 363.3060658 | T20: Construction | U20: =Calculations!D97 -> 0 | V20: =Calculations!G97 -> 1351.583845 | W20: =Calculations!H97 -> 290.8312077 | X20: 1642.415053 | AA20: Construction | AB20: =Calculations!I97 -> 0 | AC20: =Calculations!J97 -> 679.7690121 | AD20: =Calculations!K97 -> 146.2713863 | AE20: 826.0403983
A21: 13 | B21: =HLOOKUP(general_country,'Default-Data'!$P$5:$X$47,'General Impact Estimates'!A21,FALSE) -> Manufacturing: Fabricated metal products | C21: 0 | F21: Manufacturing | G21: =Calculations!O98 -> 4.577432422 | H21: =Calculations!P98 -> 1.346749191 | I21: =Calculations!Q98 -> 0.7077875276 | J21: 6.63196914 | M21: Manufacturing | N21: =Calculations!L98 -> 46161.29287 | O21: =Calculations!M98 -> 11118.28671 | P21: =Calculations!N98 -> 3585.086991 | Q21: 60864.66658 | T21: Manufacturing | U21: =Calculations!D98 -> 1000000 | V21: =Calculations!G98 -> 196013.7989 | W21: =Calculations!H98 -> 47580.61107 | X21: 1243594.41 | AA21: Manufacturing | AB21: =Calculations!I98 -> 376641.7734 | AC21: =Calculations!J98 -> 66091.44162 | AD21: =Calculations!K98 -> 16113.42048 | AE21: 458846.6355
A22: 14 | B22: =HLOOKUP(general_country,'Default-Data'!$P$5:$X$47,'General Impact Estimates'!A22,FALSE) -> Manufacturing: Machinery and equipment not classified elsewhere | C22: 0 | F22: =IF(general_country<>"Zambia","Sales","Trade, Transportation, and Warehousing") -> Sales | G22: =Calculations!O99 -> 0 | H22: =Calculations!P99 -> 3.051965724 | I22: =Calculations!Q99 -> 0.9035451857 | J22: 3.95551091 | M22: =IF(general_country<>"Zambia","Sales","Trade, Transportation, and Warehousing") -> Sales | N22: =Calculations!L99 -> 0 | O22: =Calculations!M99 -> 14552.87826 | P22: =Calculations!N99 -> 4308.430788 | Q22: 18861.30905 | T22: =IF(general_country<>"Zambia","Sales","Trade, Transportation, and Warehousing") -> Sales | U22: =Calculations!D99 -> 0 | V22: =Calculations!G99 -> 94911.0123 | W22: =Calculations!H99 -> 28098.73897 | X22: 123009.7513 | AA22: =IF(general_country<>"Zambia","Sales","Trade, Transportation, and Warehousing") -> Sales | AB22: =Calculations!I99 -> 0 | AC22: =Calculations!J99 -> 72271.70914 | AD22: =Calculations!K99 -> 21396.29365 | AE22: 93668.00279
A23: 15 | B23: =HLOOKUP(general_country,'Default-Data'!$P$5:$X$47,'General Impact Estimates'!A23,FALSE) -> Manufacturing: Computer, Electronic and optical equipment | C23: 0 | F23: =IF(general_country<>"Zambia","Transportation and Warehousing","") -> Transportation and Warehousing | G23: =Calculations!O100 -> 0 | H23: =Calculations!P100 -> 0.8965183525 | I23: =Calculations!Q100 -> 0.539136997 | J23: 1.435655349 | M23: =IF(general_country<>"Zambia","Transportation and Warehousing","") -> Transportation and Warehousing | N23: =Calculations!L100 -> 0 | O23: =Calculations!M100 -> 6365.803487 | P23: =Calculations!N100 -> 3828.187305 | Q23: 10193.99079 | T23: =IF(general_country<>"Zambia","Transportation and Warehousing","") -> Transportation and Warehousing | U23: =Calculations!D100 -> 0 | V23: =Calculations!G100 -> 26997.03396 | W23: =Calculations!H100 -> 16235.13872 | X23: 43232.17268 | AA23: =IF(general_country<>"Zambia","Transportation and Warehousing","") -> Transportation and Warehousing | AB23: =Calculations!I100 -> 0 | AC23: =Calculations!J100 -> 19731.99967 | AD23: =Calculations!K100 -> 11866.18324 | AE23: 31598.1829
A24: 16 | B24: =HLOOKUP(general_country,'Default-Data'!$P$5:$X$47,'General Impact Estimates'!A24,FALSE) -> Manufacturing: Electrical machinery and apparatus not classified elsewhere | C24: 0 | F24: =IF(general_country<>"Zambia","Information","") -> Information | G24: =Calculations!O101 -> 0 | H24: =Calculations!P101 -> 0.03941048029 | I24: =Calculations!Q101 -> 0.08203078783 | J24: 0.1214412681 | M24: =IF(general_country<>"Zambia","Information","") -> Information | N24: =Calculations!L101 -> 0 | O24: =Calculations!M101 -> 474.1795579 | P24: =Calculations!N101 -> 986.9791594 | Q24: 1461.158717 | T24: =IF(general_country<>"Zambia","Information","") -> Information | U24: =Calculations!D101 -> 0 | V24: =Calculations!G101 -> 3040.100924 | W24: =Calculations!H101 -> 6327.806006 | X24: 9367.906931 | AA24: =IF(general_country<>"Zambia","Information","") -> Information | AB24: =Calculations!I101 -> 0 | AC24: =Calculations!J101 -> 1854.889734 | AD24: =Calculations!K101 -> 3860.852878 | AE24: 5715.742612
A25: 17 | B25: =HLOOKUP(general_country,'Default-Data'!$P$5:$X$47,'General Impact Estimates'!A25,FALSE) -> Manufacturing: Motor vehicles, trailers and semi-trailers | C25: 0 | F25: Finance, Professional, and Business Services | G25: =Calculations!O102 -> 0 | H25: =Calculations!P102 -> 3.792173825 | I25: =Calculations!Q102 -> 7.232200037 | J25: 11.02437386 | M25: Finance, Professional, and Business Services | N25: =Calculations!L102 -> 0 | O25: =Calculations!M102 -> 15829.62138 | P25: =Calculations!N102 -> 13921.84058 | Q25: 29751.46196 | T25: Finance, Professional, and Business Services | U25: =Calculations!D102 -> 0 | V25: =Calculations!G102 -> 61553.85615 | W25: =Calculations!H102 -> 49859.21215 | X25: 111413.0683 | AA25: Finance, Professional, and Business Services | AB25: =Calculations!I102 -> 0 | AC25: =Calculations!J102 -> 46419.30633 | AD25: =Calculations!K102 -> 39406.23643 | AE25: 85825.54276
A26: 18 | B26: =HLOOKUP(general_country,'Default-Data'!$P$5:$X$47,'General Impact Estimates'!A26,FALSE) -> Manufacturing: Other transport equipment | C26: 0 | F26: =IF(general_country<>"Zambia","Education and Health Care","") -> Education and Health Care | G26: =Calculations!O103 -> 0 | H26: =Calculations!P103 -> 0.03538851991 | I26: =Calculations!Q103 -> 3.99706561 | J26: 4.03245413 | M26: =IF(general_country<>"Zambia","Education and Health Care","") -> Education and Health Care | N26: =Calculations!L103 -> 0 | O26: =Calculations!M103 -> 142.1001688 | P26: =Calculations!N103 -> 12659.60236 | Q26: 12801.70253 | T26: =IF(general_country<>"Zambia","Education and Health Care","") -> Education and Health Care | U26: =Calculations!D103 -> 0 | V26: =Calculations!G103 -> 183.6552742 | W26: =Calculations!H103 -> 18928.0818 | X26: 19111.73707 | AA26: =IF(general_country<>"Zambia","Education and Health Care","") -> Education and Health Care | AB26: =Calculations!I103 -> 0 | AC26: =Calculations!J103 -> 164.7768116 | AD26: =Calculations!K103 -> 15783.16467 | AE26: 15947.94148
A27: 19 | B27: =HLOOKUP(general_country,'Default-Data'!$P$5:$X$47,'General Impact Estimates'!A27,FALSE) -> Manufacturing not classified elsewhere; recycling | C27: 0 | F27: Other | G27: =Calculations!O104 -> 0 | H27: =Calculations!P104 -> 0.2982560904 | I27: =Calculations!Q104 -> 1.102486762 | J27: 1.400742853 | M27: Other | N27: =Calculations!L104 -> 0 | O27: =Calculations!M104 -> 417.2844114 | P27: =Calculations!N104 -> 2231.286565 | Q27: 2648.570977 | T27: Other | U27: =Calculations!D104 -> 0 | V27: =Calculations!G104 -> 2510.405593 | W27: =Calculations!H104 -> 167380.2829 | X27: 169890.6885 | AA27: Other | AB27: =Calculations!I104 -> 0 | AC27: =Calculations!J104 -> 1797.688224 | AD27: =Calculations!K104 -> 6813.59636 | AE27: 8611.284584
A28: 20 | B28: =HLOOKUP(general_country,'Default-Data'!$P$5:$X$47,'General Impact Estimates'!A28,FALSE) -> Electricity, gas and water supply | C28: 0 | F28: Total | G28: =Calculations!O105 -> 4.577432422 | H28: =Calculations!P105 -> 10.68658873 | I28: =Calculations!Q105 -> 15.43875633 | J28: 30.70277748 | M28: Total | N28: =Calculations!L105 -> 46161.29287 | O28: =Calculations!M105 -> 68714.35922 | P28: =Calculations!N105 -> 43130.24672 | Q28: 158005.8988 | T28: Total | U28: =Calculations!D105 -> 1000000 | V28: =Calculations!G105 -> 711674.1938 | W28: =Calculations!H105 -> 351881.6524 | X28: 2063555.846 | AA28: Total | AB28: =Calculations!I105 -> 376641.7734 | AC28: =Calculations!J105 -> 472749.4844 | AD28: =Calculations!K105 -> 126301.8239 | AE28: 975693.0817
A29: 21 | B29: =HLOOKUP(general_country,'Default-Data'!$P$5:$X$47,'General Impact Estimates'!A29,FALSE) -> Construction | C29: 0
A30: 22 | B30: =HLOOKUP(general_country,'Default-Data'!$P$5:$X$47,'General Impact Estimates'!A30,FALSE) -> Wholesale and retail trade; repairs | C30: 0
A31: 23 | B31: =HLOOKUP(general_country,'Default-Data'!$P$5:$X$47,'General Impact Estimates'!A31,FALSE) -> Hotels and restaurants | C31: 0
A32: 24 | B32: =HLOOKUP(general_country,'Default-Data'!$P$5:$X$47,'General Impact Estimates'!A32,FALSE) -> Transport and storage | C32: 0
A33: 25 | B33: =HLOOKUP(general_country,'Default-Data'!$P$5:$X$47,'General Impact Estimates'!A33,FALSE) -> Post and telecommunications | C33: 0
A34: 26 | B34: =HLOOKUP(general_country,'Default-Data'!$P$5:$X$47,'General Impact Estimates'!A34,FALSE) -> Financial intermediation | C34: 0
A35: 27 | B35: =HLOOKUP(general_country,'Default-Data'!$P$5:$X$47,'General Impact Estimates'!A35,FALSE) -> Real estate activities | C35: 0
A36: 28 | B36: =HLOOKUP(general_country,'Default-Data'!$P$5:$X$47,'General Impact Estimates'!A36,FALSE) -> Renting of machinery and equipment | C36: 0
A37: 29 | B37: =HLOOKUP(general_country,'Default-Data'!$P$5:$X$47,'General Impact Estimates'!A37,FALSE) -> Computer and related activities | C37: 0
A38: 30 | B38: =HLOOKUP(general_country,'Default-Data'!$P$5:$X$47,'General Impact Estimates'!A38,FALSE) -> R&D and other business activities | C38: 0
A39: 31 | B39: =HLOOKUP(general_country,'Default-Data'!$P$5:$X$47,'General Impact Estimates'!A39,FALSE) -> Public administration and defence; compulsory social security | C39: 0
A40: 32 | B40: =HLOOKUP(general_country,'Default-Data'!$P$5:$X$47,'General Impact Estimates'!A40,FALSE) -> Education | C40: 0
A41: 33 | B41: =HLOOKUP(general_country,'Default-Data'!$P$5:$X$47,'General Impact Estimates'!A41,FALSE) -> Health and social work | C41: 0
A42: 34 | B42: =HLOOKUP(general_country,'Default-Data'!$P$5:$X$47,'General Impact Estimates'!A42,FALSE) -> Other community, social and personal services | C42: 0
A43: 35 | B43: =HLOOKUP(general_country,'Default-Data'!$P$5:$X$47,'General Impact Estimates'!A43,FALSE) -> Private households with employed persons | C43: 0
A44: 36 | B44: =HLOOKUP(general_country,'Default-Data'!$P$5:$X$47,'General Impact Estimates'!A44,FALSE) -> Payments to workers and/or households | C44: 0
A45: 37 | B45: =IF(ISBLANK(HLOOKUP(general_country,'Default-Data'!$P$5:$X$47,'General Impact Estimates'!A45,FALSE)),"",HLOOKUP(general_country,'Default-Data'!$P$5:$X$47,'General Impact Estimates'!A45,FALSE)) ->  | C45: 0
A46: 38 | B46: =IF(ISBLANK(HLOOKUP(general_country,'Default-Data'!$P$5:$X$47,'General Impact Estimates'!A46,FALSE)),"",HLOOKUP(general_country,'Default-Data'!$P$5:$X$47,'General Impact Estimates'!A46,FALSE)) ->  | C46: 0
A47: 39 | B47: =IF(ISBLANK(HLOOKUP(general_country,'Default-Data'!$P$5:$X$47,'General Impact Estimates'!A47,FALSE)),"",HLOOKUP(general_country,'Default-Data'!$P$5:$X$47,'General Impact Estimates'!A47,FALSE)) ->  | C47: 0
A48: 40 | B48: =IF(ISBLANK(HLOOKUP(general_country,'Default-Data'!$P$5:$X$47,'General Impact Estimates'!A48,FALSE)),"",HLOOKUP(general_country,'Default-Data'!$P$5:$X$47,'General Impact Estimates'!A48,FALSE)) ->  | C48: 0
A49: 41 | B49: =IF(ISBLANK(HLOOKUP(general_country,'Default-Data'!$P$5:$X$47,'General Impact Estimates'!A49,FALSE)),"",HLOOKUP(general_country,'Default-Data'!$P$5:$X$47,'General Impact Estimates'!A49,FALSE)) ->  | C49: 0
A50: 42 | B50: =IF(ISBLANK(HLOOKUP(general_country,'Default-Data'!$P$5:$X$47,'General Impact Estimates'!A50,FALSE)),"",HLOOKUP(general_country,'Default-Data'!$P$5:$X$47,'General Impact Estimates'!A50,FALSE)) ->  | C50: 0
A51: 43 | B51: =IF(ISBLANK(HLOOKUP(general_country,'Default-Data'!$P$5:$X$47,'General Impact Estimates'!A51,FALSE)),"",HLOOKUP(general_country,'Default-Data'!$P$5:$X$47,'General Impact Estimates'!A51,FALSE)) ->  | C51: 0

Sheet CustomRegion1
B2: CustomRegion1
B4: Enter data in boxes below
D7: Dollar Year of Average Earnings | E7: 2014
C8: Value Added as a Percentage of Output | D8: Payments to Workers as a Percentage of Output | E8: ="Average Earnings ($"&E7&") per Job" -> Average Earnings ($2014) per Job
B9: Agriculture, hunting, forestry and fishing | C9: 0.705756794 | D9: 0.2031490895 | E9: 1733.462998
B10: Mining and quarrying | C10: 0.5756863048 | D10: 0.1504858112 | E10: 3214.683902
B11: Manufacturing: Food products, beverages and tobacco | C11: 0.333032972 | D11: 0.05827244295 | E11: 3214.683902
B12: Manufacturing: Textiles, textile products, leather and footwear | C12: 0.3836977007 | D12: 0.1325292122 | E12: 3214.683902
B13: Manufacturing: Wood and products of wood and cork | C13: 0.1451309393 | D13: 0.03763525169 | E13: 3214.683902
B14: Manufacturing: Pulp, paper, paper products, printing and publishing | C14: 0.2647392141 | D14: 0.07848615028 | E14: 3214.683902
B15: Manufacturing: Coke, refined petroleum products and nuclear fuel | C15: 0.1698524086 | D15: 0.02309295907 | E15: 3214.683902
B16: Manufacturing: Chemicals and chemical products | C16: 0.269870384 | D16: 0.06998451129 | E16: 3214.683902
B17: Manufacturing: Rubber and plastics products | C17: 0.3075430235 | D17: 0.08690316504 | E17: 3214.683902
B18: Manufacturing: Other non-metallic mineral products | C18: 0.3762880229 | D18: 0.0800365712 | E18: 3214.683902
B19: Manufacturing: Basic metals | C19: 0.2052798657 | D19: 0.04671986414 | E19: 3214.683902
B20: Manufacturing: Fabricated metal products | C20: 0.2518381066 | D20: 0.07720047616 | E20: 3214.683902
B21: Manufacturing: Machinery and equipment not classified elsewhere | C21: 0.3658674044 | D21: 0.1088482426 | E21: 3214.683902
B22: Manufacturing: Computer, Electronic and optical equipment | C22: 0.2464592606 | D22: 0.09248143529 | E22: 3214.683902
B23: Manufacturing: Electrical machinery and apparatus not classified elsewhere | C23: 0.259834079 | D23: 0.08689100174 | E23: 3214.683902
B24: Manufacturing: Motor vehicles, trailers and semi-trailers | C24: 0.1633728793 | D24: 0.04053970986 | E24: 3214.683902
B25: Manufacturing: Other transport equipment | C25: 0.2092721834 | D25: 0.04699235626 | E25: 3214.683902
B26: Manufacturing not classified elsewhere; recycling | C26: 0.4053752714 | D26: 0.1368464292 | E26: 3214.683902
B27: Electricity, gas and water supply | C27: 0.5992560311 | D27: 0.1241067755 | E27: 3948.965466
B28: Construction | C28: 0.5503285342 | D28: 0.1691129578 | E28: 3214.683902
B29: Wholesale and retail trade; repairs | C29: 0.6911149094 | D29: 0.15383604 | E29: 3214.683902
B30: Hotels and restaurants | C30: 0.3748628876 | D30: 0.1412138381 | E30: 3214.683902
B31: Transport and storage | C31: 0.4420240182 | D31: 0.164490725 | E31: 3214.683902
B32: Post and telecommunications | C32: 0.605697838 | D32: 0.1074041365 | E32: 3948.965466
B33: Financial intermediation | C33: 0.6377941715 | D33: 0.1397323226 | E33: 3948.965466
B34: Real estate activities | C34: 0.8114704658 | D34: 0.02079758359 | E34: 3948.965466
B35: Renting of machinery and equipment | C35: 0.5055704414 | D35: 0.1382033564 | E35: 3948.965466
B36: Computer and related activities | C36: 0.4996688468 | D36: 0.1742693932 | E36: 3948.965466
B37: R&D and other business activities | C37: 0.4844997991 | D37: 0.1896022499 | E37: 3948.965466
B38: Public administration and defence; compulsory social security | C38: 0.5570179629 | D38: 0.4730794955 | E38: 3948.965466
B39: Education | C39: 0.6805639698 | D39: 0.4733833906 | E39: 3948.965466
B40: Health and social work | C40: 0.518203561 | D40: 0.3308264682 | E40: 3948.965466
B41: Other community, social and personal services | C41: 0.4873611064 | D41: 0.4188878445 | E41: 1733.462998
B42: Private households with employed persons | C42: 0 | D42: 0 | E42: 1733
B44: Total Requirements - Type 1
C45: Agriculture, hunting, forestry and fishing | D45: Mining and quarrying | E45: Manufacturing: Food products, beverages and tobacco | F45: Manufacturing: Textiles, textile products, leather and footwear | G45: Manufacturing: Wood and products of wood and cork | H45: Manufacturing: Pulp, paper, paper products, printing and publishing | I45: Manufacturing: Coke, refined petroleum products and nuclear fuel | J45: Manufacturing: Chemicals and chemical products | K45: Manufacturing: Rubber and plastics products | L45: Manufacturing: Other non-metallic mineral products | M45: Manufacturing: Basic metals | N45: Manufacturing: Fabricated metal products | O45: Manufacturing: Machinery and equipment not classified elsewhere | P45: Manufacturing: Computer, Electronic and optical equipment | Q45: Manufacturing: Electrical machinery and apparatus not classified elsewhere | R45: Manufacturing: Motor vehicles, trailers and semi-trailers | S45: Manufacturing: Other transport equipment | T45: Manufacturing not classified elsewhere; recycling | U45: Electricity, gas and water supply | V45: Construction | W45: Wholesale and retail trade; repairs | X45: Hotels and restaurants | Y45: Transport and storage | Z45: Post and telecommunications | AA45: Financial intermediation | AB45: Real estate activities | AC45: Renting of machinery and equipment | AD45: Computer and related activities | AE45: R&D and other business activities | AF45: Public administration and defence; compulsory social security | AG45: Education | AH45: Health and social work | AI45: Other community, social and personal services | AJ45: Private households with employed persons
B46: Agriculture, hunting, forestry and fishing | C46: 1.089872609 | D46: 0.007211394445 | E46: 0.433715097 | F46: 0.1782575352 | G46: 0.5350685718 | H46: 0.2643897842 | I46: 0.009054540208 | J46: 0.13261583 | K46: 0.1008919448 | L46: 0.01243976344 | M46: 0.007890040201 | N46: 0.00898491523 | O46: 0.01403993529 | P46: 0.007236827653 | Q46: 0.006901486266 | R46: 0.02040968419 | S46: 0.01567789858 | T46: 0.08422873528 | U46: 0.004034292676 | V46: 0.01282917355 | W46: 0.006214264435 | X46: 0.1688632913 | Y46: 0.02151315429 | Z46: 0.005676157707 | AA46: 0.008387168727 | AB46: 0.003145294349 | AC46: 0.01750303296 | AD46: 0.01192179687 | AE46: 0.0257112623 | AF46: 0.01548680846 | AG46: 0.02613283425 | AH46: 0.05405535342 | AI46: 0.02185955328 | AJ46: 0
B47: Mining and quarrying | C47: 0.04347270414 | D47: 1.135519775 | E47: 0.05624533303 | F47: 0.0386452211 | G47: 0.08116828698 | H47: 0.06272782974 | I47: 0.6467347929 | J47: 0.1509362919 | K47: 0.08576319098 | L47: 0.3726090528 | M47: 0.2387950525 | N47: 0.1535531187 | O47: 0.0995141479 | P47: 0.04304624412 | Q47: 0.0488844055 | R47: 0.1335362991 | S47: 0.1003153613 | T47: 0.06149642702 | U47: 0.1610544737 | V47: 0.1645084879 | W47: 0.04842003889 | X47: 0.08215458762 | Y47: 0.169418348 | Z47: 0.05499964113 | AA47: 0.05460426644 | AB47: 0.03451964615 | AC47: 0.1637197351 | AD47: 0.04730080308 | AE47: 0.08674154387 | AF47: 0.04413849044 | AG47: 0.04060581108 | AH47: 0.06449253041 | AI47: 0.05171516907 | AJ47: 0
B48: Manufacturing: Food products, beverages and tobacco | C48: 0.03751138144 | D48: 0.004158789086 | E48: 1.074497354 | F48: 0.009997136665 | G48: 0.02158364676 | H48: 0.01409305515 | I48: 0.005134620737 | J48: 0.06172026484 | K48: 0.02707345428 | L48: 0.003623440595 | M48: 0.005921148231 | N48: 0.005185912138 | O48: 0.005548856542 | P48: 0.003999865984 | Q48: 0.003673778618 | R48: 0.008493842257 | S48: 0.007022884858 | T48: 0.009104493484 | U48: 0.002166070061 | V48: 0.003489591993 | W48: 0.00536723731 | X48: 0.2594185047 | Y48: 0.02716833725 | Z48: 0.003257124914 | AA48: 0.008271251371 | AB48: 0.001695998863 | AC48: 0.02228244288 | AD48: 0.01019775953 | AE48: 0.01774500356 | AF48: 0.008653231181 | AG48: 0.007949268774 | AH48: 0.03584923522 | AI48: 0.01437528539 | AJ48: 0
B49: Manufacturing: Textiles, textile products, leather and footwear | C49: 0.00254482744 | D49: 0.0009099388077 | E49: 0.001496810384 | F49: 1.239520241 | G49: 0.004260482879 | H49: 0.00206535352 | I49: 0.0007995125245 | J49: 0.001581249422 | K49: 0.01606826608 | L49: 0.003005699504 | M49: 0.0007573677098 | N49: 0.001074084609 | O49: 0.007108384316 | P49: 0.001806566696 | Q49: 0.001256100283 | R49: 0.004473447363 | S49: 0.02234936806 | T49: 0.07763261762 | U49: 0.0003403329724 | V49: 0.001110208768 | W49: 0.0008944611597 | X49: 0.004661068277 | Y49: 0.003119615896 | Z49: 0.001596710814 | AA49: 0.0008280037582 | AB49: 0.0003947876713 | AC49: 0.01984768239 | AD49: 0.001624815234 | AE49: 0.008205864901 | AF49: 0.00228996381 | AG49: 0.001137638784 | AH49: 0.002137314598 | AI49: 0.01363353629 | AJ49: 0
B50: Manufacturing: Wood and products of wood and cork | C50: 0.0001824231325 | D50: 0.0006787788952 | E50: 0.0003101342526 | F50: 0.0002448374642 | G50: 1.036880412 | H50: 0.0003241757362 | I50: 0.0004768067865 | J50: 0.00182238864 | K50: 0.0008061370925 | L50: 0.0003976326552 | M50: 0.000315765441 | N50: 0.0002989095257 | O50: 0.00203946736 | P50: 0.001427185033 | Q50: 0.0008015122057 | R50: 0.00107500835 | S50: 0.003378520863 | T50: 0.05023222906 | U50: 0.000205205336 | V50: 0.01416237374 | W50: 0.0001909691968 | X50: 0.0005481174707 | Y50: 0.0004462187116 | Z50: 0.0003782253176 | AA50: 0.0002099695655 | AB50: 0.001511799426 | AC50: 0.000844135856 | AD50: 0.0003788594934 | AE50: 0.0005693219068 | AF50: 0.0005320486144 | AG50: 0.0006200620556 | AH50: 0.001068835148 | AI50: 0.0005915442318 | AJ50: 0
B51: Manufacturing: Pulp, paper, paper products, printing and publishing | C51: 0.004293909181 | D51: 0.004770269819 | E51: 0.008378051751 | F51: 0.005950702555 | G51: 0.02243232692 | H51: 1.454197502 | I51: 0.008280427237 | J51: 0.01591138261 | K51: 0.01070639007 | L51: 0.04149418626 | M51: 0.009589212158 | N51: 0.01530597035 | O51: 0.01173704835 | P51: 0.006954201433 | Q51: 0.0109872194 | R51: 0.01176624864 | S51: 0.01190995221 | T51: 0.02091664678 | U51: 0.004431668648 | V51: 0.007487481691 | W51: 0.01086975722 | X51: 0.007643086439 | Y51: 0.009635669289 | Z51: 0.01007931596 | AA51: 0.01075636382 | AB51: 0.003976847602 | AC51: 0.006685750971 | AD51: 0.01836579072 | AE51: 0.02938962424 | AF51: 0.0335411933 | AG51: 0.1037214825 | AH51: 0.01429244789 | AI51: 0.02948133583 | AJ51: 0
B52: Manufacturing: Coke, refined petroleum products and nuclear fuel | C52: 0.07031278489 | D52: 0.129025329 | E52: 0.09343926966 | F52: 0.06218593509 | G52: 0.1343111817 | H52: 0.1010684149 | I52: 1.154902103 | J52: 0.1124460636 | K52: 0.09237056952 | L52: 0.1331318087 | M52: 0.2024211792 | N52: 0.1493994391 | O52: 0.1071677084 | P52: 0.0681538627 | Q52: 0.07251767642 | R52: 0.1593099183 | S52: 0.1351077993 | T52: 0.0807002844 | U52: 0.2841113495 | V52: 0.1155938088 | W52: 0.08408157675 | X52: 0.1380662944 | Y52: 0.2960165029 | Z52: 0.09317255176 | AA52: 0.09451947555 | AB52: 0.03184173151 | AC52: 0.2871889462 | AD52: 0.07986414967 | AE52: 0.1367917341 | AF52: 0.07001966459 | AG52: 0.06315328377 | AH52: 0.07795473261 | AI52: 0.07010933815 | AJ52: 0
B53: Manufacturing: Chemicals and chemical products | C53: 0.05801389661 | D53: 0.04527713675 | E53: 0.03715226022 | F53: 0.05250716182 | G53: 0.05601602569 | H53: 0.0800891701 | I53: 0.0586048833 | J53: 1.357029244 | K53: 0.5197202868 | L53: 0.03357794965 | M53: 0.0323113855 | N53: 0.03719805187 | O53: 0.06502906342 | P53: 0.02628645752 | Q53: 0.0235334275 | R53: 0.09447296101 | S53: 0.05366044393 | T53: 0.09340677047 | U53: 0.02474937123 | V53: 0.02590430314 | W53: 0.01172753182 | X53: 0.03179288912 | Y53: 0.03769151441 | Z53: 0.0159698518 | AA53: 0.01356121681 | AB53: 0.007451646115 | AC53: 0.03107164305 | AD53: 0.02650113987 | AE53: 0.1060110893 | AF53: 0.04188876076 | AG53: 0.03615298254 | AH53: 0.301473275 | AI53: 0.04903082363 | AJ53: 0
B54: Manufacturing: Rubber and plastics products | C54: 0.006155384662 | D54: 0.00763990621 | E54: 0.01363674738 | F54: 0.0044014488 | G54: 0.01133473699 | H54: 0.009489713347 | I54: 0.005937115197 | J54: 0.02041839221 | K54: 1.049863152 | L54: 0.006347277005 | M54: 0.004236796162 | N54: 0.008632555838 | O54: 0.05321748748 | P54: 0.01255230514 | Q54: 0.01102540669 | R54: 0.1324498831 | S54: 0.01613398232 | T54: 0.06789961108 | U54: 0.002274249477 | V54: 0.0114445402 | W54: 0.003322400908 | X54: 0.007876773492 | Y54: 0.02922185643 | Z54: 0.008262892113 | AA54: 0.003664638499 | AB54: 0.001661519947 | AC54: 0.01041859293 | AD54: 0.004722593656 | AE54: 0.02450508307 | AF54: 0.007582780043 | AG54: 0.005933950872 | AH54: 0.009781091546 | AI54: 0.009620065838 | AJ54: 0
B55: Manufacturing: Other non-metallic mineral products | C55: 0.001795563632 | D55: 0.005869308806 | E55: 0.004333582735 | F55: 0.001974921244 | G55: 0.002944297148 | H55: 0.003117679512 | I55: 0.004415940679 | J55: 0.02726288826 | K55: 0.01114219715 | L55: 1.103800832 | M55: 0.006446970827 | N55: 0.005278599454 | O55: 0.01789662384 | P55: 0.005184335013 | Q55: 0.003842474846 | R55: 0.01187131628 | S55: 0.0067979051 | T55: 0.0140805421 | U55: 0.003949840022 | V55: 0.09406557918 | W55: 0.001848680189 | X55: 0.007280985648 | Y55: 0.003545935485 | Z55: 0.003315405139 | AA55: 0.002181686977 | AB55: 0.03451839288 | AC55: 0.00265840515 | AD55: 0.002463174669 | AE55: 0.005851134082 | AF55: 0.004300390789 | AG55: 0.005218040434 | AH55: 0.009108323675 | AI55: 0.01687603943 | AJ55: 0
B56: Manufacturing: Basic metals | C56: 0.009603776864 | D56: 0.0358719748 | E56: 0.01611997451 | F56: 0.007359305495 | G56: 0.03775021501 | H56: 0.01558377159 | I56: 0.04858596162 | J56: 0.0452969613 | K56: 0.02190548648 | L56: 0.02896262976 | M56: 1.881445646 | N56: 1.014769068 | O56: 0.474419441 | P56: 0.03344420112 | Q56: 0.09038066667 | R56: 0.5525121696 | S56: 0.2921626126 | T56: 0.08850455493 | U56: 0.01772849519 | V56: 0.1324228472 | W56: 0.006491584772 | X56: 0.02439779394 | Y56: 0.03181397283 | Z56: 0.01287386566 | AA56: 0.007525462536 | AB56: 0.01487677229 | AC56: 0.03237734236 | AD56: 0.009730689714 | AE56: 0.03958217725 | AF56: 0.01042302439 | AG56: 0.01122682879 | AH56: 0.01705418253 | AI56: 0.0152199482 | AJ56: 0
B57: Manufacturing: Fabricated metal products | C57: 0.006138913698 | D57: 0.01370586064 | E57: 0.01203206257 | F57: 0.003997378759 | G57: 0.02506786495 | H57: 0.008799492275 | I57: 0.01306867961 | J57: 0.03620413264 | K57: 0.01563236558 | L57: 0.007882415652 | M57: 0.03782195648 | N57: 1.048699392 | O57: 0.07890640374 | P57: 0.008398577115 | Q57: 0.01806728338 | R57: 0.02678917251 | S57: 0.0278700004 | T57: 0.02320567657 | U57: 0.007099597455 | V57: 0.02597872441 | W57: 0.002732533965 | X57: 0.01795584732 | Y57: 0.0135356268 | Z57: 0.00674916547 | AA57: 0.003181561791 | AB57: 0.004079408909 | AC57: 0.0065288927 | AD57: 0.003796177989 | AE57: 0.02048497556 | AF57: 0.004348353187 | AG57: 0.005539646135 | AH57: 0.01133027211 | AI57: 0.006536295905 | AJ57: 0
B58: Manufacturing: Machinery and equipment not classified elsewhere | C58: 0.002461721503 | D58: 0.02656370445 | E58: 0.002615415046 | F58: 0.00219593755 | G58: 0.02149124079 | H58: 0.003460876072 | I58: 0.0177418721 | J58: 0.006080950362 | K58: 0.003813855753 | L58: 0.01089495199 | M58: 0.0110176498 | N58: 0.008066629067 | O58: 1.027786528 | P58: 0.003933436059 | Q58: 0.01091147924 | R58: 0.01082984413 | S58: 0.03353944986 | T58: 0.01016109378 | U58: 0.006517802094 | V58: 0.008488284053 | W58: 0.001798883919 | X58: 0.005723689514 | Y58: 0.01857206804 | Z58: 0.003256136972 | AA58: 0.00207892394 | AB58: 0.001456302525 | AC58: 0.01319971292 | AD58: 0.002485791497 | AE58: 0.009362029157 | AF58: 0.002138662888 | AG58: 0.001982013222 | AH58: 0.002922126169 | AI58: 0.006163198438 | AJ58: 0
B59: Manufacturing: Computer, Electronic and optical equipment | C59: 0.005649072133 | D59: 0.02394473686 | E59: 0.006206530788 | F59: 0.007124645458 | G59: 0.01210687195 | H59: 0.009907257257 | I59: 0.0182130514 | J59: 0.01182937424 | K59: 0.009979354045 | L59: 0.0128620756 | M59: 0.01474869571 | N59: 0.01289954423 | O59: 0.0973149089 | P59: 2.103585971 | Q59: 0.9400444689 | R59: 0.2074565041 | S59: 0.03913131867 | T59: 0.01120025736 | U59: 0.02600843052 | V59: 0.0191255757 | W59: 0.008296777249 | X59: 0.01077842944 | Y59: 0.07621144361 | Z59: 0.07689709667 | AA59: 0.01196992857 | AB59: 0.00462862121 | AC59: 0.01790972793 | AD59: 0.1281423303 | AE59: 0.02677061734 | AF59: 0.04950451523 | AG59: 0.02134851863 | AH59: 0.02803747 | AI59: 0.1210404998 | AJ59: 0
B60: Manufacturing: Electrical machinery and apparatus not classified elsewhere | C60: 0.0005314855199 | D60: 0.008864676852 | E60: 0.0007495480035 | F60: 0.0006612544642 | G60: 0.001532022197 | H60: 0.001016692355 | I60: 0.00515698966 | J60: 0.001700361517 | K60: 0.00123884906 | L60: 0.003428513484 | M60: 0.002839764025 | N60: 0.00205112871 | O60: 0.004703130257 | P60: 0.00163710157 | Q60: 1.012114845 | R60: 0.002076961962 | S60: 0.004347303502 | T60: 0.001939536542 | U60: 0.001622599936 | V60: 0.001881877527 | W60: 0.0005240049738 | X60: 0.0009399855158 | Y60: 0.003114247728 | Z60: 0.001661950228 | AA60: 0.0006489816118 | AB60: 0.0003876163277 | AC60: 0.004548278392 | AD60: 0.00224194647 | AE60: 0.003037078147 | AF60: 0.001109975261 | AG60: 0.000885142426 | AH60: 0.0009262106136 | AI60: 0.002827850926 | AJ60: 0
B61: Manufacturing: Motor vehicles, trailers and semi-trailers | C61: 0.0004041752628 | D61: 0.001220510021 | E61: 0.000420887365 | F61: 0.0004761515642 | G61: 0.0007983563853 | H61: 0.0005762909278 | I61: 0.0009494214316 | J61: 0.000683205347 | K61: 0.00063910821 | L61: 0.0006787810612 | M61: 0.001417130396 | N61: 0.001092816825 | O61: 0.0009237772838 | P61: 0.0006970205504 | Q61: 0.0006894016853 | R61: 1.107008842 | S61: 0.002449918662 | T61: 0.0007191418489 | U61: 0.0009637675515 | V61: 0.0005551422236 | W61: 0.0007029240531 | X61: 0.0004907830921 | Y61: 0.004992631862 | Z61: 0.0007474634109 | AA61: 0.0003241247548 | AB61: 0.0001534615594 | AC61: 0.01616477251 | AD61: 0.001584717124 | AE61: 0.001572882522 | AF61: 0.001012508455 | AG61: 0.0006441025474 | AH61: 0.000483702111 | AI61: 0.0008386834619 | AJ61: 0
B62: Manufacturing: Other transport equipment | C62: 2.80980714e-05 | D62: 9.617570024e-05 | E62: 3.597098552e-05 | F62: 2.106518251e-05 | G62: 3.885946653e-05 | H62: 5.027985216e-05 | I62: 7.305126458e-05 | J62: 6.917104201e-05 | K62: 9.316787944e-05 | L62: 4.331994452e-05 | M62: 9.979429193e-05 | N62: 0.0001397111131 | O62: 0.000245990089 | P62: 0.0004812688531 | Q62: 0.0004318568899 | R62: 0.0001822134203 | S62: 1.566013228 | T62: 3.815740218e-05 | U62: 4.046572615e-05 | V62: 5.762979509e-05 | W62: 3.361578537e-05 | X62: 7.854987157e-05 | Y62: 0.0001104933485 | Z62: 0.0001275589902 | AA62: 4.593577101e-05 | AB62: 2.330663181e-05 | AC62: 4.531331709e-05 | AD62: 6.193401967e-05 | AE62: 0.0001356187353 | AF62: 8.891189638e-05 | AG62: 3.930484895e-05 | AH62: 6.365877575e-05 | AI62: 0.001566000341 | AJ62: 0
B63: Manufacturing not classified elsewhere; recycling | C63: 0.0003581230852 | D63: 0.0006790813086 | E63: 0.0004599887418 | F63: 0.0020124095 | G63: 0.001067090997 | H63: 0.00141305447 | I63: 0.0006759133617 | J63: 0.0009458038686 | K63: 0.0008723786005 | L63: 0.0006023412241 | M63: 0.001118971065 | N63: 0.00177832833 | O63: 0.001586732384 | P63: 0.01312394881 | Q63: 0.00657324722 | R63: 0.003015704883 | S63: 0.002981223971 | T63: 1.034225971 | U63: 0.0005405321329 | V63: 0.0008710387635 | W63: 0.0009344859024 | X63: 0.00320978937 | Y63: 0.001424521437 | Z63: 0.002900264879 | AA63: 0.00123456146 | AB63: 0.0003586716609 | AC63: 0.0007456736858 | AD63: 0.004368550774 | AE63: 0.003153970895 | AF63: 0.002735154199 | AG63: 0.004558336937 | AH63: 0.01148001067 | AI63: 0.004085309438 | AJ63: 0
B64: Electricity, gas and water supply | C64: 0.01609826897 | D64: 0.02993211414 | E64: 0.02799826937 | F64: 0.02827899399 | G64: 0.06932174898 | H64: 0.0426778249 | I64: 0.02697122249 | J64: 0.04532020401 | K64: 0.0313366021 | L64: 0.041766175 | M64: 0.1128584977 | N64: 0.0843274148 | O64: 0.05382400592 | P64: 0.02788201845 | Q64: 0.03789726914 | R64: 0.06718102544 | S64: 0.06799170466 | T64: 0.04985177507 | U64: 1.076503606 | V64: 0.02467511558 | W64: 0.03832245344 | X64: 0.04508132107 | Y64: 0.02669226345 | Z64: 0.03459228072 | AA64: 0.03265565927 | AB64: 0.008680030923 | AC64: 0.03269896363 | AD64: 0.05654710764 | AE64: 0.06923691809 | AF64: 0.03717234142 | AG64: 0.05325821565 | AH64: 0.06064171362 | AI64: 0.05380064605 | AJ64: 0
B65: Construction | C65: 0.002497566116 | D65: 0.02474204738 | E65: 0.003790236432 | F65: 0.003595780078 | G65: 0.006828499628 | H65: 0.005350973762 | I65: 0.01522868552 | J65: 0.007064196305 | K65: 0.004820269318 | L65: 0.01046502152 | M65: 0.008792276603 | N65: 0.006848578791 | O65: 0.00672389978 | P65: 0.00347460713 | Q65: 0.006382657714 | R65: 0.006849420981 | S65: 0.01413646597 | T65: 0.008225482655 | U65: 0.006850235929 | V65: 1.012065539 | W65: 0.004937524039 | X65: 0.005911160048 | Y65: 0.009302174557 | Z65: 0.01090126453 | AA65: 0.007078775816 | AB65: 0.09128112557 | AC65: 0.006117329203 | AD65: 0.004452482362 | AE65: 0.01095279873 | AF65: 0.01693739797 | AG65: 0.02257721924 | AH65: 0.006823261842 | AI65: 0.01651747822 | AJ65: 0
B66: Wholesale and retail trade; repairs | C66: 0.07305531154 | D66: 0.08310574659 | E66: 0.1567477458 | F66: 0.2209556801 | G66: 0.2006802396 | H66: 0.1927041234 | I66: 0.1981868846 | J66: 0.2134915412 | K66: 0.2245740304 | L66: 0.1569411297 | M66: 0.1846127527 | N66: 0.1815182762 | O66: 0.1584108916 | P66: 0.2661780389 | Q66: 0.2404640968 | R66: 0.2221636679 | S66: 0.1553697866 | T66: 0.1800016626 | U66: 0.08705653794 | V66: 0.1103598554 | W66: 1.05232666 | X66: 0.1798009833 | Y66: 0.1467598443 | Z66: 0.05946781002 | AA66: 0.04096744456 | AB66: 0.02800961839 | AC66: 0.152686453 | AD66: 0.08511940849 | AE66: 0.1088638695 | AF66: 0.06292598883 | AG66: 0.06426214008 | AH66: 0.1458415734 | AI66: 0.09699309747 | AJ66: 0
B67: Hotels and restaurants | C67: 0.003777863165 | D67: 0.006441953188 | E67: 0.00476984961 | F67: 0.006453338492 | G67: 0.006953342385 | H67: 0.006122798979 | I67: 0.007117425893 | J67: 0.01154803379 | K67: 0.008584275836 | L67: 0.005233098514 | M67: 0.01434901464 | N67: 0.01039100245 | O67: 0.007404991354 | P67: 0.00779014915 | Q67: 0.007160592321 | R67: 0.01238681375 | S67: 0.01225800142 | T67: 0.008255228981 | U67: 0.002983125872 | V67: 0.006284353951 | W67: 0.01424332486 | X67: 1.005811726 | Y67: 0.05142138282 | Z67: 0.006619287003 | AA67: 0.02827089321 | AB67: 0.004492235169 | AC67: 0.01787076928 | AD67: 0.02572447986 | AE67: 0.0381557564 | AF67: 0.01931223551 | AG67: 0.01980513868 | AH67: 0.02084069291 | AI67: 0.03119262911 | AJ67: 0
B68: Transport and storage | C68: 0.01067236533 | D68: 0.01187944936 | E68: 0.02151901916 | F68: 0.02694438357 | G68: 0.03461769944 | H68: 0.03138674192 | I68: 0.02580646661 | J68: 0.03120706182 | K68: 0.03178612812 | L68: 0.02192233849 | M68: 0.0367087558 | N68: 0.03326343517 | O68: 0.02634936131 | P68: 0.02936203986 | Q68: 0.02858107846 | R68: 0.04404162198 | S68: 0.02721832143 | T68: 0.02521146282 | U68: 0.01213177679 | V68: 0.01561381112 | W68: 0.01080036011 | X68: 0.02129717297 | Y68: 1.018725037 | Z68: 0.007643783644 | AA68: 0.005040540916 | AB68: 0.003656746699 | AC68: 0.02806705423 | AD68: 0.009680267224 | AE68: 0.01470445335 | AF68: 0.00892798533 | AG68: 0.009698650336 | AH68: 0.01985165403 | AI68: 0.01921757847 | AJ68: 0
B69: Post and telecommunications | C69: 0.002850665501 | D69: 0.003771332478 | E69: 0.004565226651 | F69: 0.007424587818 | G69: 0.008948378482 | H69: 0.006847103619 | I69: 0.005807635399 | J69: 0.006944217071 | K69: 0.007037223852 | L69: 0.004974532241 | M69: 0.006390096797 | N69: 0.006236164692 | O69: 0.009031132072 | P69: 0.007911944382 | Q69: 0.01138587463 | R69: 0.008094351412 | S69: 0.01204721667 | T69: 0.006886752333 | U69: 0.002647264747 | V69: 0.005039592301 | W69: 0.02249448087 | X69: 0.00575508945 | Y69: 0.006891580893 | Z69: 1.027700328 | AA69: 0.01526950877 | AB69: 0.002001607864 | AC69: 0.006493628714 | AD69: 0.01401412684 | AE69: 0.01586312548 | AF69: 0.0129531957 | AG69: 0.008528211663 | AH69: 0.007557933016 | AI69: 0.01376554748 | AJ69: 0
B70: Financial intermediation | C70: 0.02059011285 | D70: 0.02471644844 | E70: 0.02510689808 | F70: 0.03787840481 | G70: 0.04525894179 | H70: 0.03081956509 | I70: 0.03527083296 | J70: 0.03754778136 | K70: 0.03576915921 | L70: 0.02471203937 | M70: 0.04565216353 | N70: 0.03688288717 | O70: 0.03536015267 | P70: 0.03383309207 | Q70: 0.04849004718 | R70: 0.04485335319 | S70: 0.06476889493 | T70: 0.04403261053 | U70: 0.02324026142 | V70: 0.03297711959 | W70: 0.07667257283 | X70: 0.03024849615 | Y70: 0.04695352917 | Z70: 0.0643234403 | AA70: 1.057057351 | AB70: 0.02020995686 | AC70: 0.03704336331 | AD70: 0.02708943812 | AE70: 0.03312077219 | AF70: 0.08063446607 | AG70: 0.02436990386 | AH70: 0.02467823561 | AI70: 0.03516402754 | AJ70: 0
B71: Real estate activities | C71: 0.004255647741 | D71: 0.0123406225 | E71: 0.006640334109 | F71: 0.009869071226 | G71: 0.0133532464 | H71: 0.01577550987 | I71: 0.01060147311 | J71: 0.01302259223 | K71: 0.01072218645 | L71: 0.01033587129 | M71: 0.0102342364 | N71: 0.01323307072 | O71: 0.01506646516 | P71: 0.01179324858 | Q71: 0.0176906952 | R71: 0.01423577728 | S71: 0.02357961588 | T71: 0.02216445285 | U71: 0.004143963082 | V71: 0.007122846574 | W71: 0.01796489571 | X71: 0.01651254835 | Y71: 0.02334901621 | Z71: 0.03916818071 | AA71: 0.02559813278 | AB71: 1.005972342 | AC71: 0.0182882248 | AD71: 0.02137438551 | AE71: 0.04083616641 | AF71: 0.01459568129 | AG71: 0.01616909813 | AH71: 0.01068667453 | AI71: 0.05826160941 | AJ71: 0
B72: Renting of machinery and equipment | C72: 0.00658587407 | D72: 0.001888723765 | E72: 0.003944978497 | F72: 0.003019680535 | G72: 0.007691090232 | H72: 0.003590046953 | I72: 0.002278877514 | J72: 0.003196414235 | K72: 0.004438257421 | L72: 0.002525663883 | M72: 0.00356480812 | N72: 0.005290623521 | O72: 0.003306795893 | P72: 0.002517399512 | Q72: 0.002410346823 | R72: 0.004488578449 | S72: 0.006841351099 | T72: 0.003576131434 | U72: 0.001034039839 | V72: 0.005552219791 | W72: 0.003990444493 | X72: 0.003571451539 | Y72: 0.02936068695 | Z72: 0.02038615109 | AA72: 0.004584670644 | AB72: 0.0009211492076 | AC72: 1.029301024 | AD72: 0.003647728706 | AE72: 0.004830645308 | AF72: 0.003937844267 | AG72: 0.005135133179 | AH72: 0.004132541414 | AI72: 0.005774212865 | AJ72: 0
B73: Computer and related activities | C73: 0.007872996563 | D73: 0.03178101177 | E73: 0.006494641395 | F73: 0.005355997338 | G73: 0.01052901343 | H73: 0.009709077678 | I73: 0.02065297009 | J73: 0.009593894037 | K73: 0.009165635092 | L73: 0.01322376651 | M73: 0.01527196242 | N73: 0.01232834023 | O73: 0.008791069311 | P73: 0.008441333364 | Q73: 0.007419926377 | R73: 0.02285553646 | S73: 0.02294714983 | T73: 0.006869647558 | U73: 0.005982097347 | V73: 0.007793175527 | W73: 0.00773005227 | X73: 0.008203177483 | Y73: 0.02222929849 | Z73: 0.04733494912 | AA73: 0.02793694858 | AB73: 0.003895205014 | AC73: 0.01027936123 | AD73: 1.337557562 | AE73: 0.03549360872 | AF73: 0.04662913331 | AG73: 0.03217616986 | AH73: 0.01464307393 | AI73: 0.03220733752 | AJ73: 0
B74: R&D and other business activities | C74: 0.03317892796 | D74: 0.05587318511 | E74: 0.02316786647 | F74: 0.01697981316 | G74: 0.03464201032 | H74: 0.02023891218 | I74: 0.03653088068 | J74: 0.02561874415 | K74: 0.03407732799 | L74: 0.02590480706 | M74: 0.02287917737 | N74: 0.0208565872 | O74: 0.01903590643 | P74: 0.02095565693 | Q74: 0.01659758127 | R74: 0.02768173411 | S74: 0.04572646188 | T74: 0.01726041645 | U74: 0.01177208106 | V74: 0.02373790549 | W74: 0.01710397584 | X74: 0.0262085299 | Y74: 0.02900732635 | Z74: 0.03284111988 | AA74: 0.03228145815 | AB74: 0.009303274688 | AC74: 0.0203146844 | AD74: 0.03587490087 | AE74: 1.054811104 | AF74: 0.04744128944 | AG74: 0.02840094725 | AH74: 0.01597116812 | AI74: 0.0499379668 | AJ74: 0
B75: Public administration and defence; compulsory social security | C75: 0.0001736511146 | D75: 0.0002368810234 | E75: 0.0002583047631 | F75: 0.0002869917096 | G75: 0.0004219228957 | H75: 0.001013058101 | I75: 0.000255688324 | J75: 0.0005650248025 | K75: 0.0005823396396 | L75: 0.0002625098187 | M75: 0.0003294214702 | N75: 0.000652069851 | O75: 0.0005525361609 | P75: 0.0004533466298 | Q75: 0.0004549545945 | R75: 0.0004015449935 | S75: 0.004688128873 | T75: 0.0004686955351 | U75: 0.0001117998887 | V75: 0.0002247273735 | W75: 0.0004183279066 | X75: 0.0008813367005 | Y75: 0.0005912193294 | Z75: 0.001259330895 | AA75: 0.0005511253345 | AB75: 0.0003024733405 | AC75: 0.0003729259668 | AD75: 0.0005789249624 | AE75: 0.001420267331 | AF75: 1.000955981 | AG75: 0.0004124028423 | AH75: 0.0004896441214 | AI75: 0.02731009013 | AJ75: 0
B76: Education | C76: 0.0003450113974 | D76: 0.0007352778535 | E76: 0.0003110381392 | F76: 0.0004541221326 | G76: 0.0004706075605 | H76: 0.0005964276579 | I76: 0.0005396122928 | J76: 0.0004965418343 | K76: 0.0005350531682 | L76: 0.001043688257 | M76: 0.0004240322587 | N76: 0.0005032189494 | O76: 0.000484351266 | P76: 0.0008336330299 | Q76: 0.0005998076671 | R76: 0.00349985712 | S76: 0.002320708569 | T76: 0.001839220441 | U76: 0.0001907282321 | V76: 0.0003923551333 | W76: 0.0005166432193 | X76: 0.000609313868 | Y76: 0.0006408615378 | Z76: 0.009313631196 | AA76: 0.0008884517067 | AB76: 0.001322832115 | AC76: 0.00104622381 | AD76: 0.004260729922 | AE76: 0.006718171696 | AF76: 0.08649249285 | AG76: 1.000607999 | AH76: 0.004585332595 | AI76: 0.01108186497 | AJ76: 0
B77: Health and social work | C77: 0.003030326535 | D77: 0.002963558048 | E77: 0.00158959206 | F77: 0.0009900153138 | G77: 0.002150209995 | H77: 0.001660979928 | I77: 0.001917696903 | J77: 0.001444190453 | K77: 0.001431286231 | L77: 0.001314906546 | M77: 0.001147083992 | N77: 0.00122985151 | O77: 0.001059817886 | P77: 0.001489144385 | Q77: 0.001100289397 | R77: 0.001303540489 | S77: 0.004559561402 | T77: 0.001582300678 | U77: 0.0005909144782 | V77: 0.0009620752848 | W77: 0.0008733264669 | X77: 0.001631814692 | Y77: 0.002080869789 | Z77: 0.003147269088 | AA77: 0.002579233754 | AB77: 0.002039593456 | AC77: 0.006268911017 | AD77: 0.007888553536 | AE77: 0.01883973446 | AF77: 0.07064495226 | AG77: 0.01784061604 | AH77: 1.0039909 | AI77: 0.02081683972 | AJ77: 0
B78: Other community, social and personal services | C78: 0.003848367999 | D78: 0.005804210058 | E78: 0.005330238452 | F78: 0.006398949163 | G78: 0.007705403841 | H78: 0.02358485192 | I78: 0.00673310541 | J78: 0.01628938348 | K78: 0.01542774056 | L78: 0.006183752569 | M78: 0.009330392059 | N78: 0.0220915467 | O78: 0.01878701383 | P78: 0.01316752371 | Q78: 0.01340991896 | R78: 0.01068617939 | S78: 0.1821134636 | T78: 0.01143595599 | U78: 0.003012500975 | V78: 0.006224812759 | W78: 0.01454302608 | X78: 0.03084204938 | Y78: 0.02026748559 | Z78: 0.04762526783 | AA78: 0.01955187885 | AB78: 0.0112160007 | AC78: 0.0133306738 | AD78: 0.01754010967 | AE78: 0.05169366283 | AF78: 0.03377191252 | AG78: 0.01129929851 | AH78: 0.01471593831 | AI78: 1.095567475 | AJ78: 0
B79: Private households with employed persons | C79: 0 | D79: 0 | E79: 0 | F79: 0 | G79: 0 | H79: 0 | I79: 0 | J79: 0 | K79: 0 | L79: 0 | M79: 0 | N79: 0 | O79: 0 | P79: 0 | Q79: 0 | R79: 0 | S79: 0 | T79: 0 | U79: 0 | V79: 0 | W79: 0 | X79: 0 | Y79: 0 | Z79: 0 | AA79: 0 | AB79: 0 | AC79: 0 | AD79: 0 | AE79: 0 | AF79: 0 | AG79: 0 | AH79: 0 | AI79: 0 | AJ79: 1
B81: Total Requirements - Type 2
C82: Agriculture, hunting, forestry and fishing | D82: Mining and quarrying | E82: Manufacturing: Food products, beverages and tobacco | F82: Manufacturing: Textiles, textile products, leather and footwear | G82: Manufacturing: Wood and products of wood and cork | H82: Manufacturing: Pulp, paper, paper products, printing and publishing | I82: Manufacturing: Coke, refined petroleum products and nuclear fuel | J82: Manufacturing: Chemicals and chemical products | K82: Manufacturing: Rubber and plastics products | L82: Manufacturing: Other non-metallic mineral products | M82: Manufacturing: Basic metals | N82: Manufacturing: Fabricated metal products | O82: Manufacturing: Machinery and equipment not classified elsewhere | P82: Manufacturing: Computer, Electronic and optical equipment | Q82: Manufacturing: Electrical machinery and apparatus not classified elsewhere | R82: Manufacturing: Motor vehicles, trailers and semi-trailers | S82: Manufacturing: Other transport equipment | T82: Manufacturing not classified elsewhere; recycling | U82: Electricity, gas and water supply | V82: Construction | W82: Wholesale and retail trade; repairs | X82: Hotels and restaurants | Y82: Transport and storage | Z82: Post and telecommunications | AA82: Financial intermediation | AB82: Real estate activities | AC82: Renting of machinery and equipment | AD82: Computer and related activities | AE82: R&D and other business activities | AF82: Public administration and defence; compulsory social security | AG82: Education | AH82: Health and social work | AI82: Other community, social and personal services | AJ82: Private households with employed persons | AK82: Personal Consumption Expenditures
B83: Agriculture, hunting, forestry and fishing | C83: 1.163595755 | D83: 0.07202666302 | E83: 0.4924155848 | F83: 0.25278295 | G83: 0.6028517199 | H83: 0.3340709964 | I83: 0.06413299284 | J83: 0.1956996906 | K83: 0.1665741742 | L83: 0.07050928412 | M83: 0.06579178164 | N83: 0.07305710411 | O83: 0.07994967316 | P83: 0.08440786851 | Q83: 0.0794497307 | R83: 0.08041346323 | S83: 0.09102043068 | T83: 0.1567465646 | U83: 0.05826020363 | V83: 0.0846838527 | W83: 0.06402485438 | X83: 0.2455321209 | Y83: 0.100929519 | Z83: 0.06172323433 | AA83: 0.06436762331 | AB83: 0.02144545208 | AC83: 0.08505082913 | AD83: 0.09785444196 | AE83: 0.1143900795 | AF83: 0.1874325208 | AG83: 0.177746708 | AH83: 0.1753410666 | AI83: 0.1798406904 | AJ83: 0 | AK83: 0.2733963736
B84: Mining and quarrying | C84: 0.07208874174 | D84: 1.160678172 | E84: 0.07903024478 | F84: 0.06757266381 | G84: 0.1074786824 | H84: 0.08977496899 | I84: 0.6681137921 | J84: 0.1754226335 | K84: 0.1112581035 | L84: 0.3951490512 | M84: 0.2612699265 | N84: 0.1784230853 | O84: 0.125097369 | P84: 0.07300060089 | Q84: 0.07704439884 | R84: 0.1568270903 | S84: 0.1295599725 | T84: 0.08964461457 | U84: 0.1821025542 | V84: 0.1923992701 | W84: 0.07085953196 | X84: 0.1119140084 | Y84: 0.2002442394 | Z84: 0.07675461696 | AA84: 0.07633338257 | AB84: 0.04162295132 | AC84: 0.1899387774 | AD84: 0.08065602391 | AE84: 0.1211627062 | AF84: 0.1108801484 | AG84: 0.09945555594 | AH84: 0.1115702358 | AI84: 0.1130364016 | AJ84: 0 | AK84: 0.1061202806
B85: Manufacturing: Food products, beverages and tobacco | C85: 0.09841868787 | D85: 0.05770674056 | E85: 1.122993503 | F85: 0.07156724788 | G85: 0.07758354929 | H85: 0.07166106725 | I85: 0.05063837893 | J85: 0.1138377918 | K85: 0.08133765638 | L85: 0.05159830738 | M85: 0.05375740208 | N85: 0.05811995895 | O85: 0.06000101762 | P85: 0.06775569453 | Q85: 0.06361042561 | R85: 0.05806672098 | S85: 0.06926806784 | T85: 0.06901601264 | U85: 0.0469654902 | V85: 0.06285324128 | W85: 0.0531281852 | X85: 0.3227594251 | Y85: 0.09277916845 | Z85: 0.04956112404 | AA85: 0.05452020985 | AB85: 0.01681490494 | AC85: 0.07808790648 | AD85: 0.0811920979 | AE85: 0.09100812663 | AF85: 0.1507083497 | AG85: 0.1332069824 | AH85: 0.1360509566 | AI85: 0.144893394 | AJ85: 0 | AK85: 0.2258698616
B86: Manufacturing: Textiles, textile products, leather and footwear | C86: 0.01217577522 | D86: 0.009377191007 | E86: 0.009165247862 | F86: 1.249255994 | G86: 0.01311544903 | H86: 0.01116827648 | I86: 0.00799477931 | J86: 0.009822316213 | K86: 0.02464877518 | L86: 0.01059170952 | M86: 0.008321459602 | N86: 0.009444263336 | O86: 0.01571861436 | P86: 0.0118879361 | Q86: 0.01073356286 | R86: 0.01231214249 | S86: 0.03219186713 | T86: 0.08710610687 | U86: 0.007424226535 | V86: 0.01049706627 | W86: 0.008446645323 | X86: 0.01467683047 | Y86: 0.01349430698 | Z86: 0.008918515432 | AA86: 0.008141105093 | AB86: 0.002785459718 | AC86: 0.02867190296 | AD86: 0.01285077162 | AE86: 0.01979057212 | AF86: 0.02475238267 | AG86: 0.02094397352 | AH86: 0.01798167881 | AI86: 0.03427166925 | AJ86: 0 | AK86: 0.03571559751
B87: Manufacturing: Wood and products of wood and cork | C87: 0.0006734321536 | D87: 0.0011104599 | E87: 0.0007010897501 | F87: 0.0007411897381 | G87: 1.03733186 | H87: 0.0007882647747 | I87: 0.0008436388971 | J87: 0.002242538165 | K87: 0.001243592208 | L87: 0.0007843858013 | M87: 0.0007014011481 | N87: 0.00072564149 | O87: 0.002478437722 | P87: 0.001941157638 | Q87: 0.00128469618 | R87: 0.001474643994 | S87: 0.003880315281 | T87: 0.05071521046 | U87: 0.0005663593703 | V87: 0.01464093844 | W87: 0.0005759978189 | X87: 0.001058745262 | Y87: 0.0009751455661 | Z87: 0.0007515086332 | AA87: 0.0005828091666 | AB87: 0.001633681672 | AC87: 0.001294015972 | AD87: 0.0009511859126 | AE87: 0.001159938312 | AF87: 0.001677237079 | AG87: 0.001629836925 | AH87: 0.001876619173 | AI87: 0.001643726187 | AJ87: 0 | AK87: 0.00182086758
B88: Manufacturing: Pulp, paper, paper products, printing and publishing | C88: 0.0137502378 | D88: 0.01308400188 | E88: 0.01590745244 | F88: 0.01550993673 | G88: 0.03112674328 | H88: 1.463135379 | I88: 0.01534523631 | J88: 0.02400303024 | K88: 0.01913132555 | L88: 0.04894265398 | M88: 0.01701615915 | N88: 0.02352438898 | O88: 0.02019116592 | P88: 0.01685278506 | Q88: 0.02029284567 | R88: 0.01946282003 | S88: 0.02157399647 | T88: 0.03021837176 | U88: 0.01138712381 | V88: 0.01670414565 | W88: 0.01828501238 | X88: 0.01747725238 | Y88: 0.01982225637 | Z88: 0.01726836861 | AA88: 0.01793687098 | AB88: 0.006324174263 | AC88: 0.01534997918 | AD88: 0.02938820878 | AE88: 0.0407642886 | AF88: 0.05559634501 | AG88: 0.1231687077 | AH88: 0.0298495372 | AI88: 0.04974527784 | AJ88: 0 | AK88: 0.03506803637
B89: Manufacturing: Coke, refined petroleum products and nuclear fuel | C89: 0.1109324492 | D89: 0.1647369692 | E89: 0.1257818141 | F89: 0.1032476302 | G89: 0.1716580515 | H89: 0.139461072 | I89: 1.185248994 | J89: 0.14720374 | K89: 0.1285598841 | L89: 0.1651267055 | M89: 0.2343236337 | N89: 0.1847016605 | O89: 0.1434823746 | P89: 0.1106732336 | Q89: 0.1124899987 | R89: 0.1923705445 | S89: 0.1766197062 | T89: 0.1206558487 | U89: 0.3139885106 | V89: 0.1551839934 | W89: 0.115933809 | X89: 0.1803089591 | Y89: 0.3397729927 | Z89: 0.124053131 | AA89: 0.1253633476 | AB89: 0.04192467436 | AC89: 0.3244061428 | AD89: 0.1272109519 | AE89: 0.1856516105 | AF89: 0.1647575797 | AG89: 0.1466888492 | AH89: 0.1447802175 | AI89: 0.1571531112 | AJ89: 0 | AK89: 0.1506347677
B90: Manufacturing: Chemicals and chemical products | C90: 0.08440994014 | D90: 0.06848377879 | E90: 0.05816954887 | F90: 0.07919045206 | G90: 0.08028529569 | H90: 0.1050380283 | I90: 0.07832532823 | J90: 1.379615968 | K90: 0.543237338 | L90: 0.05436932504 | M90: 0.05304268873 | N90: 0.06013863955 | O90: 0.08862757234 | P90: 0.0539169952 | Q90: 0.04950880608 | R90: 0.1159568837 | S90: 0.08063629716 | T90: 0.1193712591 | U90: 0.04416456972 | V90: 0.05163135564 | W90: 0.03242619892 | X90: 0.05924361368 | Y90: 0.06612597421 | Z90: 0.03603710559 | AA90: 0.03360461706 | AB90: 0.01400388633 | AC90: 0.05525664699 | AD90: 0.05726870711 | AE90: 0.1377619037 | AF90: 0.1034526898 | AG90: 0.0904372426 | AH90: 0.3448987547 | AI90: 0.1055948367 | AJ90: 0 | AK90: 0.09788761066
B91: Manufacturing: Rubber and plastics products | C91: 0.01172225085 | D91: 0.0125341348 | E91: 0.01806924627 | F91: 0.01002889468 | G91: 0.01645307143 | H91: 0.01475137141 | I91: 0.01009611266 | J91: 0.02518188145 | K91: 1.054822845 | L91: 0.0107321313 | M91: 0.00860898137 | N91: 0.01347067417 | O91: 0.05819435992 | P91: 0.01837952337 | Q91: 0.01650355559 | R91: 0.136980794 | S91: 0.02182312907 | T91: 0.07337546333 | U91: 0.006368871156 | V91: 0.01687031769 | W91: 0.007687703228 | X91: 0.01366606954 | Y91: 0.03521862002 | Z91: 0.01249503079 | AA91: 0.007891746516 | AB91: 0.003043372667 | AC91: 0.01551915584 | AD91: 0.01121140436 | AE91: 0.0312012584 | AF91: 0.02056647417 | AG91: 0.01738237918 | AH91: 0.01893942751 | AI91: 0.02154928892 | AJ91: 0 | AK91: 0.02064427685
B92: Manufacturing: Other non-metallic mineral products | C92: 0.007310167499 | D92: 0.01071758987 | E92: 0.00872446886 | F92: 0.00754953607 | G92: 0.008014580128 | H92: 0.008329940581 | I92: 0.00853589304 | J92: 0.03198165736 | K92: 0.01605532821 | L92: 1.108144521 | M92: 0.0107781095 | N92: 0.01007129702 | O92: 0.02282677288 | P92: 0.01095684671 | Q92: 0.00926919431 | R92: 0.01635969058 | S92: 0.01243364155 | T92: 0.01950498647 | U92: 0.008006020964 | V92: 0.0994404189 | W92: 0.006173000593 | X92: 0.01301593118 | Y92: 0.009486400836 | Z92: 0.007507812054 | AA92: 0.006369110461 | AB92: 0.03588727262 | AC92: 0.007711083448 | AD92: 0.00889106774 | AE92: 0.01248444502 | AF92: 0.01716219263 | AG92: 0.0165589897 | AH92: 0.01818068022 | AI92: 0.02869326972 | AJ92: 0 | AK92: 0.02045046621
B93: Manufacturing: Basic metals | C93: 0.01896526059 | D93: 0.04410232196 | E93: 0.02357385697 | F93: 0.01682266266 | G93: 0.04635742829 | H93: 0.0244320041 | I93: 0.05557991221 | J93: 0.05330745149 | K93: 0.03024592173 | L93: 0.036336391 | M93: 1.888798103 | N93: 1.022905058 | O93: 0.4827887656 | P93: 0.04324350414 | Q93: 0.09959295956 | R93: 0.5601315461 | S93: 0.3017297286 | T93: 0.09771298566 | U93: 0.02461418867 | V93: 0.14154707 | W93: 0.01383246656 | X93: 0.03413332537 | Y93: 0.04189839069 | Z93: 0.01999081369 | AA93: 0.01463395079 | AB93: 0.01720055578 | AC93: 0.04095467027 | AD93: 0.02064255534 | AE93: 0.05084275623 | AF93: 0.03225696779 | AG93: 0.03047900258 | AH93: 0.03245523766 | AI93: 0.03528064735 | AJ93: 0 | AK93: 0.0347163117
B94: Manufacturing: Fabricated metal products | C94: 0.009475530304 | D94: 0.01663931796 | E94: 0.01468877263 | F94: 0.007370305056 | G94: 0.02813564475 | H94: 0.01195317607 | I94: 0.01556146092 | J94: 0.03905922862 | K94: 0.01860506045 | L94: 0.01051056893 | M94: 0.04044251628 | N94: 1.051599218 | O94: 0.08188939536 | P94: 0.01189124111 | Q94: 0.02135072544 | R94: 0.02950486788 | S94: 0.03127990839 | T94: 0.02648774208 | U94: 0.009553793806 | V94: 0.02923077658 | W94: 0.005348968367 | X94: 0.02142578187 | Y94: 0.01712991132 | Z94: 0.009285785482 | AA94: 0.005715166574 | AB94: 0.004907650971 | AC94: 0.009586020777 | AD94: 0.007685381144 | AE94: 0.024498467 | AF94: 0.01213039931 | AG94: 0.01240149887 | AH94: 0.01681951055 | AI94: 0.01368632296 | AJ94: 0 | AK94: 0.01237357511
B95: Manufacturing: Machinery and equipment not classified elsewhere | C95: 0.004189798992 | D95: 0.02808298046 | E95: 0.003991360019 | F95: 0.003942820304 | G95: 0.02308008417 | H95: 0.005094210258 | I95: 0.01903291623 | J95: 0.007559642007 | K95: 0.005353453407 | L95: 0.01225610704 | M95: 0.01237487208 | N95: 0.00956848722 | O95: 1.029331459 | P95: 0.005742332537 | Q95: 0.01261201694 | R95: 0.01223633837 | S95: 0.03530548592 | T95: 0.01186091854 | U95: 0.007788862563 | V95: 0.01017256451 | W95: 0.003153969601 | X95: 0.007520814115 | Y95: 0.02043359512 | Z95: 0.004569885736 | AA95: 0.003391111077 | AB95: 0.001885259949 | AC95: 0.01478303963 | AD95: 0.004500060805 | AE95: 0.011440669 | AF95: 0.006169086608 | AG95: 0.005535856726 | AH95: 0.005765074728 | AI95: 0.009866291197 | AJ95: 0 | AK95: 0.00640843679
B96: Manufacturing: Computer, Electronic and optical equipment | C96: 0.02456453058 | D96: 0.04057466372 | E96: 0.02126756256 | F96: 0.02624594549 | G96: 0.02949828016 | H96: 0.02778565978 | I96: 0.03234476232 | J96: 0.02801506645 | K96: 0.0268317207 | L96: 0.02776121746 | M96: 0.02960478975 | N96: 0.02933881599 | O96: 0.1142256484 | P96: 2.12338607 | Q96: 0.958658478 | R96: 0.2228519267 | S96: 0.05846226993 | T96: 0.02980646271 | U96: 0.03992140123 | V96: 0.03756163382 | W96: 0.02312948416 | X96: 0.03044967446 | Y96: 0.0965876353 | Z96: 0.09127733154 | AA96: 0.02633306993 | AB96: 0.009323969871 | AC96: 0.03524075092 | AD96: 0.1501904315 | AE96: 0.04952331552 | AF96: 0.09362135194 | AG96: 0.06024872973 | AH96: 0.05915625703 | AI96: 0.1615743866 | AJ96: 0 | AK96: 0.07014646078
B97: Manufacturing: Electrical machinery and apparatus not classified elsewhere | C97: 0.008720533883 | D97: 0.01606425257 | E97: 0.007269903717 | F97: 0.008939417595 | G97: 0.009061265191 | H97: 0.00875676925 | I97: 0.01127501553 | J97: 0.008707615223 | K97: 0.008534725391 | L97: 0.009878782382 | M97: 0.009271396275 | N97: 0.00916816433 | O97: 0.01202427786 | P97: 0.01020913659 | Q97: 1.020173387 | R97: 0.008742085166 | S97: 0.01271623071 | T97: 0.009994700309 | U97: 0.007645926851 | V97: 0.009863379641 | W97: 0.006945512262 | X97: 0.009456235719 | Y97: 0.01193568971 | Z97: 0.007887569295 | AA97: 0.006867200409 | AB97: 0.002420368395 | AC97: 0.01205137888 | AD97: 0.01178720638 | AE97: 0.01288737843 | AF97: 0.02020942826 | AG97: 0.0177261675 | AH97: 0.01439843243 | AI97: 0.02037614137 | AJ97: 0 | AK97: 0.03036842916
B98: Manufacturing: Motor vehicles, trailers and semi-trailers | C98: 0.006177032864 | D98: 0.006295840336 | E98: 0.005017402537 | F98: 0.006311830491 | G98: 0.006106085162 | H98: 0.006032646754 | I98: 0.005262314774 | J98: 0.005622958543 | K98: 0.005782325501 | L98: 0.005225888636 | M98: 0.005951100093 | N98: 0.00610996062 | O98: 0.006084809522 | P98: 0.00673986403 | Q98: 0.00637025918 | R98: 1.111707411 | S98: 0.008349581589 | T98: 0.006397617702 | U98: 0.005209903003 | V98: 0.006181690402 | W98: 0.005229756173 | X98: 0.00649430115 | Y98: 0.01121129441 | Z98: 0.005136204417 | AA98: 0.004707648952 | AB98: 0.00158644714 | AC98: 0.02145407217 | AD98: 0.008313634063 | AE98: 0.008516837225 | AF98: 0.01447663976 | AG98: 0.01251615841 | AH98: 0.00998092507 | AI98: 0.01320932501 | AJ98: 0 | AK98: 0.02140817948
B99: Manufacturing: Other transport equipment | C99: 0.0001137489683 | D99: 0.0001714775046 | E99: 0.0001041686918 | F99: 0.0001076481486 | G99: 0.0001176093269 | H99: 0.0001312348666 | I99: 0.0001370409225 | J99: 0.0001424613119 | K99: 0.0001694769112 | L99: 0.0001107845988 | M99: 0.0001670640217 | N99: 0.000214149614 | O99: 0.0003225634381 | P99: 0.0005709254841 | Q99: 0.000516142797 | R99: 0.0002519252787 | S99: 1.56610076 | T99: 0.0001224079733 | U99: 0.0001034649087 | V99: 0.0001411099242 | W99: 0.0001007796162 | X99: 0.0001676230381 | Y99: 0.0002027585769 | Z99: 0.0001926739868 | AA99: 0.0001109733668 | AB99: 4.45675928e-05 | AC99: 0.0001237897478 | AD99: 0.0001617698048 | AE99: 0.0002386449988 | AF99: 0.0002886769004 | AG99: 0.0002154485031 | AH99: 0.0002045674419 | AI99: 0.001749541426 | AJ99: 0 | AK99: 0.0003176294827
B100: Manufacturing not classified elsewhere; recycling | C100: 0.002524920485 | D100: 0.002584067243 | E100: 0.00218525512 | F100: 0.004202786398 | G100: 0.003059305895 | H100: 0.003461055379 | I100: 0.002294724482 | J100: 0.002799901981 | K100: 0.002802845386 | L100: 0.002309062843 | M100: 0.002820761483 | N100: 0.003661474404 | O100: 0.003523885871 | P100: 0.01539208332 | Q100: 0.008705513092 | R100: 0.0047792763 | S100: 0.005195616768 | T100: 1.036357343 | U100: 0.002134286196 | V100: 0.002982920055 | W100: 0.002633597286 | X100: 0.005463163386 | Y100: 0.003758648274 | Z100: 0.004547544833 | AA100: 0.002879883325 | AB100: 0.0008965317028 | AC100: 0.002730971354 | AD100: 0.006894197644 | AE100: 0.005760330524 | AF100: 0.007788811628 | AG100: 0.009014421178 | AH100: 0.01504471977 | AI100: 0.008728533954 | AJ100: 0 | AK100: 0.008035394399
B101: Electricity, gas and water supply | C101: 0.03814482233 | D101: 0.04931480956 | E101: 0.04555236892 | F101: 0.0505654621 | G101: 0.08959197454 | H101: 0.06351565742 | I101: 0.04344216977 | J101: 0.06418513018 | K101: 0.050978558 | L101: 0.05913158685 | M101: 0.130173736 | N101: 0.1034878958 | O101: 0.07353399714 | P101: 0.05095964836 | Q101: 0.05959247394 | R101: 0.08512486798 | S101: 0.09052252778 | T101: 0.07153788437 | U101: 1.092719605 | V101: 0.046162913 | W101: 0.0556104333 | X101: 0.06800876712 | Y101: 0.05044134671 | Z101: 0.05135289037 | AA101: 0.04939634591 | AB101: 0.01415260538 | AC101: 0.05289880833 | AD101: 0.0822448533 | AE101: 0.09575589335 | AF101: 0.08859188261 | AG101: 0.09859761794 | AH101: 0.09691162485 | AI101: 0.1010441479 | AJ101: 0 | AK101: 0.08175787519
B102: Construction | C102: 0.00904298286 | D102: 0.03049658947 | E102: 0.009001885402 | F102: 0.01021242528 | G102: 0.01284654116 | H102: 0.01153753253 | I102: 0.02011875665 | J102: 0.01266501751 | K102: 0.01065178343 | L102: 0.01562065087 | M102: 0.01393300988 | N102: 0.01253714748 | O102: 0.01257561295 | P102: 0.01032614091 | Q102: 0.01282376233 | R102: 0.01217678102 | S102: 0.0208256579 | T102: 0.01466388691 | U102: 0.01166461522 | V102: 1.018445066 | W102: 0.01007016454 | X102: 0.01271810564 | Y102: 0.0163530566 | Z102: 0.01587733372 | AA102: 0.01204893006 | AB102: 0.09290588205 | AC102: 0.01211447531 | AD102: 0.01208190416 | AE102: 0.01882603596 | AF102: 0.03220338175 | AG102: 0.0360380663 | AH102: 0.01759146131 | AI102: 0.03054363475 | AJ102: 0 | AK102: 0.02427315311
B103: Wholesale and retail trade; repairs | C103: 0.1508721285 | D103: 0.1515200532 | E103: 0.2187077325 | F103: 0.2996193144 | G103: 0.272227225 | H103: 0.266254568 | I103: 0.2563237131 | J103: 0.2800782989 | K103: 0.2939034382 | L103: 0.2182351131 | M103: 0.2457296405 | N103: 0.2491482417 | O103: 0.2279804408 | P103: 0.3476342046 | Q103: 0.3170407731 | R103: 0.2854993144 | S103: 0.2348959107 | T103: 0.2565462349 | U103: 0.1442934851 | V103: 0.1862044544 | W103: 1.113347335 | X103: 0.2607270512 | Y103: 0.2305860113 | Z103: 0.1186270478 | AA103: 0.100056361 | AB103: 0.04732594046 | AC103: 0.223985018 | AD103: 0.1758236895 | AE103: 0.202466811 | AF103: 0.2444194387 | AG103: 0.2242947725 | AH103: 0.2738619945 | AI103: 0.2637465523 | AJ103: 0 | AK103: 0.2885774255
B104: Hotels and restaurants | C104: 0.02191034574 | D104: 0.02238351018 | E104: 0.01920745348 | F104: 0.02478314216 | G104: 0.02362486041 | H104: 0.02326115294 | I104: 0.0206641767 | J104: 0.02706374454 | K104: 0.02473906508 | L104: 0.01951551366 | M104: 0.02859016385 | N104: 0.02614979622 | O104: 0.02361573715 | P104: 0.02677065441 | Q104: 0.02500410356 | R104: 0.02714496696 | S104: 0.03078877814 | T104: 0.02609125951 | U104: 0.01632019087 | V104: 0.02395728023 | W104: 0.02846205503 | X104: 1.02466871 | Y104: 0.07095413386 | Z104: 0.02040427449 | AA104: 0.04203949476 | AB104: 0.008993227201 | AC104: 0.03448440162 | AD104: 0.04685993435 | AE104: 0.05996664216 | AF104: 0.06160292464 | AG104: 0.05709513627 | AH104: 0.05067136632 | AI104: 0.07004867887 | AJ104: 0 | AK104: 0.06724285754
B105: Transport and storage | C105: 0.03256752571 | D105: 0.03112904442 | E105: 0.03895257527 | F105: 0.04907781121 | G105: 0.05474873 | H105: 0.05208148171 | I105: 0.04216430842 | J105: 0.04994244313 | K105: 0.05129320334 | L105: 0.03916850261 | M105: 0.05390509088 | N105: 0.05229234176 | O105: 0.04592400464 | P105: 0.05228119641 | Q105: 0.05012730296 | R105: 0.06186224472 | S105: 0.04959442611 | T105: 0.04674865428 | U105: 0.02823642082 | V105: 0.03695405251 | W105: 0.02796962395 | X105: 0.04406717697 | Y105: 1.042311036 | Z105: 0.02428929871 | AA105: 0.02166626979 | AB105: 0.009091741164 | AC105: 0.04812818724 | AD105: 0.03520154727 | AE105: 0.04104132364 | AF105: 0.05999443015 | AG105: 0.05472670837 | AH105: 0.05587250092 | AI105: 0.06613666072 | AJ105: 0 | AK105: 0.08119644644
B106: Post and telecommunications | C106: 0.01690310205 | D106: 0.01612583039 | E106: 0.01575418059 | F106: 0.02162994563 | G106: 0.02186858664 | H106: 0.02012910351 | I106: 0.01630618988 | J106: 0.01896868972 | K106: 0.01955697397 | L106: 0.01604321695 | M106: 0.01742680095 | N106: 0.0184490235 | O106: 0.02159424779 | P106: 0.02262158741 | Q106: 0.02521436218 | R106: 0.01953172689 | S106: 0.02640832597 | T106: 0.02070944243 | U106: 0.01298331547 | V106: 0.01873587874 | W106: 0.03351381055 | X106: 0.02036900554 | Y106: 0.02202920717 | Z106: 1.038383513 | AA106: 0.02593999467 | AB106: 0.005489817749 | AC106: 0.01936897623 | AD106: 0.0303938273 | AE106: 0.03276627633 | AF106: 0.04572792598 | AG106: 0.03742747148 | AH106: 0.03067631428 | AI106: 0.04387847722 | AJ106: 0 | AK106: 0.05211233405
B107: Financial intermediation | C107: 0.06780926461 | D107: 0.06623016814 | E107: 0.0627041441 | F107: 0.08561140428 | G107: 0.08867356726 | H107: 0.07544988713 | I107: 0.07054819113 | J107: 0.07795254654 | K107: 0.07783816118 | L107: 0.06190515541 | M107: 0.08273781815 | N107: 0.07792066961 | O107: 0.07757487219 | P107: 0.08326059627 | Q107: 0.09495668306 | R107: 0.08328534799 | S107: 0.1130252522 | T107: 0.09047976575 | U107: 0.05797157269 | V107: 0.07899953183 | W107: 0.1136998456 | X107: 0.07935433764 | Y107: 0.09781914739 | Z107: 0.1002211953 | AA107: 1.092912435 | AB107: 0.03193107806 | AC107: 0.08030724756 | AD107: 0.08212868767 | AE107: 0.08991892547 | AF107: 0.190764475 | AG107: 0.1214775144 | AH107: 0.1023608745 | AI107: 0.1363498251 | AJ107: 0 | AK107: 0.1751084377
B108: Real estate activities | C108: 0.04787086939 | D108: 0.05068587054 | E108: 0.04136802738 | F108: 0.05395892194 | G108: 0.05345431645 | H108: 0.05699949029 | I108: 0.04318634045 | J108: 0.05034352502 | K108: 0.04958033568 | L108: 0.04469027918 | M108: 0.0444893847 | N108: 0.05113870668 | O108: 0.05405921026 | P108: 0.05744827352 | Q108: 0.0606108356 | R108: 0.04973450839 | S108: 0.06815287993 | T108: 0.06506659942 | U108: 0.03622445972 | V108: 0.04963266803 | W108: 0.05216611804 | X108: 0.06187046099 | Y108: 0.0703323933 | Z108: 0.07232609399 | AA108: 0.05871663192 | AB108: 1.016798867 | AC108: 0.05825005872 | AD108: 0.07221284785 | AE108: 0.09329928683 | AF108: 0.1163201844 | AG108: 0.1058651176 | AH108: 0.08244030384 | AI108: 0.1517245545 | AJ108: 0 | AK108: 0.1617435519
B109: Renting of machinery and equipment | C109: 0.009229028035 | D109: 0.004212508686 | E109: 0.006049533667 | F109: 0.0056915978 | G109: 0.01012128085 | H109: 0.006088287779 | I109: 0.004253573918 | J109: 0.005458123973 | K109: 0.006793124996 | L109: 0.004607597347 | M109: 0.005640726289 | N109: 0.007587767229 | O109: 0.005669820199 | P109: 0.005284168902 | Q109: 0.005011377725 | R109: 0.006639859776 | S109: 0.009542564006 | T109: 0.006176071881 | U109: 0.002978170552 | V109: 0.008128384692 | W109: 0.00606309466 | X109: 0.006320215437 | Y109: 0.03220795666 | Z109: 0.02239557502 | AA109: 0.00659170601 | AB109: 0.001577254344 | AC109: 1.031722777 | AD109: 0.006728622905 | AE109: 0.008009996451 | AF109: 0.010102516 | AG109: 0.01057085907 | AH109: 0.008480929035 | AI109: 0.01143822063 | AJ109: 0 | AK109: 0.009801924523
B110: Computer and related activities | C110: 0.01588859926 | D110: 0.03882809904 | E110: 0.01287689468 | F110: 0.01345882733 | G110: 0.01789878557 | H110: 0.01728521821 | I110: 0.02664141496 | J110: 0.01645273272 | K110: 0.01630698332 | L110: 0.01953741744 | M110: 0.02156737142 | N110: 0.01929463563 | O110: 0.01595715356 | P110: 0.01683181098 | Q110: 0.01530778708 | R110: 0.02937949103 | S110: 0.0311388215 | T110: 0.01475420136 | U110: 0.011877849 | V110: 0.01560562784 | W110: 0.01401555076 | X110: 0.01653905182 | Y110: 0.03086390057 | Z110: 0.05342870834 | AA110: 0.03402346427 | AB110: 0.005884902989 | AC110: 0.01762354456 | AD110: 1.346900652 | AE110: 0.04513527769 | AF110: 0.0653240561 | AG110: 0.04866049869 | AH110: 0.02782995142 | AI110: 0.04938395169 | AJ110: 0 | AK110: 0.0297252198
B111: R&D and other business activities | C111: 0.04708300046 | D111: 0.06809724563 | E111: 0.0342386887 | F111: 0.0310351924 | G111: 0.04742580837 | H111: 0.03338068221 | I111: 0.0469185926 | J111: 0.03751626377 | K111: 0.046464896 | L111: 0.03685662984 | M111: 0.03379935724 | N111: 0.03294050402 | O111: 0.03146638218 | P111: 0.0355099972 | Q111: 0.03028006921 | R111: 0.03899835506 | S111: 0.05993594819 | T111: 0.03093716814 | U111: 0.02199900492 | V111: 0.03728958807 | W111: 0.02800696468 | X111: 0.04066815391 | Y111: 0.04398513128 | Z111: 0.04341151281 | AA111: 0.04283928626 | AB111: 0.01275465644 | AC111: 0.03305409545 | AD111: 0.0520816663 | AE111: 1.071535793 | AF111: 0.0798699878 | AG111: 0.05699509193 | AH111: 0.03884546812 | AI111: 0.07973296762 | AJ111: 0 | AK111: 0.05156213789
B112: Public administration and defence; compulsory social security | C112: 0.03608241393 | D112: 0.03180683218 | E112: 0.02884989398 | F112: 0.03658652046 | G112: 0.03343745644 | H112: 0.03495309278 | I112: 0.02708307171 | J112: 0.03129164897 | K112: 0.03257456647 | L112: 0.02854677018 | M112: 0.02853196061 | N112: 0.03186008484 | O112: 0.03265557686 | P112: 0.0380414959 | Q112: 0.03579145144 | R112: 0.02962793586 | S112: 0.04138565571 | T112: 0.03579037791 | U112: 0.02652393083 | V112: 0.03522340532 | W112: 0.02857646936 | X112: 0.03822487103 | Y112: 0.03927301162 | Z112: 0.02855850762 | AA112: 0.02781785207 | AB112: 0.009216037974 | AC112: 0.03327382529 | AD112: 0.04243463995 | AE112: 0.04461357638 | AF112: 1.084706583 | AG112: 0.0742598572 | AH112: 0.05956498432 | AI112: 0.1042588846 | AJ112: 0 | AK112: 0.1331647673
B113: Education | C113: 0.03516224856 | D113: 0.03134559106 | E113: 0.02803352325 | F113: 0.03565024704 | G113: 0.0324825615 | H113: 0.0335047805 | I113: 0.02655151848 | J113: 0.03028916283 | K113: 0.03155480605 | L113: 0.02846818645 | M113: 0.02776929333 | N113: 0.03076259783 | O113: 0.03161154959 | P113: 0.03727920801 | Q113: 0.03486217413 | R113: 0.03183784769 | S113: 0.03790273354 | T113: 0.03608722276 | U113: 0.02580000448 | V113: 0.03432717145 | W113: 0.02781885616 | X113: 0.03681770951 | Y113: 0.03814683585 | Z113: 0.03578298953 | AA113: 0.02732634644 | AB113: 0.009965449388 | AC113: 0.03294702809 | AD113: 0.04484414859 | AE113: 0.04859852532 | AF113: 0.1676973112 | AG113: 1.072210698 | AH113: 0.06186494817 | AI113: 0.08569163198 | AJ113: 0 | AK113: 0.129116932
B114: Health and social work | C114: 0.01885830375 | D114: 0.01687906024 | E114: 0.01419228252 | F114: 0.01699023556 | G114: 0.01670290053 | H114: 0.01662117498 | I114: 0.01374275518 | J114: 0.01498796833 | K114: 0.01553292042 | L114: 0.01378213163 | M114: 0.01357828774 | N114: 0.01498581834 | O114: 0.01521029696 | P114: 0.01805736684 | Q114: 0.01667602142 | R114: 0.01418604082 | S114: 0.0207352125 | T114: 0.01715150273 | U114: 0.01223293648 | V114: 0.01638890243 | W114: 0.01328496046 | X114: 0.018092215 | Y114: 0.01913115164 | Z114: 0.01518028592 | AA114: 0.01459794717 | AB114: 0.00596854246 | AC114: 0.02077107272 | AD114: 0.026337847 | AE114: 0.03787861683 | AF114: 0.1075608054 | AG114: 0.05039132882 | AH114: 1.030030314 | AI114: 0.05473457095 | AJ114: 0 | AK114: 0.05869678423
B115: Other community, social and personal services | C115: 0.02518288549 | D115: 0.02456090403 | E115: 0.02231739457 | F115: 0.0279656329 | G115: 0.02732096346 | H115: 0.04374968653 | I115: 0.02267209175 | J115: 0.03454503055 | K115: 0.03443532169 | L115: 0.02298831502 | M115: 0.02608640138 | N115: 0.04063320309 | O115: 0.03786043295 | P115: 0.03549981715 | Q115: 0.03440443536 | R115: 0.028050491 | S115: 0.2039166104 | T115: 0.03242167065 | U115: 0.01870477286 | V115: 0.0270186204 | W115: 0.03127265735 | X115: 0.05302900943 | Y115: 0.0432495465 | Z115: 0.06384456133 | AA115: 0.0357518928 | AB115: 0.01651182783 | AC115: 0.03287812564 | AD115: 0.04240789718 | AE115: 0.07735615675 | AF115: 0.08353076066 | AG115: 0.05517437753 | AH115: 0.04981444295 | AI115: 1.141285158 | AJ115: 0 | AK115: 0.07911734726
B116: Private households with employed persons | C116: 0 | D116: 0 | E116: 0 | F116: 0 | G116: 0 | H116: 0 | I116: 0 | J116: 0 | K116: 0 | L116: 0 | M116: 0 | N116: 0 | O116: 0 | P116: 0 | Q116: 0 | R116: 0 | S116: 0 | T116: 0 | U116: 0 | V116: 0 | W116: 0 | X116: 0 | Y116: 0 | Z116: 0 | AA116: 0 | AB116: 0 | AC116: 0 | AD116: 0 | AE116: 0 | AF116: 0 | AG116: 0 | AH116: 0 | AI116: 0 | AJ116: 1 | AK116: 0
B117: Payments to workers and/or households | C117: 0.3851467005 | D117: 0.3386098982 | E117: 0.3066648746 | F117: 0.3893379395 | G117: 0.3541147845 | H117: 0.3640307085 | I117: 0.2877425281 | J117: 0.329564624 | K117: 0.3431391013 | L117: 0.3033685568 | M117: 0.3024920393 | N117: 0.3347278786 | O117: 0.3443276579 | P117: 0.4031592997 | Q117: 0.3790087459 | R117: 0.3134735682 | S117: 0.3936067485 | T117: 0.3788498504 | U117: 0.2832886539 | V117: 0.3753854011 | W117: 0.3020158429 | X117: 0.4005356326 | Y117: 0.414889389 | Z117: 0.292802843 | AA117: 0.2924547941 | AB117: 0.09560424081 | AC117: 0.352885252 | AD117: 0.448931939 | AE117: 0.4632785748 | AF117: 0.8982840222 | AG117: 0.792065812 | AH117: 0.633624513 | AI117: 0.8253298631 | AJ117: 0 | AK117: 1.428285653

Sheet CustomRegion2
B2: Custom Region 2
B4: Enter data in boxes below
D11: Dollar Year of Average Earnings | E11: 2014
C12: Value Added as a Percentage of Output | D12: Payments to Workers as a Percentage of Output | E12: ="Average Earnings ($"&CustomRegion2_EarningsYear&") per Job" -> Average Earnings ($2014) per Job
B13: Agriculture, hunting, forestry and fishing | C13: 0.61618146 | D13: 0.1106566501 | E13: 1051.326775
B14: Mining and quarrying | C14: 0.8126556895 | D14: 0.06413694737 | E14: 19202.31032
B15: Manufacturing: Food products, beverages and tobacco | C15: 0.3957260825 | D15: 0.09616271826 | E15: 3982.062502
B16: Manufacturing: Textiles, textile products, leather and footwear | C16: 0.348144031 | D16: 0.1541329467 | E16: 4283.480456
B17: Manufacturing: Wood and products of wood and cork | C17: 0.4237104829 | D17: 0.1407187482 | E17: 2310.027299
B18: Manufacturing: Pulp, paper, paper products, printing and publishing | C18: 0.349259713 | D18: 0.1343764829 | E18: 7375.375374
B19: Manufacturing: Coke, refined petroleum products and nuclear fuel | C19: 0.1672162295 | D19: 0.07093725879 | E19: 45219.98567
B20: Manufacturing: Chemicals and chemical products | C20: 0.3294932105 | D20: 0.1168149299 | E20: 12717.25879
B21: Manufacturing: Rubber and plastics products | C21: 0.3263832999 | D21: 0.1481994083 | E21: 5461.528897
B22: Manufacturing: Other non-metallic mineral products | C22: 0.5285812673 | D22: 0.1481975714 | E22: 4112.730488
B23: Manufacturing: Basic metals | C23: 0.3611880592 | D23: 0.08831733832 | E23: 10383.99952
B24: Manufacturing: Fabricated metal products except machinery and equipment | C24: 0.3460014683 | D24: 0.1541872755 | E24: 4675.765914
B25: Manufacturing: Machinery and equipment not classified elsewhere | C25: 0.3757478076 | D25: 0.2690812347 | E25: 8962.449564
B26: Manufacturing: Office, accounting and computing machinery | C26: 0.1642908593 | D26: 0.06916368869 | E26: 7825.963161
B27: Manufacturing: Electrical machinery and apparatus not classified elsewhere | C27: 0.2596652751 | D27: 0.121468643 | E27: 6971.940688
B28: Manufacturing: Radio, television and communication equipment | C28: 0 | D28: 0 | E28: 7825.963161
B29: Manufacturing: Medical, precision and optical instruments | C29: 0 | D29: 0 | E29: 6971.940688
B30: Manufacturing: Motor vehicles, trailers and semi-trailers | C30: 0.3050955745 | D30: 0.1061091601 | E30: 7434.034659
B31: Manufacturing: Other transport equipment | C31: 0 | D31: 0 | E31: 7434.034659
B32: Manufacturing: Manufacturing not classified elsewhere; recycling | C32: 0.3694158684 | D32: 0.1688019453 | E32: 6398.929334
B33: Electricity, gas and water supply | C33: 0.3928187343 | D33: 0.1479068125 | E33: 18657.29139
B34: Construction | C34: 0.4872925491 | D34: 0.2010893159 | E34: 2948.841099
B35: Wholesale and retail trade; repairs | C35: 0.7336625361 | D35: 0.1786830425 | E35: 4909.959175
B36: Hotels and restaurants | C36: 0.7191364626 | D36: 0.1986947792 | E36: 1439.235266
B37: Transport and storage | C37: 0.6204428337 | D37: 0.2106886342 | E37: 7311.435954
B38: Post and telecommunications | C38: 0.6147644977 | D38: 0.1682402779 | E38: 12389.09937
B39: Finance and insurance | C39: 0.6186306877 | D39: 0.193618509 | E39: 13225.4942
B40: Real estate activities | C40: 0.8956705377 | D40: 0.008815975526 | E40: 2341.896353
B41: Renting of machinery and equipment | C41: 0.8493201145 | D41: 0.03807811833 | E41: 2341.896353
B42: Computer and related activities | C42: 0.5173762134 | D42: 0.3389300728 | E42: 12389.09937
B43: Research and development | C43: 0 | D43: 0 | E43: 3837.434139
B44: Other Business Activities | C44: 0.7137140864 | D44: 0.281589683 | E44: 3837.434139
B45: Public admin. and defence; compulsory social security | C45: 0.7501238489 | D45: 0.7399429877 | E45: 1449.485727
B46: Education | C46: 0.8906641601 | D46: 0.6777258127 | E46: 4134.669794
B47: Health and social work | C47: 0.7502586363 | D47: 0.4326934242 | E47: 2283.478824
B48: Other community, social and personal services | C48: 0.7048001952 | D48: 0.1367349812 | E48: 1449.485727
B49: Private households with employed persons | C49: 1 | D49: 1 | E49: 5199.205609
B56: Total Requirements - Type 1
C57: Agriculture, hunting, forestry and fishing | D57: Mining and quarrying | E57: Manufacturing: Food products, beverages and tobacco | F57: Manufacturing: Textiles, textile products, leather and footwear | G57: Manufacturing: Wood and products of wood and cork | H57: Manufacturing: Pulp, paper, paper products, printing and publishing | I57: Manufacturing: Coke, refined petroleum products and nuclear fuel | J57: Manufacturing: Chemicals and chemical products | K57: Manufacturing: Rubber and plastics products | L57: Manufacturing: Other non-metallic mineral products | M57: Manufacturing: Basic metals | N57: Manufacturing: Fabricated metal products except machinery and equipment | O57: Manufacturing: Machinery and equipment not classified elsewhere | P57: Manufacturing: Office, accounting and computing machinery | Q57: Manufacturing: Electrical machinery and apparatus not classified elsewhere | R57: Manufacturing: Radio, television and communication equipment | S57: Manufacturing: Medical, precision and optical instruments | T57: Manufacturing: Motor vehicles, trailers and semi-trailers | U57: Manufacturing: Other transport equipment | V57: Manufacturing: Manufacturing not classified elsewhere; recycling | W57: Electricity, gas and water supply | X57: Construction | Y57: Wholesale and retail trade; repairs | Z57: Hotels and restaurants | AA57: Transport and storage | AB57: Post and telecommunications | AC57: Finance and insurance | AD57: Real estate activities | AE57: Renting of machinery and equipment | AF57: Computer and related activities | AG57: Research and development | AH57: Other Business Activities | AI57: Public admin. and defence; compulsory social security | AJ57: Education | AK57: Health and social work | AL57: Other community, social and personal services | AM57: Private households with employed persons
B58: Agriculture, hunting, forestry and fishing | C58: 1.149484925 | D58: 0.00133410012 | E58: 0.2732379539 | F58: 0.07893996702 | G58: 0.311638735 | H58: 0.008082093268 | I58: 0.002026771805 | J58: 0.009672522446 | K58: 0.01216379882 | L58: 0.006980427654 | M58: 0.003252306927 | N58: 0.00491690882 | O58: 0.005155873468 | P58: 0.01006043759 | Q58: 0.007208283867 | R58: 0 | S58: 0 | T58: 0.00775091704 | U58: 0 | V58: 0.02521290339 | W58: 0.003394089235 | X58: 0.007736269419 | Y58: 0.004905898821 | Z58: 0.006534278154 | AA58: 0.00194241899 | AB58: 0.001564259461 | AC58: 0.0008570042224 | AD58: 0.0004869188399 | AE58: 0.001298491932 | AF58: 0.00366966048 | AG58: 0 | AH58: 0.00186415201 | AI58: 0.00135647051 | AJ58: 0.0007985317286 | AK58: 0.00243804044 | AL58: 0.003030432921 | AM58: 0
B59: Mining and quarrying | C59: 0.03558584446 | D59: 1.03674328 | E59: 0.03468284533 | F59: 0.03659240303 | G59: 0.03358674934 | H59: 0.05205891199 | I59: 0.7043092156 | J59: 0.3056910269 | K59: 0.09771662019 | L59: 0.1227817073 | M59: 0.1659885818 | N59: 0.07017596758 | O59: 0.05700695838 | P59: 0.06009297687 | Q59: 0.06720756703 | R59: 0 | S59: 0 | T59: 0.04521643553 | U59: 0 | V59: 0.06423552999 | W59: 0.1401101946 | X59: 0.06116910597 | Y59: 0.0122531765 | Z59: 0.0247582384 | AA59: 0.06845184898 | AB59: 0.02394554216 | AC59: 0.006830275247 | AD59: 0.008118720813 | AE59: 0.01072201432 | AF59: 0.02156178164 | AG59: 0 | AH59: 0.0180419537 | AI59: 0.01879389254 | AJ59: 0.004801353091 | AK59: 0.02996614086 | AL59: 0.02564343079 | AM59: 0
B60: Manufacturing: Food products, beverages and tobacco | C60: 0.09696456252 | D60: 0.00130415688 | E60: 1.161314149 | F60: 0.04087612439 | G60: 0.02896335346 | H60: 0.01035299414 | I60: 0.002140869946 | J60: 0.007831823323 | K60: 0.007351906613 | L60: 0.004047333936 | M60: 0.003808284123 | N60: 0.005041315145 | O60: 0.005112951463 | P60: 0.006789206892 | Q60: 0.005494599066 | R60: 0 | S60: 0 | T60: 0.005996507755 | U60: 0 | V60: 0.008060230794 | W60: 0.004331313608 | X60: 0.00344440084 | Y60: 0.004041014065 | Z60: 0.02236195128 | AA60: 0.003078915979 | AB60: 0.002295591192 | AC60: 0.001580264602 | AD60: 0.0006484808033 | AE60: 0.002952686619 | AF60: 0.01015314082 | AG60: 0 | AH60: 0.003351347782 | AI60: 0.00197948818 | AJ60: 0.001985585986 | AK60: 0.003668374451 | AL60: 0.006374976889 | AM60: 0
B61: Manufacturing: Textiles, textile products, leather and footwear | C61: 0.007011993659 | D61: 0.001938903295 | E61: 0.01085325777 | F61: 1.487906275 | G61: 0.0111734881 | H61: 0.05972905271 | I61: 0.004452160361 | J61: 0.00968363223 | K61: 0.0447466131 | L61: 0.01369663955 | M61: 0.01729509321 | N61: 0.02608975067 | O61: 0.0297376358 | P61: 0.04627672187 | Q61: 0.04127702203 | R61: 0 | S61: 0 | T61: 0.06801575073 | U61: 0 | V61: 0.09206805475 | W61: 0.007012863 | X61: 0.009186638637 | Y61: 0.01216885945 | Z61: 0.009154695551 | AA61: 0.01000436706 | AB61: 0.006781883688 | AC61: 0.003303048113 | AD61: 0.001664420981 | AE61: 0.004274972568 | AF61: 0.009113545406 | AG61: 0 | AH61: 0.00795630355 | AI61: 0.00899956977 | AJ61: 0.002345664581 | AK61: 0.008308255555 | AL61: 0.01208383852 | AM61: 0
B62: Manufacturing: Wood and products of wood and cork | C62: 0.00215264248 | D62: 0.002301656289 | E62: 0.002670162997 | F62: 0.004639394689 | G62: 1.14232277 | H62: 0.005812123969 | I62: 0.002396367937 | J62: 0.003188496296 | K62: 0.005332370853 | L62: 0.005876211036 | M62: 0.004150096668 | N62: 0.006413413036 | O62: 0.006423740575 | P62: 0.01805001019 | Q62: 0.01023521925 | R62: 0 | S62: 0 | T62: 0.007182868121 | U62: 0 | V62: 0.05974176674 | W62: 0.002522176171 | X62: 0.01257530726 | Y62: 0.01105974094 | Z62: 0.0009972022354 | AA62: 0.001679936474 | AB62: 0.001794445618 | AC62: 0.0007576256631 | AD62: 0.0004816823939 | AE62: 0.0008129859152 | AF62: 0.001714251567 | AG62: 0 | AH62: 0.001235367599 | AI62: 0.0009708179988 | AJ62: 0.0004433380719 | AK62: 0.002113346255 | AL62: 0.001487228663 | AM62: 0
B63: Manufacturing: Pulp, paper, paper products, printing and publishing | C63: 0.009288970337 | D63: 0.003332419609 | E63: 0.02622117054 | F63: 0.03437784911 | G63: 0.01303741075 | H63: 1.337255692 | I63: 0.007800516264 | J63: 0.02264794794 | K63: 0.0402655685 | L63: 0.03302754094 | M63: 0.01125618092 | N63: 0.02622504912 | O63: 0.0280470738 | P63: 0.05576748568 | Q63: 0.04246109757 | R63: 0 | S63: 0 | T63: 0.02446731694 | U63: 0 | V63: 0.05259277697 | W63: 0.01099682536 | X63: 0.01226586355 | Y63: 0.01236876702 | Z63: 0.01225751528 | AA63: 0.01291473946 | AB63: 0.01578211362 | AC63: 0.01764950383 | AD63: 0.01070086543 | AE63: 0.006591475146 | AF63: 0.02482293378 | AG63: 0 | AH63: 0.03634394166 | AI63: 0.01679539241 | AJ63: 0.008282163541 | AK63: 0.01135056786 | AL63: 0.02088552289 | AM63: 0
B64: Manufacturing: Coke, refined petroleum products and nuclear fuel | C64: 0.02567742139 | D64: 0.01239088151 | E64: 0.02375300848 | F64: 0.01959792336 | G64: 0.02762770009 | H64: 0.02807047715 | I64: 1.021451296 | J64: 0.02934499935 | K64: 0.02419109287 | L64: 0.03797544533 | M64: 0.05027721703 | N64: 0.02853153351 | O64: 0.02140331069 | P64: 0.02194927311 | Q64: 0.02596946035 | R64: 0 | S64: 0 | T64: 0.01910827585 | U64: 0 | V64: 0.02650929112 | W64: 0.09508974305 | X64: 0.02563373764 | Y64: 0.006881235678 | Z64: 0.01729127388 | AA64: 0.08899877179 | AB64: 0.02367697014 | AC64: 0.004401920781 | AD64: 0.004562661429 | AE64: 0.00848523809 | AF64: 0.0115037394 | AG64: 0 | AH64: 0.01026976044 | AI64: 0.01703874955 | AJ64: 0.0033715995 | AK64: 0.01037586766 | AL64: 0.01272291209 | AM64: 0
B65: Manufacturing: Chemicals and chemical products | C65: 0.07565487849 | D65: 0.05487649145 | E65: 0.06762715887 | F65: 0.08778800617 | G65: 0.05730467151 | H65: 0.1301270852 | I65: 0.1084503255 | J65: 1.276756237 | K65: 0.3328917035 | L65: 0.08217822261 | M65: 0.05988029071 | N65: 0.07484481987 | O65: 0.088745649 | P65: 0.1283164881 | Q65: 0.1128239206 | R65: 0 | S65: 0 | T65: 0.08523940317 | U65: 0 | V65: 0.1207215273 | W65: 0.2497868481 | X65: 0.05453561837 | Y65: 0.02513556957 | Z65: 0.05011938467 | AA65: 0.03408266197 | AB65: 0.0245184112 | AC65: 0.01322135265 | AD65: 0.01743825599 | AE65: 0.01811738263 | AF65: 0.04979213395 | AG65: 0 | AH65: 0.04353114765 | AI65: 0.02774581241 | AJ65: 0.008933989233 | AK65: 0.09742392602 | AL65: 0.0704877978 | AM65: 0
B66: Manufacturing: Rubber and plastics products | C66: 0.01404511521 | D66: 0.00319253182 | E66: 0.02994336665 | F66: 0.04111396006 | G66: 0.01400883291 | H66: 0.04679731266 | I66: 0.007999908333 | J66: 0.01670680476 | K66: 1.075482825 | L66: 0.0156531338 | M66: 0.01335850316 | N66: 0.03855105121 | O66: 0.05424671235 | P66: 0.1160424363 | Q66: 0.09892147178 | R66: 0 | S66: 0 | T66: 0.0904322822 | U66: 0 | V66: 0.084003205 | W66: 0.009566052292 | X66: 0.03602895242 | Y66: 0.01301118204 | Z66: 0.01126027633 | AA66: 0.01525074879 | AB66: 0.01130189119 | AC66: 0.004998668007 | AD66: 0.002413986994 | AE66: 0.005985907144 | AF66: 0.01979892903 | AG66: 0 | AH66: 0.01628660032 | AI66: 0.004740621635 | AJ66: 0.002771209577 | AK66: 0.009978684488 | AL66: 0.01420964885 | AM66: 0
B67: Manufacturing: Other non-metallic mineral products | C67: 0.002338768282 | D67: 0.004406776565 | E67: 0.01109684005 | F67: 0.004447825529 | G67: 0.005273370865 | H67: 0.006491633276 | I67: 0.004101455971 | J67: 0.005277018886 | K67: 0.00720349021 | L67: 1.068201955 | M67: 0.006273994817 | N67: 0.01371720423 | O67: 0.01111796792 | P67: 0.02636187194 | Q67: 0.021547965 | R67: 0 | S67: 0 | T67: 0.0146588097 | U67: 0 | V67: 0.0193231172 | W67: 0.003514738024 | X67: 0.09530802677 | Y67: 0.004204121566 | Z67: 0.003042307326 | AA67: 0.003608074097 | AB67: 0.003770154249 | AC67: 0.001132446769 | AD67: 0.002239155945 | AE67: 0.001362957432 | AF67: 0.002450461933 | AG67: 0 | AH67: 0.002084818529 | AI67: 0.002907714787 | AJ67: 0.0007983515565 | AK67: 0.001876396899 | AL67: 0.003176238881 | AM67: 0
B68: Manufacturing: Basic metals | C68: 0.00837350728 | D68: 0.01646262116 | E68: 0.01145220987 | F68: 0.02438130141 | G68: 0.01382370964 | H68: 0.0229311142 | I68: 0.01867528118 | J68: 0.01663968945 | K68: 0.06497103436 | L68: 0.02717830849 | M68: 1.395382195 | N68: 0.3769581951 | O68: 0.2134736487 | P68: 0.1541303796 | Q68: 0.2469313479 | R68: 0 | S68: 0 | T68: 0.1322683384 | U68: 0 | V68: 0.114496481 | W68: 0.01896066193 | X68: 0.1289241964 | Y68: 0.01540526606 | Z68: 0.006692715002 | AA68: 0.01356269612 | AB68: 0.02468644991 | AC68: 0.007188896824 | AD68: 0.004428316389 | AE68: 0.008534025584 | AF68: 0.02418628834 | AG68: 0 | AH68: 0.01170190692 | AI68: 0.006289454528 | AJ68: 0.003173961991 | AK68: 0.008712618384 | AL68: 0.008253143381 | AM68: 0
B69: Manufacturing: Fabricated metal products except machinery and equipment | C69: 0.009074499871 | D69: 0.004117807342 | E69: 0.01116885205 | F69: 0.01780967314 | G69: 0.01321990291 | H69: 0.01317842377 | I69: 0.01249260502 | J69: 0.009175262038 | K69: 0.03186986773 | L69: 0.01072918652 | M69: 0.01638139789 | N69: 1.089827991 | O69: 0.06202710508 | P69: 0.05784224364 | Q69: 0.06996749346 | R69: 0 | S69: 0 | T69: 0.05257144766 | U69: 0 | V69: 0.04091497851 | W69: 0.01421731888 | X69: 0.04355464244 | Y69: 0.01255039672 | Z69: 0.005682396166 | AA69: 0.009090653109 | AB69: 0.01358210282 | AC69: 0.01135239637 | AD69: 0.002433393891 | AE69: 0.005882741251 | AF69: 0.01464109296 | AG69: 0 | AH69: 0.01635921056 | AI69: 0.005034470129 | AJ69: 0.002606296379 | AK69: 0.004919817033 | AL69: 0.006222871519 | AM69: 0
B70: Manufacturing: Machinery and equipment not classified elsewhere | C70: 0.00266713475 | D70: 0.002884037493 | E70: 0.004210628669 | F70: 0.01043689658 | G70: 0.007025954708 | H70: 0.009143727864 | I70: 0.008992353858 | J70: 0.005120916219 | K70: 0.0167382367 | L70: 0.00627831791 | M70: 0.01022739071 | N70: 0.02517489995 | O70: 1.091558519 | P70: 0.03898971658 | Q70: 0.03835222506 | R70: 0 | S70: 0 | T70: 0.02589637685 | U70: 0 | V70: 0.02520415411 | W70: 0.008980354932 | X70: 0.01267786937 | Y70: 0.007676348219 | Z70: 0.002012335819 | AA70: 0.004620242574 | AB70: 0.003974240803 | AC70: 0.00137198255 | AD70: 0.001075657122 | AE70: 0.009388329951 | AF70: 0.003821647207 | AG70: 0 | AH70: 0.002684618532 | AI70: 0.002374069323 | AJ70: 0.0008519090059 | AK70: 0.002604701672 | AL70: 0.003460161356 | AM70: 0
B71: Manufacturing: Office, accounting and computing machinery | C71: 0.01006150106 | D71: 0.005611623135 | E71: 0.01714109484 | F71: 0.03769051056 | G71: 0.01684181441 | H71: 0.04350462507 | I71: 0.0124423551 | J71: 0.0252207027 | K71: 0.07906602425 | L71: 0.03049364954 | M71: 0.02624065151 | N71: 0.07348587817 | O71: 0.1543174005 | P71: 1.882442586 | Q71: 0.2421371026 | R71: 0 | S71: 0 | T71: 0.1383971297 | U71: 0 | V71: 0.1348826822 | W71: 0.02275931811 | X71: 0.02624261658 | Y71: 0.04894571323 | Z71: 0.01040631888 | AA71: 0.01739219395 | AB71: 0.08028063274 | AC71: 0.01022005058 | AD71: 0.00620948445 | AE71: 0.01348530444 | AF71: 0.03064369807 | AG71: 0 | AH71: 0.02398585102 | AI71: 0.01600293254 | AJ71: 0.007553297814 | AK71: 0.04293376896 | AL71: 0.01609981514 | AM71: 0
B72: Manufacturing: Electrical machinery and apparatus not classified elsewhere | C72: 0.004229520181 | D72: 0.002393348094 | E72: 0.006894032977 | F72: 0.02072243411 | G72: 0.007211868139 | H72: 0.01882493223 | I72: 0.00541017243 | J72: 0.008351084179 | K72: 0.04306837298 | L72: 0.0130087862 | M72: 0.01669941096 | N72: 0.04581209954 | O72: 0.09337796628 | P72: 0.2326894594 | Q72: 1.254904583 | R72: 0 | S72: 0 | T72: 0.1039544811 | U72: 0 | V72: 0.05391826002 | W72: 0.008974401603 | X72: 0.02897049558 | Y72: 0.01410398393 | Z72: 0.00419505564 | AA72: 0.008030556789 | AB72: 0.03122162688 | AC72: 0.003899448037 | AD72: 0.003076027996 | AE72: 0.005461070416 | AF72: 0.02426839362 | AG72: 0 | AH72: 0.007311724798 | AI72: 0.005991078764 | AJ72: 0.002525243822 | AK72: 0.009213092554 | AL72: 0.006046712697 | AM72: 0
B73: Manufacturing: Radio, television and communication equipment | C73: 0 | D73: 0 | E73: 0 | F73: 0 | G73: 0 | H73: 0 | I73: 0 | J73: 0 | K73: 0 | L73: 0 | M73: 0 | N73: 0 | O73: 0 | P73: 0 | Q73: 0 | R73: 1 | S73: 0 | T73: 0 | U73: 0 | V73: 0 | W73: 0 | X73: 0 | Y73: 0 | Z73: 0 | AA73: 0 | AB73: 0 | AC73: 0 | AD73: 0 | AE73: 0 | AF73: 0 | AG73: 0 | AH73: 0 | AI73: 0 | AJ73: 0 | AK73: 0 | AL73: 0 | AM73: 0
B74: Manufacturing: Medical, precision and optical instruments | C74: 0 | D74: 0 | E74: 0 | F74: 0 | G74: 0 | H74: 0 | I74: 0 | J74: 0 | K74: 0 | L74: 0 | M74: 0 | N74: 0 | O74: 0 | P74: 0 | Q74: 0 | R74: 0 | S74: 1 | T74: 0 | U74: 0 | V74: 0 | W74: 0 | X74: 0 | Y74: 0 | Z74: 0 | AA74: 0 | AB74: 0 | AC74: 0 | AD74: 0 | AE74: 0 | AF74: 0 | AG74: 0 | AH74: 0 | AI74: 0 | AJ74: 0 | AK74: 0 | AL74: 0 | AM74: 0
B75: Manufacturing: Motor vehicles, trailers and semi-trailers | C75: 0.01161926369 | D75: 0.006830687775 | E75: 0.01854513304 | F75: 0.03346141687 | G75: 0.01551603083 | H75: 0.03084207485 | I75: 0.009720519029 | J75: 0.01558569588 | K75: 0.03776642674 | L75: 0.02310073256 | M75: 0.03454950033 | N75: 0.04209310793 | O75: 0.04767852504 | P75: 0.05255927644 | Q75: 0.05276763445 | R75: 0 | S75: 0 | T75: 1.318310731 | U75: 0 | V75: 0.03043592812 | W75: 0.01406241372 | X75: 0.01706479326 | Y75: 0.02034278812 | Z75: 0.01102662712 | AA75: 0.04992352965 | AB75: 0.01193149282 | AC75: 0.01062869953 | AD75: 0.003043163755 | AE75: 0.01521103473 | AF75: 0.02148342639 | AG75: 0 | AH75: 0.01636220637 | AI75: 0.007849927067 | AJ75: 0.005270125895 | AK75: 0.008207868572 | AL75: 0.016471503 | AM75: 0
B76: Manufacturing: Other transport equipment | C76: 0 | D76: 0 | E76: 0 | F76: 0 | G76: 0 | H76: 0 | I76: 0 | J76: 0 | K76: 0 | L76: 0 | M76: 0 | N76: 0 | O76: 0 | P76: 0 | Q76: 0 | R76: 0 | S76: 0 | T76: 0 | U76: 1 | V76: 0 | W76: 0 | X76: 0 | Y76: 0 | Z76: 0 | AA76: 0 | AB76: 0 | AC76: 0 | AD76: 0 | AE76: 0 | AF76: 0 | AG76: 0 | AH76: 0 | AI76: 0 | AJ76: 0 | AK76: 0 | AL76: 0 | AM76: 0
B77: Manufacturing: Manufacturing not classified elsewhere; recycling | C77: 0.002018692243 | D77: 0.001187429782 | E77: 0.003559003633 | F77: 0.01756828453 | G77: 0.005917223762 | H77: 0.009862868003 | I77: 0.002157343257 | J77: 0.006174120602 | K77: 0.01254904341 | L77: 0.006184813013 | M77: 0.005234740027 | N77: 0.01065092585 | O77: 0.01118759854 | P77: 0.02250605742 | Q77: 0.01893567115 | R77: 0 | S77: 0 | T77: 0.00979383366 | U77: 0 | V77: 1.051222932 | W77: 0.00414380446 | X77: 0.006657792671 | Y77: 0.005486075251 | Z77: 0.002681884414 | AA77: 0.003489716938 | AB77: 0.003408813955 | AC77: 0.003405683585 | AD77: 0.001565749598 | AE77: 0.004532017079 | AF77: 0.007165129395 | AG77: 0 | AH77: 0.003784225365 | AI77: 0.003412417255 | AJ77: 0.001839097645 | AK77: 0.01447079553 | AL77: 0.008356787476 | AM77: 0
B78: Electricity, gas and water supply | C78: 0.02059461284 | D78: 0.009496040221 | E78: 0.02723162993 | F78: 0.03366569228 | G78: 0.02658877051 | H78: 0.04564020518 | I78: 0.01091626979 | J78: 0.02116617822 | K78: 0.0414764885 | L78: 0.03782777257 | M78: 0.06272827392 | N78: 0.04139866318 | O78: 0.0308631293 | P78: 0.03581534937 | Q78: 0.03877134085 | R78: 0 | S78: 0 | T78: 0.02760967425 | U78: 0 | V78: 0.03254153856 | W78: 1.167502823 | X78: 0.0187114616 | Y78: 0.01689628703 | Z78: 0.04706327099 | AA78: 0.01228998407 | AB78: 0.013490892 | AC78: 0.008166146141 | AD78: 0.01344902707 | AE78: 0.006662287692 | AF78: 0.02130579113 | AG78: 0 | AH78: 0.01186483611 | AI78: 0.02466086098 | AJ78: 0.009393919766 | AK78: 0.01894715199 | AL78: 0.02355499635 | AM78: 0
B79: Construction | C79: 0.003259222211 | D79: 0.001065286628 | E79: 0.004346709184 | F79: 0.002714573333 | G79: 0.001632935809 | H79: 0.002030783439 | I79: 0.003909947857 | J79: 0.002436460487 | K79: 0.003071728437 | L79: 0.002697758514 | M79: 0.001617231371 | N79: 0.002519505683 | O79: 0.002420558883 | P79: 0.004743933277 | Q79: 0.005133154929 | R79: 0 | S79: 0 | T79: 0.003357299688 | U79: 0 | V79: 0.003041417327 | W79: 0.004205485342 | X79: 1.070523724 | Y79: 0.001054838977 | Z79: 0.003849204684 | AA79: 0.002319274225 | AB79: 0.001017050852 | AC79: 0.002612856699 | AD79: 0.004557682278 | AE79: 0.0006480951374 | AF79: 0.003237625866 | AG79: 0 | AH79: 0.001585914723 | AI79: 0.0045954759 | AJ79: 0.003028880239 | AK79: 0.002141642466 | AL79: 0.001436589391 | AM79: 0
B80: Wholesale and retail trade; repairs | C80: 0.0922936435 | D80: 0.03971701618 | E80: 0.1492568207 | F80: 0.1376431029 | G80: 0.1353727063 | H80: 0.1704552204 | I80: 0.06173960003 | J80: 0.1207681832 | K80: 0.1600761741 | L80: 0.1123650176 | M80: 0.1748335475 | N80: 0.1672889473 | O80: 0.1513902465 | P80: 0.1499363788 | Q80: 0.1558655269 | R80: 0 | S80: 0 | T80: 0.2043006317 | U80: 0 | V80: 0.1313844332 | W80: 0.149681408 | X80: 0.1284715714 | Y80: 1.048173842 | Z80: 0.04830509224 | AA80: 0.08812255905 | AB80: 0.05681220483 | AC80: 0.03048734659 | AD80: 0.01769879641 | AE80: 0.02804357695 | AF80: 0.06293892074 | AG80: 0 | AH80: 0.05024402287 | AI80: 0.04426660062 | AJ80: 0.01545342799 | AK80: 0.05746283159 | AL80: 0.05196586625 | AM80: 0
B81: Hotels and restaurants | C81: 0.001682014462 | D81: 0.003146425977 | E81: 0.003594070401 | F81: 0.01120594089 | G81: 0.003203183994 | H81: 0.006091196688 | I81: 0.003627978177 | J81: 0.006682399006 | K81: 0.008757768857 | L81: 0.004045834593 | M81: 0.00378642633 | N81: 0.008198754563 | O81: 0.008947897083 | P81: 0.0162225864 | Q81: 0.0130938967 | R81: 0 | S81: 0 | T81: 0.009630393294 | U81: 0 | V81: 0.01075792197 | W81: 0.006147975159 | X81: 0.005912179137 | Y81: 0.002212637201 | Z81: 1.002371531 | AA81: 0.007987147142 | AB81: 0.004070645526 | AC81: 0.006752427991 | AD81: 0.0009921669717 | AE81: 0.002253100842 | AF81: 0.01067337094 | AG81: 0 | AH81: 0.007848158314 | AI81: 0.01358572124 | AJ81: 0.002901910522 | AK81: 0.004860105131 | AL81: 0.003399125692 | AM81: 0
B82: Transport and storage | C82: 0.03289379704 | D82: 0.01552302737 | E82: 0.05283737294 | F82: 0.05007487151 | G82: 0.05519398047 | H82: 0.07260532328 | I82: 0.02255978603 | J82: 0.04303982613 | K82: 0.05976494263 | L82: 0.03823131979 | M82: 0.04570834681 | N82: 0.04903285778 | O82: 0.05046646151 | P82: 0.06360538067 | Q82: 0.05882429462 | R82: 0 | S82: 0 | T82: 0.05779924236 | U82: 0 | V82: 0.05250896148 | W82: 0.0598877362 | X82: 0.042251513 | Y82: 0.01753141687 | Z82: 0.01931216134 | AA82: 1.040462046 | AB82: 0.03555755205 | AC82: 0.01359850648 | AD82: 0.006998286411 | AE82: 0.01008182649 | AF82: 0.02635912907 | AG82: 0 | AH82: 0.02238761338 | AI82: 0.01900511076 | AJ82: 0.006723133629 | AK82: 0.0196206196 | AL82: 0.02438807841 | AM82: 0
B83: Post and telecommunications | C83: 0.01000991861 | D83: 0.006152347594 | E83: 0.01706785881 | F83: 0.01548163673 | G83: 0.01132322225 | H83: 0.02297517509 | I83: 0.009867538016 | J83: 0.02822137881 | K83: 0.02064399273 | L83: 0.01423125563 | M83: 0.009298379773 | N83: 0.01760088867 | O83: 0.01647487922 | P83: 0.01934755186 | Q83: 0.01604749051 | R83: 0 | S83: 0 | T83: 0.0172244879 | U83: 0 | V83: 0.01801408454 | W83: 0.01641217283 | X83: 0.01480281236 | Y83: 0.01932564292 | Z83: 0.02448789054 | AA83: 0.01577473494 | AB83: 1.075587657 | AC83: 0.03694967949 | AD83: 0.01300465296 | AE83: 0.01312389108 | AF83: 0.04955706616 | AG83: 0 | AH83: 0.03280941992 | AI83: 0.03015712769 | AJ83: 0.02385454757 | AK83: 0.01555367914 | AL83: 0.04117343148 | AM83: 0
B84: Finance and insurance | C84: 0.0253132437 | D84: 0.03111260993 | E84: 0.02465265664 | F84: 0.02168350214 | G84: 0.01864398665 | H84: 0.03292763376 | I84: 0.03206733406 | J84: 0.03255358338 | K84: 0.02513258371 | L84: 0.02341670542 | M84: 0.02334335279 | N84: 0.02591069843 | O84: 0.02285670854 | P84: 0.02078056469 | Q84: 0.02187399821 | R84: 0 | S84: 0 | T84: 0.02343417268 | U84: 0 | V84: 0.01978255491 | W84: 0.04094838891 | X84: 0.02257743544 | Y84: 0.03879834663 | Z84: 0.02912878263 | AA84: 0.04520646952 | AB84: 0.03296823327 | AC84: 1.148535898 | AD84: 0.007597873144 | AE84: 0.01556912242 | AF84: 0.01791383976 | AG84: 0 | AH84: 0.01724661579 | AI84: 0.03011797012 | AJ84: 0.004825092035 | AK84: 0.008728645997 | AL84: 0.02010305854 | AM84: 0
B85: Real estate activities | C85: 0.007032296952 | D85: 0.004938428495 | E85: 0.01628447404 | F85: 0.02587547495 | G85: 0.01359115742 | H85: 0.03068111332 | I85: 0.008424364308 | J85: 0.01654599419 | K85: 0.03067550891 | L85: 0.01713841963 | M85: 0.01281967006 | N85: 0.02458572151 | O85: 0.02288828924 | P85: 0.02532074207 | Q85: 0.02525221891 | R85: 0 | S85: 0 | T85: 0.0199863162 | U85: 0 | V85: 0.02735018197 | W85: 0.01214977492 | X85: 0.01521839008 | Y85: 0.03446741546 | Z85: 0.03350629013 | AA85: 0.01658139703 | AB85: 0.03410939624 | AC85: 0.04306758141 | AD85: 1.012525746 | AE85: 0.01725684698 | AF85: 0.0449476914 | AG85: 0 | AH85: 0.03208226476 | AI85: 0.01702408798 | AJ85: 0.01444336846 | AK85: 0.02116078886 | AL85: 0.03368471661 | AM85: 0
B86: Renting of machinery and equipment | C86: 0.005219889645 | D86: 0.01742569852 | E86: 0.009235319764 | F86: 0.007132660879 | G86: 0.004306800072 | H86: 0.01292274946 | I86: 0.01394650845 | J86: 0.01780843576 | K86: 0.01354326523 | L86: 0.01072992931 | M86: 0.006989275618 | N86: 0.008507117392 | O86: 0.01604687528 | P86: 0.01375326946 | Q86: 0.01090666843 | R86: 0 | S86: 0 | T86: 0.01221270096 | U86: 0 | V86: 0.008318274002 | W86: 0.01064696508 | X86: 0.01345449196 | Y86: 0.005723894157 | Z86: 0.008775609745 | AA86: 0.0137779586 | AB86: 0.01492103242 | AC86: 0.004350393809 | AD86: 0.00124530111 | AE86: 1.007616369 | AF86: 0.01185564999 | AG86: 0 | AH86: 0.005355562767 | AI86: 0.004243125874 | AJ86: 0.002047910101 | AK86: 0.003096505511 | AL86: 0.007672571244 | AM86: 0
B87: Computer and related activities | C87: 0.0002208348154 | D87: 0.0001523976102 | E87: 0.0003570942856 | F87: 0.0003416512713 | G87: 0.0002755713307 | H87: 0.0004389179962 | I87: 0.000202462865 | J87: 0.0003314122723 | K87: 0.0004137030837 | L87: 0.0002696586758 | M87: 0.0002922636455 | N87: 0.0003972415017 | O87: 0.0003920346272 | P87: 0.0003696298071 | Q87: 0.0003457839484 | R87: 0 | S87: 0 | T87: 0.0003623727944 | U87: 0 | V87: 0.0003543539106 | W87: 0.0003243180315 | X87: 0.0005303783083 | Y87: 0.001175080792 | Z87: 0.0008933472596 | AA87: 0.0003073001849 | AB87: 0.0003062791266 | AC87: 0.001981833786 | AD87: 0.0002193279985 | AE87: 0.0002149234043 | AF87: 1.000732303 | AG87: 0 | AH87: 0.000379171259 | AI87: 0.0009075210237 | AJ87: 0.0002031533953 | AK87: 0.0001714440654 | AL87: 0.000260489678 | AM87: 0
B88: Research and development | C88: 0 | D88: 0 | E88: 0 | F88: 0 | G88: 0 | H88: 0 | I88: 0 | J88: 0 | K88: 0 | L88: 0 | M88: 0 | N88: 0 | O88: 0 | P88: 0 | Q88: 0 | R88: 0 | S88: 0 | T88: 0 | U88: 0 | V88: 0 | W88: 0 | X88: 0 | Y88: 0 | Z88: 0 | AA88: 0 | AB88: 0 | AC88: 0 | AD88: 0 | AE88: 0 | AF88: 0 | AG88: 1 | AH88: 0 | AI88: 0 | AJ88: 0 | AK88: 0 | AL88: 0 | AM88: 0
B89: Other Business Activities | C89: 0.04122295539 | D89: 0.03588570068 | E89: 0.07494895877 | F89: 0.0835476917 | G89: 0.04384623306 | H89: 0.1025673346 | I89: 0.09362779047 | J89: 0.08981233241 | K89: 0.1020303219 | L89: 0.0771088511 | M89: 0.05957961556 | N89: 0.08526147373 | O89: 0.08628136157 | P89: 0.09968747801 | Q89: 0.0841617051 | R89: 0 | S89: 0 | T89: 0.07432606137 | U89: 0 | V89: 0.07812831533 | W89: 0.07524214407 | X89: 0.06892337358 | Y89: 0.08296705325 | Z89: 0.07399104897 | AA89: 0.07664100607 | AB89: 0.1439794376 | AC89: 0.1870711036 | AD89: 0.03642722993 | AE89: 0.04595956278 | AF89: 0.2889942845 | AG89: 0 | AH89: 1.103828813 | AI89: 0.0814787265 | AJ89: 0.04269874984 | AK89: 0.0596419984 | AL89: 0.08088981192 | AM89: 0
B90: Public admin. and defence; compulsory social security | C90: 0.0003428882204 | D90: 0.000236790163 | E90: 0.0004562523068 | F90: 0.0004675515284 | G90: 0.0004378516086 | H90: 0.0006668519845 | I90: 0.0002763249533 | J90: 0.0004167009712 | K90: 0.0005626341342 | L90: 0.0004493355568 | M90: 0.0006116862341 | N90: 0.0005215801166 | O90: 0.0004614640192 | P90: 0.0005307337549 | Q90: 0.000531204738 | R90: 0 | S90: 0 | T90: 0.000473673303 | U90: 0 | V90: 0.0004641352717 | W90: 0.006650786897 | X90: 0.0003945047734 | Y90: 0.0003160673531 | Z90: 0.0004456257287 | AA90: 0.004413074435 | AB90: 0.0004124458775 | AC90: 0.004586192478 | AD90: 0.0001308066488 | AE90: 0.0002372790952 | AF90: 0.0002940944535 | AG90: 0 | AH90: 0.0002232780413 | AI90: 1.000328283 | AJ90: 9.78791492e-05 | AK90: 0.0002155623859 | AL90: 0.0003057660749 | AM90: 0
B91: Education | C91: 0.0001808515664 | D91: 0.0001533819629 | E91: 0.0003463786271 | F91: 0.0002967644456 | G91: 0.0001873749521 | H91: 0.0004934777264 | I91: 0.0002320876109 | J91: 0.0007007850619 | K91: 0.0004106423398 | L91: 0.0003241238564 | M91: 0.000223632091 | N91: 0.0003166063422 | O91: 0.0003093071686 | P91: 0.0003257047899 | Q91: 0.0003177723599 | R91: 0 | S91: 0 | T91: 0.0003600884207 | U91: 0 | V91: 0.0003399438941 | W91: 0.0009656522626 | X91: 0.0002719329075 | Y91: 0.0003158587758 | Z91: 0.0003425614652 | AA91: 0.0006727348463 | AB91: 0.0003863063258 | AC91: 0.003337335846 | AD91: 0.0001438290648 | AE91: 0.0001792560222 | AF91: 0.0005822459288 | AG91: 0 | AH91: 0.0006613026042 | AI91: 0.009162912843 | AJ91: 1.001787731 | AK91: 0.0009974625561 | AL91: 0.000791133945 | AM91: 0
B92: Health and social work | C92: 5.387434525e-05 | D92: 2.432657191e-05 | E92: 9.353506497e-05 | F92: 0.0001008951506 | G92: 8.506685132e-05 | H92: 0.0001180597856 | I92: 3.967101722e-05 | J92: 8.064885617e-05 | K92: 0.000114429195 | L92: 7.073795583e-05 | M92: 9.677150499e-05 | N92: 0.000110054594 | O92: 0.0001007352254 | P92: 0.000105532474 | Q92: 0.0001061299446 | R92: 0 | S92: 0 | T92: 0.000126519028 | U92: 0 | V92: 9.915639945e-05 | W92: 8.602672329e-05 | X92: 8.121731585e-05 | Y92: 6.212321209e-05 | Z92: 6.170314356e-05 | AA92: 5.851752443e-05 | AB92: 6.423806133e-05 | AC92: 6.204269304e-05 | AD92: 2.265743415e-05 | AE92: 3.353877282e-05 | AF92: 8.387311038e-05 | AG92: 0 | AH92: 6.30347367e-05 | AI92: 4.354375469e-05 | AJ92: 2.458167476e-05 | AK92: 1.000055984 | AL92: 6.539306537e-05 | AM92: 0
B93: Other community, social and personal services | C93: 0.0006962529531 | D93: 0.001019904054 | E93: 0.001110032669 | F93: 0.001139280573 | G93: 0.0007511904357 | H93: 0.001653661231 | I93: 0.001177852899 | J93: 0.001440493865 | K93: 0.001395059282 | L93: 0.001029732598 | M93: 0.000907751466 | N93: 0.001162428216 | O93: 0.001301295024 | P93: 0.001414942463 | Q93: 0.001285314491 | R93: 0 | S93: 0 | T93: 0.001189407992 | U93: 0 | V93: 0.001275646264 | W93: 0.001723939766 | X93: 0.001522276112 | Y93: 0.001149768565 | Z93: 0.008247764752 | AA93: 0.002573964518 | AB93: 0.005881842165 | AC93: 0.009155343635 | AD93: 0.0004501332043 | AE93: 0.0009333845947 | AF93: 0.002437250309 | AG93: 0 | AH93: 0.004651528218 | AI93: 0.00432151497 | AJ93: 0.000999062062 | AK93: 0.005319330349 | AL93: 1.007963637 | AM93: 0
B94: Private households with employed persons | C94: 0 | D94: 0 | E94: 0 | F94: 0 | G94: 0 | H94: 0 | I94: 0 | J94: 0 | K94: 0 | L94: 0 | M94: 0 | N94: 0 | O94: 0 | P94: 0 | Q94: 0 | R94: 0 | S94: 0 | T94: 0 | U94: 0 | V94: 0 | W94: 0 | X94: 0 | Y94: 0 | Z94: 0 | AA94: 0 | AB94: 0 | AC94: 0 | AD94: 0 | AE94: 0 | AF94: 0 | AG94: 0 | AH94: 0 | AI94: 0 | AJ94: 0 | AK94: 0 | AL94: 0 | AM94: 1
B98: Total Requirements - Type 2
C99: C01T05 Agriculture, hunting, forestry and fishing | D99: C10T14 Mining and quarrying | E99: C15T16 Food products, beverages and tobacco | F99: C17T19 Textiles, textile products, leather and footwear | G99: C20 Wood and products of wood and cork | H99: C21T22 Pulp, paper, paper products, printing and publishing | I99: C23 Coke, refined petroleum products and nuclear fuel | J99: C24 Chemicals and chemical products | K99: C25 Rubber and plastics products | L99: C26 Other non-metallic mineral products | M99: C27 Basic metals | N99: C28 Fabricated metal products except machinery and equipment | O99: C29 Machinery and equipment n.e.c | P99: C30 Office, accounting and computing machinery | Q99: C31 Electrical machinery and apparatus n.e.c | R99: C32 Radio, television and communication equipment | S99: C33 Medical, precision and optical instruments | T99: C34 Motor vehicles, trailers and semi-trailers | U99: C35 Other transport equipment | V99: C36T37 Manufacturing n.e.c; recycling | W99: C40T41 Electricity, gas and water supply | X99: C45 Construction | Y99: C50T52 Wholesale and retail trade; repairs | Z99: C55 Hotels and restaurants | AA99: C60T63 Transport and storage | AB99: C64 Post and telecommunications | AC99: C65T67 Finance and insurance | AD99: C70 Real estate activities | AE99: C71 Renting of machinery and equipment | AF99: C72 Computer and related activities | AG99: C73 Research and development | AH99: C74 Other Business Activities | AI99: C75 Public admin. and defence; compulsory social security | AJ99: C80 Education | AK99: C85 Health and social work | AL99: C90T93 Other community, social and personal services | AM99: C95 Private households with employed persons | AN99: Households | AO99: Labor
B100: Agriculture, hunting, forestry and fishing | C100: 1.180712218 | D100: 0.01821146072 | E100: 0.3106211006 | F100: 0.1336369243 | G100: 0.3546366905 | H100: 0.05826036513 | I100: 0.03192622253 | J100: 0.04964316353 | K100: 0.06400177607 | L100: 0.04738114339 | M100: 0.03979933576 | N100: 0.05621415976 | O100: 0.07532957071 | P100: 0.06265451508 | Q100: 0.06081550122 | R100: 0 | S100: 0 | T100: 0.05637884085 | U100: 0 | V100: 0.07974093896 | W100: 0.05086773294 | X100: 0.06006249713 | Y100: 0.04361348082 | Z100: 0.04802561421 | AA100: 0.04880416591 | AB100: 0.04381065276 | AC100: 0.0481389834 | AD100: 0.00636013963 | AE100: 0.01348429215 | AF100: 0.07750026365 | AG100: 0 | AH100: 0.05696282146 | AI100: 0.1247852862 | AJ100: 0.1080457175 | AK100: 0.07852446857 | AL100: 0.03606006267 | AM100: 0.1511159593 | AN100: 0.1511159593 | AO100: 0.1511159593
B101: Mining and quarrying | C101: 0.05292683559 | D101: 1.046115535 | E101: 0.05544227563 | F101: 0.06696645586 | G101: 0.05746416841 | H101: 0.07992367004 | I101: 0.7209128357 | J101: 0.3278873323 | K101: 0.1265030379 | L101: 0.1452168396 | M101: 0.1862837031 | N101: 0.09866211175 | O101: 0.09597548046 | P101: 0.08929926855 | Q101: 0.09697647069 | R101: 0 | S101: 0 | T101: 0.07222026171 | U101: 0 | V101: 0.09451577802 | W101: 0.1664730315 | X101: 0.09022665659 | Y101: 0.03374808589 | Z101: 0.04779900879 | AA101: 0.09447489025 | AB101: 0.04740560732 | AC101: 0.03308667789 | AD101: 0.0113802097 | AE101: 0.01748897464 | AF101: 0.06256103924 | AG101: 0 | AH101: 0.04863908341 | AI101: 0.08733579238 | AJ101: 0.06435734758 | AK101: 0.07221809239 | AL101: 0.04398528688 | AM101: 0.0839169921 | AN101: 0.0839169921 | AO101: 0.0839169921
B102: Manufacturing: Food products, beverages and tobacco | C102: 0.1613701996 | D102: 0.03611335913 | E102: 1.238416105 | F102: 0.1536874515 | G102: 0.1176457347 | H102: 0.1138446274 | I102: 0.06380785993 | J102: 0.09027043219 | K102: 0.1142666474 | L102: 0.08737296275 | M102: 0.07918576454 | N102: 0.1108408193 | O102: 0.1498447302 | P102: 0.1152633886 | Q102: 0.1160583605 | R102: 0 | S102: 0 | T102: 0.1062905807 | U102: 0 | V102: 0.1205231605 | W102: 0.102244708 | X102: 0.111366148 | Y102: 0.08387459005 | Z102: 0.1079369616 | AA102: 0.09973028609 | AB102: 0.08942789127 | AC102: 0.09909835494 | AD102: 0.01276187549 | AE102: 0.02808564397 | AF102: 0.1624272113 | AG102: 0 | AH102: 0.1169911978 | AI102: 0.2565488316 | AJ102: 0.2231806571 | AK102: 0.1605950366 | AL102: 0.07449789546 | AM102: 0.3116734965 | AN102: 0.3116734965 | AO102: 0.3116734965
B103: Manufacturing: Textiles, textile products, leather and footwear | C103: 0.02166617664 | D103: 0.009859023995 | E103: 0.02839622795 | F103: 1.513574181 | G103: 0.03135134676 | H103: 0.08327645322 | I103: 0.01848322032 | J103: 0.02844084844 | K103: 0.06907287159 | L103: 0.03265567897 | M103: 0.03444569432 | N103: 0.0501622599 | O103: 0.06266838635 | P103: 0.07095779917 | Q103: 0.06643354038 | R103: 0 | S103: 0 | T103: 0.09083561191 | U103: 0 | V103: 0.1176566899 | W103: 0.02929104956 | X103: 0.03374202078 | Y103: 0.03033335381 | Z103: 0.02862553565 | AA103: 0.03199540586 | AB103: 0.02660705315 | AC103: 0.02549129133 | AD103: 0.004420575728 | AE103: 0.009993462016 | AF103: 0.04376038991 | AG103: 0 | AH103: 0.03381272285 | AI103: 0.0669216075 | AJ103: 0.05267407053 | AK103: 0.04401370195 | AL103: 0.02758381274 | AM103: 0.07091491765 | AN103: 0.07091491765 | AO103: 0.07091491765
B104: Manufacturing: Wood and products of wood and cork | C104: 0.004123507864 | D104: 0.003366846463 | E104: 0.005029546164 | F104: 0.008091513939 | G104: 1.145036524 | H104: 0.008979052933 | I104: 0.004283428471 | J104: 0.005711185426 | K104: 0.008604049719 | L104: 0.008426043704 | M104: 0.006456709469 | N104: 0.009650964745 | O104: 0.01085265186 | P104: 0.02136940922 | Q104: 0.01361856114 | R104: 0 | S104: 0 | T104: 0.01025194911 | U104: 0 | V104: 0.06318322475 | W104: 0.005518406446 | X104: 0.01587780135 | Y104: 0.01350271392 | Z104: 0.003615867826 | AA104: 0.004637547769 | AB104: 0.004460765553 | AC104: 0.003741759309 | AD104: 0.0008523622189 | AE104: 0.001582075049 | AF104: 0.006373963171 | AG104: 0 | AH104: 0.004712840332 | AI104: 0.008760848958 | AJ104: 0.007212088893 | AK104: 0.006915430984 | AL104: 0.003571845913 | AM104: 0.009537464937 | AN104: 0.009537464937 | AO104: 0.009537464937
B105: Manufacturing: Pulp, paper, paper products, printing and publishing | C105: 0.01769867875 | D105: 0.007877600037 | E105: 0.03628868943 | F105: 0.04910808718 | G105: 0.02461703331 | H105: 1.35076902 | I105: 0.01585262829 | J105: 0.0334122955 | K105: 0.05422586508 | L105: 0.04390771035 | M105: 0.02109852796 | N105: 0.04003972468 | O105: 0.04694529627 | P105: 0.06993140486 | Q105: 0.05689786176 | R105: 0 | S105: 0 | T105: 0.03756312574 | U105: 0 | V105: 0.06727752335 | W105: 0.0237817792 | X105: 0.02635764908 | Y105: 0.02279296475 | Z105: 0.02343139567 | AA105: 0.0255349056 | AB105: 0.02715933571 | AC105: 0.03038284119 | AD105: 0.0122825611 | AE105: 0.009873188557 | AF105: 0.04470598424 | AG105: 0 | AH105: 0.05118236337 | AI105: 0.05003555657 | AJ105: 0.03716451198 | AK105: 0.03184112631 | AL105: 0.02978061201 | AM105: 0.04069648784 | AN105: 0.04069648784 | AO105: 0.04069648784
B106: Manufacturing: Coke, refined petroleum products and nuclear fuel | C106: 0.03936274861 | D106: 0.01978736643 | E106: 0.04013613183 | F106: 0.04356880535 | G106: 0.04647150726 | H106: 0.05006105018 | I106: 1.034554698 | J106: 0.0468620893 | K106: 0.04690902998 | L106: 0.05568101502 | M106: 0.06629391264 | N106: 0.0510124979 | O106: 0.05215685712 | P106: 0.04499857032 | Q106: 0.04946276501 | R106: 0 | S106: 0 | T106: 0.04041941054 | U106: 0 | V106: 0.05040614336 | W106: 0.1158950157 | X106: 0.04856564998 | Y106: 0.02384479136 | Z106: 0.03547480675 | AA106: 0.1095358814 | AB106: 0.04219140602 | AC106: 0.02512319669 | AD106: 0.007136594048 | AE106: 0.01382565177 | AF106: 0.04385992089 | AG106: 0 | AH106: 0.03441669235 | AI106: 0.07113129366 | AJ106: 0.05037256193 | AK106: 0.04372066197 | AL106: 0.02719811138 | AM106: 0.06622640469 | AN106: 0.06622640469 | AO106: 0.06622640469
B107: Manufacturing: Chemicals and chemical products | C107: 0.1063209472 | D107: 0.07145052808 | E107: 0.1043384467 | F107: 0.1415019366 | G107: 0.09952985738 | H107: 0.1794035411 | I107: 0.1378124161 | J107: 1.316008516 | K107: 0.3837980362 | L107: 0.121852847 | M107: 0.09577048757 | N107: 0.1252201443 | O107: 0.1576581677 | P107: 0.1799653322 | Q107: 0.1654676962 | R107: 0 | S107: 0 | T107: 0.1329933743 | U107: 0 | V107: 0.1742695719 | W107: 0.2964072841 | X107: 0.1059214266 | Y107: 0.06314748962 | Z107: 0.09086502849 | AA107: 0.08010219833 | AB107: 0.06600554218 | AC107: 0.05965356876 | AD107: 0.02320592185 | AE107: 0.03008417672 | AF107: 0.1222958358 | AG107: 0 | AH107: 0.09763957059 | AI107: 0.1489563358 | AJ107: 0.1142537028 | AK107: 0.1721429106 | AL107: 0.1029238111 | AM107: 0.148400067 | AN107: 0.148400067 | AO107: 0.148400067
B108: Manufacturing: Rubber and plastics products | C108: 0.02208020364 | D108: 0.007535242041 | E108: 0.03956241651 | F108: 0.05518802299 | G108: 0.02507262807 | H108: 0.05970867357 | I108: 0.01569332991 | J108: 0.02699164227 | K108: 1.088821244 | L108: 0.02604863374 | M108: 0.02276241171 | N108: 0.05175033641 | O108: 0.0723030921 | P108: 0.1295754077 | Q108: 0.112715134 | R108: 0 | S108: 0 | T108: 0.1029447234 | U108: 0 | V108: 0.09803380272 | W108: 0.02178148589 | X108: 0.04949300342 | Y108: 0.02297102208 | Z108: 0.02193640356 | AA108: 0.02730873534 | AB108: 0.02217230205 | AC108: 0.01716478444 | AD108: 0.003925224239 | AE108: 0.009121432916 | AF108: 0.0387962665 | AG108: 0 | AH108: 0.03046402774 | AI108: 0.03650006506 | AJ108: 0.03036696111 | AK108: 0.02955646782 | AL108: 0.02270849616 | AM108: 0.03888361672 | AN108: 0.03888361672 | AO108: 0.03888361672
B109: Manufacturing: Other non-metallic mineral products | C109: 0.006585919321 | D109: 0.006702226874 | E109: 0.01618123433 | F109: 0.01188703065 | G109: 0.01112142214 | H109: 0.01331626258 | I109: 0.008168010275 | J109: 0.01071333222 | K109: 0.01425385215 | L109: 1.073696761 | M109: 0.01124467066 | N109: 0.02069402326 | O109: 0.02066212822 | P109: 0.0335150693 | Q109: 0.02883895715 | R109: 0 | S109: 0 | T109: 0.02127257979 | U109: 0 | V109: 0.02673934768 | W109: 0.009971517179 | X109: 0.1024247945 | Y109: 0.009468649187 | Z109: 0.008685446821 | AA109: 0.009981630602 | AB109: 0.009515987311 | AC109: 0.00756315808 | AD109: 0.003037958957 | AE109: 0.003020319595 | AF109: 0.01249198945 | AG109: 0 | AH109: 0.009578659586 | AI109: 0.01969497908 | AJ109: 0.01538479025 | AK109: 0.01222473389 | AL109: 0.007668521507 | AM109: 0.0205529279 | AN109: 0.0205529279 | AO109: 0.0205529279
B110: Manufacturing: Basic metals | C110: 0.01600914372 | D110: 0.02058944026 | E110: 0.02059306354 | F110: 0.03775569408 | G110: 0.02433748534 | H110: 0.03520060678 | I110: 0.0259862362 | J110: 0.02641323218 | K110: 0.07764635484 | L110: 0.03705701223 | M110: 1.404318603 | N110: 0.3895012983 | O110: 0.2306323835 | P110: 0.1669905802 | Q110: 0.2600392795 | R110: 0 | S110: 0 | T110: 0.1441587429 | U110: 0 | V110: 0.1278295692 | W110: 0.03056882414 | X110: 0.1417189029 | Y110: 0.02486996806 | Z110: 0.01683809508 | AA110: 0.02502123852 | AB110: 0.0350164551 | AC110: 0.0187501936 | AD110: 0.005864424812 | AE110: 0.01151367354 | AF110: 0.04223920255 | AG110: 0 | AH110: 0.02517452546 | AI110: 0.03647002634 | AJ110: 0.02939783341 | AK110: 0.0273171225 | AL110: 0.01632948364 | AM110: 0.03695057785 | AN110: 0.03695057785 | AO110: 0.03695057785
B111: Manufacturing: Fabricated metal products except machinery and equipment | C111: 0.01476299492 | D111: 0.007192258334 | E111: 0.01797872328 | F111: 0.02777350093 | G111: 0.02105259132 | H111: 0.02231910882 | I111: 0.01793921472 | J111: 0.01645648213 | K111: 0.0413128917 | L111: 0.01808875082 | M111: 0.02303895837 | N111: 1.099172514 | O111: 0.07481024092 | P111: 0.067423002 | Q111: 0.07973280964 | R111: 0 | S111: 0 | T111: 0.06142971478 | U111: 0 | V111: 0.05084803481 | W111: 0.02286531748 | X111: 0.05308660816 | Y111: 0.01960153266 | Z111: 0.01324063245 | AA111: 0.01762718602 | AB111: 0.02127788351 | AC111: 0.01996548056 | AD111: 0.003503284493 | AE111: 0.008102557871 | AF111: 0.02809038616 | AG111: 0 | AH111: 0.02639621593 | AI111: 0.02751878232 | AJ111: 0.02214289481 | AK111: 0.0187800408 | AL111: 0.01223968779 | AM111: 0.02752791873 | AN111: 0.02752791873 | AO111: 0.02752791873
B112: Manufacturing: Machinery and equipment not classified elsewhere | C112: 0.004974803405 | D112: 0.004131259143 | E112: 0.006973209322 | F112: 0.01447895214 | G112: 0.01020346464 | H112: 0.01285185667 | I112: 0.01120189616 | J112: 0.008074710364 | K112: 0.02056901623 | L112: 0.009263894182 | M112: 0.01292818301 | N112: 0.02896572029 | O112: 1.096744292 | P112: 0.04287637123 | Q112: 0.04231374983 | R112: 0 | S112: 0 | T112: 0.02948993634 | U112: 0 | V112: 0.02923372651 | W112: 0.01248861417 | X112: 0.01654473016 | Y112: 0.01053680344 | Z112: 0.005078507944 | AA112: 0.008083283193 | AB112: 0.007096210974 | AC112: 0.004866077953 | AD112: 0.001509682815 | AE112: 0.01028884954 | AF112: 0.009277661859 | AG112: 0 | AH112: 0.006756360261 | AI112: 0.01149534692 | AJ112: 0.00877737882 | AK112: 0.008227419744 | AL112: 0.005901021055 | AM112: 0.01116733242 | AN112: 0.01116733242 | AO112: 0.01116733242
B113: Manufacturing: Office, accounting and computing machinery | C113: 0.02570343175 | D113: 0.01406559012 | E113: 0.03586652798 | F113: 0.065088531 | G113: 0.03837973756 | H113: 0.06863921 | I113: 0.0274191619 | J113: 0.04524222668 | K113: 0.1050319652 | L113: 0.05073060038 | M113: 0.04454726842 | N113: 0.09918096615 | O113: 0.1894678089 | P113: 1.908787262 | Q113: 0.268989266 | R113: 0 | S113: 0 | T113: 0.1627551363 | U113: 0 | V113: 0.1621960888 | W113: 0.04653913925 | X113: 0.05245312494 | Y113: 0.06833456364 | Z113: 0.03118956771 | AA113: 0.04086551247 | AB113: 0.1014420941 | AC113: 0.03390386585 | AD113: 0.009151414518 | AE113: 0.01958924184 | AF113: 0.06762587177 | AG113: 0 | AH113: 0.0515850914 | AI113: 0.07782913608 | AJ113: 0.06127402989 | AK113: 0.08104589835 | AL113: 0.03264454662 | AM113: 0.07569485302 | AN113: 0.07569485302 | AO113: 0.07569485302
B114: Manufacturing: Electrical machinery and apparatus not classified elsewhere | C114: 0.01171130995 | D114: 0.00643701795 | E114: 0.0158507121 | F114: 0.03382735273 | G114: 0.01751380696 | H114: 0.03084721286 | I114: 0.01257382263 | J114: 0.01792770462 | K114: 0.05548830469 | L114: 0.02268844881 | M114: 0.02545576346 | N114: 0.05810247789 | O114: 0.1101909782 | P114: 0.2452905462 | Q114: 1.267748409 | R114: 0 | S114: 0 | T114: 0.1156053117 | U114: 0 | V114: 0.06698270647 | W114: 0.02034867668 | X114: 0.04150740787 | Y114: 0.02337798631 | Z114: 0.01413602146 | AA114: 0.01925822668 | AB114: 0.04134349789 | AC114: 0.01522780194 | AD114: 0.004483200979 | AE114: 0.008380682918 | AF114: 0.04195756857 | AG114: 0 | AH114: 0.02051289019 | AI114: 0.03556355712 | AJ114: 0.0282207434 | AK114: 0.02744274369 | AL114: 0.01396032676 | AM114: 0.03620607889 | AN114: 0.03620607889 | AO114: 0.03620607889
B115: Manufacturing: Radio, television and communication equipment | C115: 0 | D115: 0 | E115: 0 | F115: 0 | G115: 0 | H115: 0 | I115: 0 | J115: 0 | K115: 0 | L115: 0 | M115: 0 | N115: 0 | O115: 0 | P115: 0 | Q115: 0 | R115: 1 | S115: 0 | T115: 0 | U115: 0 | V115: 0 | W115: 0 | X115: 0 | Y115: 0 | Z115: 0 | AA115: 0 | AB115: 0 | AC115: 0 | AD115: 0 | AE115: 0 | AF115: 0 | AG115: 0 | AH115: 0 | AI115: 0 | AJ115: 0 | AK115: 0 | AL115: 0 | AM115: 0 | AN115: 0 | AO115: 0
B116: Manufacturing: Medical, precision and optical instruments | C116: 0 | D116: 0 | E116: 0 | F116: 0 | G116: 0 | H116: 0 | I116: 0 | J116: 0 | K116: 0 | L116: 0 | M116: 0 | N116: 0 | O116: 0 | P116: 0 | Q116: 0 | R116: 0 | S116: 1 | T116: 0 | U116: 0 | V116: 0 | W116: 0 | X116: 0 | Y116: 0 | Z116: 0 | AA116: 0 | AB116: 0 | AC116: 0 | AD116: 0 | AE116: 0 | AF116: 0 | AG116: 0 | AH116: 0 | AI116: 0 | AJ116: 0 | AK116: 0 | AL116: 0 | AM116: 0 | AN116: 0 | AO116: 0
B117: Manufacturing: Motor vehicles, trailers and semi-trailers | C117: 0.03325318035 | D117: 0.01852313295 | E117: 0.04444375566 | F117: 0.0713548523 | G117: 0.04530452968 | H117: 0.06560501597 | I117: 0.03043452145 | J117: 0.04327690546 | K117: 0.07367919304 | L117: 0.05108989301 | M117: 0.05986886993 | N117: 0.07763126515 | O117: 0.09629407147 | P117: 0.08899586046 | Q117: 0.08990611035 | R117: 0 | S117: 0 | T117: 1.351999609 | U117: 0 | V117: 0.0682123365 | W117: 0.04695161894 | X117: 0.05331581398 | Y117: 0.0471589646 | Z117: 0.03977135704 | AA117: 0.08238881967 | AB117: 0.04119931789 | AC117: 0.04338512173 | AD117: 0.007112064914 | AE117: 0.02365321976 | AF117: 0.07263243603 | AG117: 0 | AH117: 0.05453394347 | AI117: 0.09336001922 | AJ117: 0.07956976726 | AK117: 0.06091968831 | AL117: 0.03935405817 | AM117: 0.1046914332 | AN117: 0.1046914332 | AO117: 0.1046914332
B118: Manufacturing: Other transport equipment | C118: 0 | D118: 0 | E118: 0 | F118: 0 | G118: 0 | H118: 0 | I118: 0 | J118: 0 | K118: 0 | L118: 0 | M118: 0 | N118: 0 | O118: 0 | P118: 0 | Q118: 0 | R118: 0 | S118: 0 | T118: 0 | U118: 1 | V118: 0 | W118: 0 | X118: 0 | Y118: 0 | Z118: 0 | AA118: 0 | AB118: 0 | AC118: 0 | AD118: 0 | AE118: 0 | AF118: 0 | AG118: 0 | AH118: 0 | AI118: 0 | AJ118: 0 | AK118: 0 | AL118: 0 | AM118: 0 | AN118: 0 | AO118: 0
B119: Manufacturing: Manufacturing not classified elsewhere; recycling | C119: 0.007456809175 | D119: 0.004126559349 | E119: 0.01006913956 | F119: 0.02709355617 | G119: 0.01340515775 | H119: 0.01860122739 | I119: 0.007364221376 | J119: 0.01313485906 | K119: 0.02157643431 | L119: 0.01322044737 | M119: 0.01159926915 | N119: 0.01958415128 | O119: 0.02340808688 | P119: 0.03166512036 | Q119: 0.02827116864 | R119: 0 | S119: 0 | T119: 0.0182622057 | U119: 0 | V119: 1.060718787 | W119: 0.01241116291 | X119: 0.01577021058 | Y119: 0.01222685667 | Z119: 0.009907446244 | AA119: 0.01165051584 | AB119: 0.01076586619 | AC119: 0.01163966437 | AD119: 0.00258854915 | AE119: 0.006654128856 | AF119: 0.02002245429 | AG119: 0 | AH119: 0.01337945369 | AI119: 0.02490708635 | AJ119: 0.02051579609 | AK119: 0.02772096396 | AL119: 0.01410877463 | AM119: 0.02631628217 | AN119: 0.02631628217 | AO119: 0.02631628217
B120: Electricity, gas and water supply | C120: 0.03454104284 | D120: 0.0170336429 | E120: 0.0439273274 | F120: 0.05809391549 | G120: 0.04579209927 | H120: 0.06805033704 | I120: 0.02426967174 | J120: 0.03901747728 | K120: 0.06462786185 | L120: 0.05587114739 | M120: 0.07905055257 | N120: 0.0643085426 | O120: 0.06220342362 | P120: 0.05930440485 | Q120: 0.06271287501 | R120: 0 | S120: 0 | T120: 0.04932740474 | U120: 0 | V120: 0.05689431959 | W120: 1.18870504 | X120: 0.04208089261 | Y120: 0.03418349092 | Z120: 0.06559372805 | AA120: 0.03321892181 | AB120: 0.03235856539 | AC120: 0.02928276393 | AD120: 0.01607206783 | AE120: 0.01210459129 | AF120: 0.05427929721 | AG120: 0 | AH120: 0.03647246809 | AI120: 0.07978543844 | AJ120: 0.05729161503 | AK120: 0.05292813268 | AL120: 0.03830636842 | AM120: 0.06748994035 | AN120: 0.06748994035 | AO120: 0.06748994035
B121: Construction | C121: 0.004348862579 | D121: 0.001654202656 | E121: 0.005651150961 | F121: 0.004623160557 | G121: 0.00313329986 | H121: 0.003781696348 | I121: 0.004953254697 | J121: 0.003831189897 | K121: 0.004880554852 | L121: 0.004107494882 | M121: 0.002892497781 | N121: 0.004309464077 | O121: 0.004869189094 | P121: 0.006579142937 | Q121: 0.007003716936 | R121: 0 | S121: 0 | T121: 0.005054114991 | U121: 0 | V121: 0.004944110224 | W121: 0.005862023372 | X121: 1.072349587 | Y121: 0.002405495397 | Z121: 0.00529699699 | AA121: 0.003954460823 | AB121: 0.00249119001 | AC121: 0.004262706817 | AD121: 0.004762621542 | AE121: 0.001073304578 | AF121: 0.005813859591 | AG121: 0 | AH121: 0.00350851923 | AI121: 0.008902382031 | AJ121: 0.006771147063 | AK121: 0.0047965906 | AL121: 0.002589120217 | AM121: 0.005273017069 | AN121: 0.005273017069 | AO121: 0.005273017069
B122: Wholesale and retail trade; repairs | C122: 0.1707874245 | D122: 0.082140413 | E122: 0.2432241242 | F122: 0.2751308759 | G122: 0.2434535472 | H122: 0.2965847017 | I122: 0.1368956799 | J122: 0.2212394836 | K122: 0.2903775364 | L122: 0.2139173654 | M122: 0.2666991622 | N122: 0.2962311251 | O122: 0.3277807778 | P122: 0.2821382955 | Q122: 0.2906140997 | R122: 0 | S122: 0 | T122: 0.3265331155 | U122: 0 | V122: 0.2684475999 | W122: 0.2690124617 | X122: 0.2600002135 | Y122: 1.145470283 | Z122: 0.1525988533 | AA122: 0.2059155322 | AB122: 0.1630038985 | AC122: 0.1493366271 | AD122: 0.03246188538 | AE122: 0.05867413881 | AF122: 0.2485215512 | AG122: 0 | AH122: 0.1887415506 | AI122: 0.3545206591 | AJ122: 0.2850328975 | AK122: 0.2487157655 | AL122: 0.1349900501 | AM122: 0.3798492227 | AN122: 0.3798492227 | AO122: 0.3798492227
B123: Hotels and restaurants | C123: 0.02118370852 | D123: 0.01368647253 | E123: 0.0269401442 | F123: 0.04536462775 | G123: 0.03005575073 | H123: 0.0374279284 | I123: 0.02230042406 | J123: 0.03164438374 | K123: 0.04113099985 | L123: 0.02927640438 | M123: 0.02661033786 | N123: 0.04023429766 | O123: 0.05277193171 | P123: 0.04906800803 | Q123: 0.04657203227 | R123: 0 | S123: 0 | T123: 0.03999892026 | U123: 0 | V123: 0.04481111588 | W123: 0.03579564498 | X123: 0.03859032644 | Y123: 0.02638583144 | Z123: 1.028283202 | AA123: 0.03725268253 | AB123: 0.0304538557 | AC123: 0.03628040178 | AD123: 0.004660040283 | AE123: 0.009863230445 | AF123: 0.05678117255 | AG123: 0 | AH123: 0.04225771764 | AI123: 0.09066800284 | AJ123: 0.06987863496 | AK123: 0.05237668745 | AL123: 0.02402639338 | AM123: 0.09437312404 | AN123: 0.09437312404 | AO123: 0.09437312404
B124: Transport and storage | C124: 0.08098144006 | D124: 0.04151287187 | E124: 0.1104045596 | F124: 0.1343040023 | G124: 0.1214075432 | H124: 0.1498760242 | I124: 0.06860265333 | J124: 0.1045915563 | K124: 0.1395914629 | L124: 0.100445332 | M124: 0.101987976 | N124: 0.1280267009 | O124: 0.1585285881 | P124: 0.1445962374 | Q124: 0.1413753093 | R124: 0 | S124: 0 | T124: 0.1326825258 | U124: 0 | V124: 0.1364779658 | W124: 0.1329935166 | X124: 0.1228299016 | Y124: 0.07713813266 | Z124: 0.08320564548 | AA124: 1.112625552 | AB124: 0.1006137666 | AC124: 0.08640913813 | AD124: 0.01604259722 | AE124: 0.02884702681 | AF124: 0.1400526112 | AG124: 0 | AH124: 0.1072353502 | AI124: 0.2090760466 | AJ124: 0.1718755971 | AK124: 0.1367878996 | AL124: 0.07525118201 | AM124: 0.2327070195 | AN124: 0.2327070195 | AO124: 0.2327070195
B125: Post and telecommunications | C125: 0.02844120077 | D125: 0.01611387049 | E125: 0.03913250982 | F125: 0.04776541648 | G125: 0.03670190129 | H125: 0.05259189158 | I125: 0.02751508789 | J125: 0.05181324639 | K125: 0.05124031698 | L125: 0.03807696613 | M125: 0.03086952903 | N125: 0.04787806008 | O125: 0.05789349369 | P125: 0.05039014907 | Q125: 0.04768807317 | R125: 0 | S125: 0 | T125: 0.04592614262 | U125: 0 | V125: 0.05019816165 | W125: 0.04443253692 | X125: 0.04568731663 | Y125: 0.04217201526 | Z125: 0.04897731777 | AA125: 0.04343393924 | AB125: 1.100522741 | AC125: 0.06485691744 | AD125: 0.01647120349 | AE125: 0.02031631475 | AF125: 0.09313409586 | AG125: 0 | AH125: 0.06533030221 | AI125: 0.1030085055 | AJ125: 0.08715504353 | AK125: 0.06046216419 | AL125: 0.06066850662 | AM125: 0.0891931579 | AN125: 0.0891931579 | AO125: 0.0891931579
B126: Finance and insurance | C126: 0.04173881503 | D126: 0.03999010979 | E126: 0.04431620992 | F126: 0.0504541282 | G126: 0.04126093206 | H126: 0.0593214291 | I126: 0.04779445964 | J126: 0.05357815998 | K126: 0.05239938489 | L126: 0.0446675015 | M126: 0.04256710768 | N126: 0.05289307731 | O126: 0.05976810732 | P126: 0.04844507496 | Q126: 0.05007142054 | R126: 0 | S126: 0 | T126: 0.0490124842 | U126: 0 | V126: 0.04846432807 | W126: 0.06591954852 | X126: 0.05010105659 | Y126: 0.05915855354 | Z126: 0.05095324552 | AA126: 0.06985577112 | AB126: 0.05518985664 | AC126: 1.173406242 | AD126: 0.01068719013 | AE126: 0.02197885924 | AF126: 0.05674877284 | AG126: 0 | AH126: 0.04622854265 | AI126: 0.09504158701 | AJ126: 0.06123716376 | AK126: 0.0487501441 | AL126: 0.03747665981 | AM126: 0.07948706789 | AN126: 0.07948706789 | AO126: 0.07948706789
B127: Real estate activities | C127: 0.06168775518 | D127: 0.03447796861 | E127: 0.08171419298 | F127: 0.1216086291 | G127: 0.08884817536 | H127: 0.1185054544 | I127: 0.06075577114 | J127: 0.08650446599 | K127: 0.1214047434 | L127: 0.08784962804 | M127: 0.07678597674 | N127: 0.1143685518 | O127: 0.1457095522 | P127: 0.1173733383 | Q127: 0.1190780596 | R127: 0 | S127: 0 | T127: 0.1050971662 | U127: 0 | V127: 0.1227876815 | W127: 0.09524035026 | X127: 0.1068021832 | Y127: 0.1022152226 | Z127: 0.1061263529 | AA127: 0.0986010022 | AB127: 0.1080509952 | AC127: 0.1258226966 | AD127: 1.022805329 | AE127: 0.03858500028 | AF127: 0.1741694409 | AG127: 0 | AH127: 0.1285185142 | AI127: 0.2330549317 | AJ127: 0.2021523723 | AK127: 0.1543307879 | AL127: 0.0914947081 | AM127: 0.264490168 | AN127: 0.264490168 | AO127: 0.264490168
B128: Renting of machinery and equipment | C128: 0.008542836244 | D128: 0.01922164567 | E128: 0.01321332066 | F128: 0.01295305227 | G128: 0.008882281824 | H128: 0.01826230026 | I128: 0.0171281572 | J128: 0.02206177611 | K128: 0.01905942796 | L128: 0.01502903459 | M128: 0.01087830387 | N128: 0.01396574056 | O128: 0.02351417153 | P128: 0.01934989002 | Q128: 0.01661109885 | R128: 0 | S128: 0 | T128: 0.01738727672 | U128: 0 | V128: 0.01412069017 | W128: 0.01569871203 | X128: 0.0190226102 | Y128: 0.009842830354 | Z128: 0.0131907697 | AA128: 0.01876459263 | AB128: 0.01941653924 | AC128: 0.009381745432 | AD128: 0.001870280002 | AE128: 1.00891308 | AF128: 0.01971208349 | AG128: 0 | AH128: 0.011218701 | AI128: 0.01737738512 | AJ128: 0.01346025602 | AK128: 0.01119298498 | AL128: 0.01118730739 | AM128: 0.01608049283 | AN128: 0.01608049283 | AO128: 0.01608049283
B129: Computer and related activities | C129: 0.0004859683905 | D129: 0.0002956938908 | E129: 0.000674493789 | F129: 0.0008060527093 | G129: 0.000640643052 | H129: 0.00086495379 | I129: 0.0004563224689 | J129: 0.0006707807514 | K129: 0.0008538305127 | L129: 0.0006126786796 | M129: 0.0006025641374 | N129: 0.0008327779244 | O129: 0.0009878404551 | P129: 0.0008161768627 | Q129: 0.0008009330109 | R129: 0 | S129: 0 | T129: 0.0007752454454 | U129: 0 | V129: 0.0008173211284 | W129: 0.0007273903322 | X129: 0.0009746512004 | Y129: 0.001503725339 | Z129: 0.001245627114 | AA129: 0.0007051772103 | AB129: 0.0006649697518 | AC129: 0.00238327877 | AD129: 0.0002691942491 | AE129: 0.0003183862554 | AF129: 1.001359157 | AG129: 0 | AH129: 0.0008469834117 | AI129: 0.001955486438 | AJ129: 0.001113729591 | AK129: 0.0008174516022 | AL129: 0.0005409258909 | AM129: 0.00128304155 | AN129: 0.00128304155 | AO129: 0.00128304155
B130: Research and development | C130: 0 | D130: 0 | E130: 0 | F130: 0 | G130: 0 | H130: 0 | I130: 0 | J130: 0 | K130: 0 | L130: 0 | M130: 0 | N130: 0 | O130: 0 | P130: 0 | Q130: 0 | R130: 0 | S130: 0 | T130: 0 | U130: 0 | V130: 0 | W130: 0 | X130: 0 | Y130: 0 | Z130: 0 | AA130: 0 | AB130: 0 | AC130: 0 | AD130: 0 | AE130: 0 | AF130: 0 | AG130: 1 | AH130: 0 | AI130: 0 | AJ130: 0 | AK130: 0 | AL130: 0 | AM130: 0 | AN130: 0 | AO130: 0
B131: Other Business Activities | C131: 0.07630705544 | D131: 0.05484754299 | E131: 0.1169492069 | F131: 0.145000137 | G131: 0.09215476129 | H131: 0.1589430026 | I131: 0.1272200495 | J131: 0.1347196501 | K131: 0.1602706815 | L131: 0.1224993609 | M131: 0.1006404789 | N131: 0.1428943232 | O131: 0.1651220413 | P131: 0.1587773219 | Q131: 0.1443898193 | R131: 0 | S131: 0 | T131: 0.1289599016 | U131: 0 | V131: 0.1393909758 | W131: 0.1285791419 | X131: 0.1277122863 | Y131: 0.1264553144 | Z131: 0.1206068789 | AA131: 0.1292905332 | AB131: 0.19144358 | AC131: 0.2401927649 | AD131: 0.04302583792 | AE131: 0.05965040151 | AF131: 0.3719435257 | AG131: 0 | AH131: 1.165732585 | AI131: 0.2201519346 | AJ131: 0.1631917744 | AK131: 0.145125676 | AL131: 0.1179988508 | AM131: 0.1697799235 | AN131: 0.1697799235 | AO131: 0.1697799235
B132: Public admin. and defence; compulsory social security | C132: 0.0009827222467 | D132: 0.0005826001424 | E132: 0.001222217169 | F132: 0.001588269046 | G132: 0.001318861527 | H132: 0.001694983549 | I132: 0.0008889520508 | J132: 0.001235682499 | K132: 0.00162477236 | L132: 0.001277129132 | M132: 0.001360519395 | N132: 0.001572639089 | O132: 0.001899293391 | P132: 0.001608364155 | Q132: 0.001629593945 | R132: 0 | S132: 0 | T132: 0.001470038892 | U132: 0 | V132: 0.001581391655 | W132: 0.007623501775 | X132: 0.001466647045 | Y132: 0.001109169334 | Z132: 0.001295765653 | AA132: 0.005373251806 | AB132: 0.001278056606 | AC132: 0.005554980231 | AD132: 0.0002511464584 | AE132: 0.0004869609869 | AF132: 0.001806852281 | AG132: 0 | AH132: 0.001352226471 | AI132: 1.002857287 | AJ132: 0.002295328619 | AK132: 0.001774541113 | AL132: 0.0009825292165 | AM132: 0.003096302083 | AN132: 0.003096302083 | AO132: 0.003096302083
B133: Education | C133: 0.0105615514 | D133: 0.005763820684 | E133: 0.01277343156 | F133: 0.01847934253 | G133: 0.01448092475 | H133: 0.0171739366 | I133: 0.01017138085 | J133: 0.01398798309 | K133: 0.01764282702 | L133: 0.01375428899 | M133: 0.01237273944 | N133: 0.01736904065 | O133: 0.02363672414 | P133: 0.01780923529 | Q133: 0.0181380948 | R133: 0 | S133: 0 | T133: 0.01652517448 | U133: 0 | V133: 0.01846636836 | W133: 0.01674702799 | X133: 0.01766642373 | Y133: 0.01318318572 | Z133: 0.0141352749 | AA133: 0.01625070143 | AB133: 0.01443001887 | AC133: 0.01905499769 | AD133: 0.002096228265 | AE133: 0.004230107751 | AF133: 0.02512530598 | AG133: 0 | AH133: 0.01897741943 | AI133: 0.05019360614 | AJ133: 1.037439263 | AK133: 0.02629041283 | AL133: 0.01177097363 | AM133: 0.0502345627 | AN133: 0.0502345627 | AO133: 0.0502345627
B134: Health and social work | C134: 0.009542764239 | D134: 0.005152770331 | E134: 0.01145297507 | F134: 0.01672140091 | G134: 0.01315065225 | H134: 0.01536549398 | I134: 0.009125075723 | J134: 0.01222633855 | K134: 0.01586619022 | L134: 0.0123471124 | M134: 0.01120214434 | N134: 0.01569750767 | O134: 0.02142408478 | P134: 0.0160870461 | Q134: 0.01639550159 | R134: 0 | S134: 0 | T134: 0.01490285629 | U134: 0 | V134: 0.01666833272 | W134: 0.01451161835 | X134: 0.0159813407 | Y134: 0.01182401312 | Z134: 0.01266947923 | AA134: 0.01429817497 | AB134: 0.01290144982 | AC134: 0.01442939412 | AD134: 0.001807325263 | AE134: 0.003736380262 | AF134: 0.02251842938 | AG134: 0 | AH134: 0.01680560688 | AI134: 0.03754927431 | AJ134: 0.03261327687 | AK134: 1.023176007 | AL134: 0.01010195047 | AM134: 0.04591889198 | AN134: 0.04591889198 | AO134: 0.04591889198
B135: Other community, social and personal services | C135: 0.01351264256 | D135: 0.007946755774 | E135: 0.01645292424 | F135: 0.02358815285 | G135: 0.01839852692 | H135: 0.02224796249 | I135: 0.01344926586 | J135: 0.01784535185 | K135: 0.02267054129 | L135: 0.01761110298 | M135: 0.01590748131 | N135: 0.02221598388 | O135: 0.03010217253 | P135: 0.02300074516 | Q135: 0.02328693278 | R135: 0 | S135: 0 | T135: 0.02114741124 | U135: 0 | V135: 0.02365518924 | W135: 0.02120820027 | X135: 0.02299814718 | Y135: 0.01703623845 | Z135: 0.02527675046 | AA135: 0.02180708869 | AB135: 0.0232207205 | AC135: 0.02856094066 | AD135: 0.002860636273 | AE135: 0.005934713485 | AF135: 0.03273900498 | AG135: 0 | AH135: 0.02726527228 | AI135: 0.05497950137 | AJ135: 0.04501574041 | AK135: 0.03654692677 | AL135: 1.021519747 | AM135: 0.06202141834 | AN135: 0.06202141834 | AO135: 0.06202141834
B136: Private households with employed persons | C136: 0.002832575223 | D136: 0.001530916987 | E136: 0.003390962343 | F136: 0.004961468975 | G136: 0.003900272201 | H136: 0.004551586623 | I136: 0.002712128873 | J136: 0.003625669608 | K136: 0.004702135707 | L136: 0.003664680956 | M136: 0.003315119501 | N136: 0.004653087333 | O136: 0.00636533802 | P136: 0.004770720287 | Q136: 0.004862620499 | R136: 0 | S136: 0 | T136: 0.00441095716 | U136: 0 | V136: 0.004946146371 | W136: 0.004306254353 | X136: 0.004746424084 | Y136: 0.003511099643 | Z136: 0.003763609291 | AA136: 0.004250750225 | AB136: 0.003832099263 | AC136: 0.004288868786 | AD136: 0.000532749977 | AE136: 0.001105353437 | AF136: 0.006697049805 | AG136: 0 | AH136: 0.00499790761 | AI136: 0.01119602022 | AJ136: 0.009728211792 | AK136: 0.006901671892 | AL136: 0.002996062147 | AM136: 1.013707474 | AN136: 0.01370747444 | AO136: 0.01370747444
B137: Payments to households | C137: 0.368495889 | D137: 0.19916033 | E137: 0.4411376875 | F137: 0.6454483207 | G137: 0.5073949177 | H137: 0.5921258315 | I137: 0.3528267607 | J137: 0.4716712675 | K137: 0.6117110902 | L137: 0.4767463389 | M137: 0.4312711267 | N137: 0.6053302803 | O137: 0.8280807068 | P137: 0.6206334078 | Q137: 0.632588907 | R137: 0 | S137: 0 | T137: 0.5738310379 | U137: 0 | V137: 0.6434549698 | W137: 0.5602100215 | X137: 0.6174726619 | Y137: 0.4567666108 | Z137: 0.4896161417 | AA137: 0.5529893683 | AB137: 0.4985261515 | AC137: 0.5579482951 | AD137: 0.06930660652 | AE137: 0.1437978395 | AF137: 0.8712338165 | AG137: 0 | AH137: 0.6501887023 | AI137: 1.45651469 | AJ137: 1.265564291 | AK137: 0.8978535501 | AL137: 0.3897642596 | AM137: 1.783235248 | AN137: 1.783235248 | AO137: 1.783235248
B138: Payments to workers | C138: 0.368495889 | D138: 0.19916033 | E138: 0.4411376875 | F138: 0.6454483207 | G138: 0.5073949177 | H138: 0.5921258315 | I138: 0.3528267607 | J138: 0.4716712675 | K138: 0.6117110902 | L138: 0.4767463389 | M138: 0.4312711267 | N138: 0.6053302803 | O138: 0.8280807068 | P138: 0.6206334078 | Q138: 0.632588907 | R138: 0 | S138: 0 | T138: 0.5738310379 | U138: 0 | V138: 0.6434549698 | W138: 0.5602100215 | X138: 0.6174726619 | Y138: 0.4567666108 | Z138: 0.4896161417 | AA138: 0.5529893683 | AB138: 0.4985261515 | AC138: 0.5579482951 | AD138: 0.06930660652 | AE138: 0.1437978395 | AF138: 0.8712338165 | AG138: 0 | AH138: 0.6501887023 | AI138: 1.45651469 | AJ138: 1.265564291 | AK138: 0.8978535501 | AL138: 0.3897642596 | AM138: 1.783235248 | AN138: 0.783235248 | AO138: 1.783235248

Sheet CustomRegion3
C2: Custom Region 3
C4: Enter data in boxes below
E10: Dollar Year of Earnings | F10: 2014
D11: Value Added as a Percentage of Output | E11: Labor Payments as a Percentage of Output | F11: ="Average Earnings ($"&CustomRegion3_EarningsYear&") per Job" -> Average Earnings ($2014) per Job
C12: Agriculture - Maize | D12: 0.3948384968 | E12: 0.3137226791 | F12: 103.2724125
C13: Agriculture - Drought tolerant staples | D13: 0.5328092161 | E13: 0.483105499 | F13: 103.2724125
C14: Agriculture - Groundnuts (Peanuts) | D14: 0.4510541757 | E14: 0.3719270271 | F14: 103.2724125
C15: Agriculture - Sugar | D15: 0.2714006884 | E15: 0.09097651241 | F15: 103.2724125
C16: Agriculture - Cotton | D16: 0.2220233293 | E16: 0.1507098318 | F16: 103.2724125
C17: Agriculture - Tobacco | D17: 0.2872481078 | E17: 0.2006449211 | F17: 103.2724125
C18: Agriculture - Coffee | D18: 0.3192180834 | E18: 0.2538572557 | F18: 103.2724125
C19: Agriculture - Wheat | D19: 0.2160628938 | E19: 0.1308501547 | F19: 103.2724125
C20: Agriculture - Horticulture | D20: 0.4820677499 | E20: 0.4061272824 | F20: 103.2724125
C21: Agriculture - Other Crops | D21: 0.4603880954 | E21: 0.4327434459 | F21: 103.2724125
C22: Agriculture - Livestock | D22: 0.3008618174 | E22: 0.1935024604 | F22: 103.2724125
C23: Fishing | D23: 0.0912487835 | E23: 0.03879403664 | F23: 103.2724125
C24: Forestry | D24: 0.3205458122 | E24: 0.1819132172 | F24: 103.2724125
C25: Mining | D25: 0.2443122122 | E25: 0.00891030544 | F25: 1134.568781
C26: Food and beverage manufacturing | D26: 0.1121320411 | E26: 0.05191594896 | F26: 266.1726449
C27: Textile manufacturing | D27: 0.1014850515 | E27: 0.02788703799 | F27: 266.1726449
C28: Wood and furniture manufacturing | D28: 0.1837365054 | E28: 0.05695194295 | F28: 266.1726449
C29: Fertilizer and industrial chemical manufacturing | D29: 0.1863673737 | E29: 0.03599658798 | F29: 266.1726449
C30: Other manufacturing | D30: 0.1073216602 | E30: 0.003613729126 | F30: 266.1726449
C31: Electricity and water | D31: 0.2665593282 | E31: 0.01319548238 | F31: 590.3707756
C32: Equipment and machinery | D32: 0.1259940053 | E32: 0.02825503797 | F32: 266.1726449
C33: Construction | D33: 0.06066583173 | E33: 0.02668393632 | F33: 287.4551603
C34: Trade, transportation | D34: 0.2260714154 | E34: 0.08323002179 | F34: 401.6383751
C35: Tourism | D35: 0.4370789802 | E35: 0.3063221713 | F35: 344.8147451
C36: Other private and community services | D36: 0.3659915179 | E36: 0.2928388744 | F36: 428.6107581
C37: Financial services and insurance | D37: 0.2083286646 | E37: 0.04964213595 | F37: 1008.060758
C38: Public services | D38: 0.2141594331 | E38: 0.1393041985 | F38: 428.6107581
C39: Labor - less than primary schooling | D39: 0 | E39: 0 | F39: 0
C40: Labor - primary schooling | D40: 0 | E40: 0 | F40: 0
C41: Labor - secondary schooling | D41: 0 | E41: 0 | F41: 0
C42: Labor - post-secondary schooling | D42: 0 | E42: 0 | F42: 0
C43: Households - rural/remote - small | D43: 0 | E43: 0 | F43: 0
C44: Households - rural/remote - medium | D44: 0 | E44: 0 | F44: 0
C45: Households - rural/remote - non-farm | D45: 0 | E45: 0 | F45: 0
C46: Households - rural/non-remote - small | D46: 0 | E46: 0 | F46: 0
C47: Households - rural/non-remote - medium | D47: 0 | E47: 0 | F47: 0
C48: Households - rural/non-remote - large | D48: 0 | E48: 0 | F48: 0
C49: Households - rural/non-remote - non-farm | D49: 0 | E49: 0 | F49: 0
C50: Households - urban - low skilled self-employed | D50: 0 | E50: 0 | F50: 0
C51: Households - urban - private employees | D51: 0 | E51: 0 | F51: 0
C52: Households - urban - public employees | D52: 0 | E52: 0 | F52: 0
C53: Households - urban - high skilled | D53: 0 | E53: 0 | F53: 0
B72: Type 1 Total Requirements
D73: Agriculture - Maize | E73: Agriculture - Drought tolerant staples | F73: Agriculture - Groundnuts (Peanuts) | G73: Agriculture - Sugar | H73: Agriculture - Cotton | I73: Agriculture - Tobacco | J73: Agriculture - Coffee | K73: Agriculture - Wheat | L73: Agriculture - Horticulture | M73: Agriculture - Other Crops | N73: Agriculture - Livestock | O73: Fishing | P73: Forestry | Q73: Mining | R73: Food and beverage manufacturing | S73: Textile manufacturing | T73: Wood and furniture manufacturing | U73: Fertilizer and industrial chemical manufacturing | V73: Other manufacturing | W73: Electricity and water | X73: Equipment and machinery | Y73: Construction | Z73: Trade, transportation | AA73: Tourism | AB73: Other private and community services | AC73: Financial services and insurance | AD73: Public services
C74: Agriculture - Maize | D74: 1.339962621 | E74: 3.787640472e-07 | F74: 2.464173336e-07 | G74: 3.022400675e-07 | H74: 3.763604375e-07 | I74: 3.156433589e-07 | J74: 1.924206055e-07 | K74: 7.399734249e-07 | L74: 1.387965175e-07 | M74: 1.387995655e-07 | N74: 0.0119486075 | O74: 5.778899239e-06 | P74: 3.665475681e-06 | Q74: 2.781176531e-06 | R74: 0.03230367622 | S74: 5.910531354e-06 | T74: 2.916945079e-05 | U74: 2.070668716e-07 | V74: 2.056543697e-05 | W74: 5.075851048e-06 | X74: 2.177283291e-07 | Y74: 1.134584057e-05 | Z74: 1.372521766e-05 | AA74: 0.002605815445 | AB74: 7.927733685e-06 | AC74: 4.168427321e-06 | AD74: 0.001063926406
C75: Agriculture - Drought tolerant staples | D75: 7.694433002e-07 | E75: 1.156296956 | F75: 2.821672085e-07 | G75: 3.45671841e-07 | H75: 4.142530301e-07 | I75: 3.572347069e-07 | J75: 2.083736357e-07 | K75: 8.051107737e-07 | L75: 1.54012812e-07 | M75: 1.576492599e-07 | N75: 0.01008243954 | O75: 6.419388292e-06 | P75: 4.222383806e-06 | Q75: 3.03711508e-06 | R75: 0.03750039956 | S75: 6.77715231e-06 | T75: 3.366983705e-05 | U75: 2.323013501e-07 | V75: 2.209855226e-05 | W75: 5.505907567e-06 | X75: 2.406676311e-07 | Y75: 1.251395912e-05 | Z75: 1.570489067e-05 | AA75: 0.003024998328 | AB75: 9.083254718e-06 | AC75: 4.764007924e-06 | AD75: 0.001234578482
C76: Agriculture - Groundnuts (Peanuts) | D76: 3.944979205e-06 | E76: 1.48000846e-06 | F76: 1.754527562 | G76: 1.239352575e-06 | H76: 4.846895984e-06 | I76: 2.041014082e-06 | J76: 3.170595261e-06 | K76: 1.140994819e-05 | L76: 1.527597063e-06 | M76: 7.337992306e-07 | N76: 0.007041795208 | O76: 6.190708155e-05 | P76: 6.673711546e-06 | Q76: 4.04322041e-05 | R76: 0.02617368726 | S76: 1.912211972e-05 | T76: 3.630697415e-05 | U76: 1.769986312e-06 | V76: 0.0003736358193 | W76: 8.173378876e-05 | X76: 2.594885084e-06 | Y76: 0.0001400937499 | Z76: 5.638009326e-05 | AA76: 0.002114682832 | AB76: 2.918605902e-05 | AC76: 1.811405463e-05 | AD76: 0.00104514191
C77: Agriculture - Sugar | D77: 4.370076087e-07 | E77: 2.461987891e-07 | F77: 1.602577045e-07 | G77: 1.943396612 | H77: 2.352762394e-07 | I77: 2.028925133e-07 | J77: 1.183464256e-07 | K77: 4.572650563e-07 | L77: 8.747203422e-08 | M77: 8.953736561e-08 | N77: 0.005726351494 | O77: 3.645910655e-06 | P77: 2.398115429e-06 | Q77: 1.724938535e-06 | R77: 0.02129846336 | S77: 3.849103792e-06 | T77: 1.9122884e-05 | U77: 1.31936242e-07 | V77: 1.255093842e-05 | W77: 3.127096563e-06 | X77: 1.366878962e-07 | Y77: 7.107340265e-06 | Z77: 8.91963932e-06 | AA77: 0.001718056789 | AB77: 5.158861508e-06 | AC77: 2.705732457e-06 | AD77: 0.0007011825171
C78: Agriculture - Cotton | D78: 0.006869662108 | E78: 0.005169727237 | F78: 0.003622401795 | G78: 4.758203963e-05 | H78: 1.396382003 | I78: 0.004081252885 | J78: 1.467991318e-05 | K78: 0.001815349572 | L78: 0.000921083492 | M78: 4.213174736e-05 | N78: 0.001155742862 | O78: 0.001407105487 | P78: 0.0001720266039 | Q78: 0.001115745159 | R78: 0.004049569175 | S78: 0.2030888301 | T78: 0.001217771579 | U78: 8.46104795e-05 | V78: 0.0002904407047 | W78: 0.0008336502719 | X78: 0.0001458720109 | Y78: 0.00604853718 | Z78: 0.005402893804 | AA78: 0.0008972193046 | AB78: 0.001060445162 | AC78: 0.008568299644 | AD78: 0.004307244109
C79: Agriculture - Tobacco | D79: 1.742774228e-05 | E79: 1.16712421e-05 | F79: 8.00981003e-06 | G79: 9.268024951e-06 | H79: 4.02581187e-06 | I79: 1.68897013 | J79: 1.580256037e-06 | K79: 8.746044084e-06 | L79: 2.799552231e-06 | M79: 1.13319775e-05 | N79: 0.004758484679 | O79: 0.0001584466342 | P79: 0.0004103617944 | Q79: 6.297337845e-05 | R79: 0.0176842573 | S79: 0.0003741423914 | T79: 0.003658724965 | U79: 4.045286235e-06 | V79: 0.0001495040047 | W79: 4.84705529e-05 | X79: 2.891105745e-06 | Y79: 0.0002496719295 | Z79: 0.0001369090904 | AA79: 0.001441867406 | AB79: 0.0002514121816 | AC79: 7.594436158e-05 | AD79: 0.0008508565756
C80: Agriculture - Coffee | D80: 2.294606687e-07 | E80: 1.292722086e-07 | F80: 8.414691026e-08 | G80: 1.030850379e-07 | H80: 1.235370784e-07 | I80: 1.06533275e-07 | J80: 1.488102443 | K80: 2.400972969e-07 | L80: 4.59291579e-08 | M80: 4.701360657e-08 | N80: 0.003006749577 | O80: 1.914367348e-06 | P80: 1.259184415e-06 | Q80: 9.057177533e-07 | R80: 0.01118323697 | S80: 2.021058472e-06 | T80: 1.004090012e-05 | U80: 6.927608975e-08 | V80: 6.590152357e-06 | W80: 1.641952346e-06 | X80: 7.17710526e-08 | Y80: 3.731868776e-06 | Z80: 4.683457134e-06 | AA80: 0.0009021043381 | AB80: 2.708776203e-06 | AC80: 1.42070565e-06 | AD80: 0.0003681716428
C81: Agriculture - Wheat | D81: 1.286142055e-06 | E81: 7.24579184e-07 | F81: 4.716489353e-07 | G81: 5.777983795e-07 | H81: 6.924334039e-07 | I81: 5.971259739e-07 | J81: 3.483012926e-07 | K81: 1.380697946 | L81: 2.574359338e-07 | M81: 2.635143396e-07 | N81: 0.01685302803 | O81: 1.073015419e-05 | P81: 7.057810996e-06 | Q81: 5.076607243e-06 | R81: 0.0626827746 | S81: 1.132816492e-05 | T81: 5.627990185e-05 | U81: 3.882970138e-07 | V81: 3.693823497e-05 | W81: 9.203250286e-06 | X81: 4.022814437e-07 | Y81: 2.091736856e-05 | Z81: 2.625108354e-05 | AA81: 0.005056353814 | AB81: 1.518286778e-05 | AC81: 7.963148084e-06 | AD81: 0.002063626137
C82: Agriculture - Horticulture | D82: 6.600951736e-06 | E82: 2.29659051e-06 | F82: 1.430296052e-06 | G82: 1.944142836e-06 | H82: 8.769660766e-06 | I82: 3.46582127e-06 | J82: 5.814438252e-06 | K82: 2.085569476e-05 | L82: 1.224505335 | M82: 1.209820289e-06 | N82: 0.0009706965892 | O82: 0.0001106094212 | P82: 7.540032032e-06 | Q82: 7.367517479e-05 | R82: 0.003577043354 | S82: 2.821330832e-05 | T82: 2.774231982e-05 | U82: 3.101846218e-06 | V82: 0.0006882491293 | W82: 0.0001497215009 | X82: 4.671553378e-06 | Y82: 0.0002528007451 | Z82: 8.848879639e-05 | AA82: 0.0002949853007 | AB82: 4.460994126e-05 | AC82: 2.877537481e-05 | AD82: 0.000465165389
C83: Agriculture - Other Crops | D83: 5.216159591e-06 | E83: 1.856718054e-06 | F83: 1.159431658e-06 | G83: 1.566402789e-06 | H83: 6.776157411e-06 | I83: 2.726914269e-06 | J83: 4.475949039e-06 | K83: 1.60692845e-05 | L83: 2.119420344e-06 | M83: 1.294460095 | N83: 0.00328797368 | O83: 8.576795376e-05 | P83: 6.803707017e-06 | Q83: 5.681542331e-05 | R83: 0.01220384974 | S83: 2.317663856e-05 | T83: 2.961864672e-05 | U83: 2.418432169e-06 | V83: 0.0005291645268 | W83: 0.0001152909523 | X83: 3.61468126e-06 | Y83: 0.0001954793729 | Z83: 7.128809778e-05 | AA83: 0.0009893322764 | AB83: 3.623363823e-05 | AC83: 2.309528653e-05 | AD83: 0.0006661316329
C84: Agriculture - Livestock | D84: 7.399842802e-06 | E84: 2.915659402e-06 | F84: 1.84507985e-06 | G84: 2.407252289e-06 | H84: 8.598868387e-06 | I84: 3.817075759e-06 | J84: 5.579586207e-06 | K84: 2.014625168e-05 | L84: 2.741443524e-06 | M84: 1.484587806e-06 | N84: 1.334823567 | O84: 0.0001117386807 | P84: 1.875291272e-05 | Q84: 7.18718264e-05 | R84: 0.06538260989 | S84: 4.109732895e-05 | T84: 0.0001255097442 | U84: 3.213318021e-06 | V84: 0.0006558055531 | W84: 0.0001439894116 | X84: 4.62232118e-06 | Y84: 0.0002502971975 | Z84: 0.0001067692883 | AA84: 0.005280099427 | AB84: 5.749970235e-05 | AC84: 3.438372583e-05 | AD84: 0.002327332433
C85: Fishing | D85: 5.975380666e-06 | E85: 3.415723383e-06 | F85: 2.205579246e-06 | G85: 2.182003362e-06 | H85: 2.946283983e-06 | I85: 2.532609511e-06 | J85: 1.350892688e-06 | K85: 5.23752562e-06 | L85: 1.076079498e-06 | M85: 1.032792794e-06 | N85: 0.06171487598 | O85: 1.640054212 | P85: 2.602081735e-05 | Q85: 1.910820495e-05 | R85: 0.2295398238 | S85: 4.245344019e-05 | T85: 0.0002068581462 | U85: 1.776579582e-06 | V85: 0.000136230055 | W85: 3.546354788e-05 | X85: 1.738909227e-06 | Y85: 7.91050041e-05 | Z85: 0.000140795919 | AA85: 0.03243799984 | AB85: 5.621766602e-05 | AC85: 3.41923891e-05 | AD85: 0.007565277045
C86: Forestry | D86: 0.0004692925862 | E86: 0.0003030289636 | F86: 0.0002032487209 | G86: 0.0001847535825 | H86: 0.0001263083258 | I86: 0.0002297300573 | J86: 4.165777768e-05 | K86: 0.000212491095 | L86: 6.969467178e-05 | M86: 0.0002260021724 | N86: 0.0006542861682 | O86: 0.003798121534 | P86: 1.694592903 | Q86: 0.01182796394 | R86: 0.001953121261 | S86: 0.007276585362 | T86: 0.07016649224 | U86: 0.0001177508895 | V86: 0.003334861829 | W86: 0.001282155075 | X86: 0.0005155479175 | Y86: 0.00596790883 | Z86: 0.007255811788 | AA86: 0.0004948920312 | AB86: 0.004877908223 | AC86: 0.001987528139 | AD86: 0.005792564548
C87: Mining | D87: 0.001209152494 | E87: 0.0004102048075 | F87: 0.000255877401 | G87: 0.0003657641247 | H87: 0.001473830284 | I87: 0.0006622932923 | J87: 0.000918261482 | K87: 0.003297436698 | L87: 0.0004760501498 | M87: 0.0003003828662 | N87: 0.004374877922 | O87: 0.01761658278 | P87: 0.001190871198 | Q87: 1.782460309 | R87: 0.01065714171 | S87: 0.004957784127 | T87: 0.004420187971 | U87: 0.0007043159873 | V87: 0.1050981652 | W87: 0.0271592226 | X87: 0.001983677863 | Y87: 0.1605257053 | Z87: 0.01585744475 | AA87: 0.00217079949 | AB87: 0.007957175269 | AC87: 0.006390616953 | AD87: 0.04595004977
C88: Food and beverage manufacturing | D88: 3.233900414e-05 | E88: 1.821895889e-05 | F88: 1.185923189e-05 | G88: 1.452827401e-05 | H88: 1.741067919e-05 | I88: 1.501425077e-05 | J88: 8.757754944e-06 | K88: 3.38380757e-05 | L88: 6.473018822e-06 | M88: 6.625855429e-06 | N88: 0.4237557904 | O88: 0.0002698010685 | P88: 0.0001774629623 | Q88: 0.0001276471926 | R88: 1.576107786 | S88: 0.0002848375657 | T88: 0.001415112718 | U88: 9.763415081e-06 | V88: 0.0009287821114 | W88: 0.000231408302 | X88: 1.011504229e-05 | Y88: 0.0005259503534 | Z88: 0.0006600623127 | AA88: 0.1271379365 | AB88: 0.0003817609586 | AC88: 0.0002002269328 | AD88: 0.051888214
C89: Textile manufacturing | D89: 0.06210799181 | E89: 0.04673904038 | F89: 0.03274981063 | G89: 0.0004301720521 | H89: 0.003815452928 | I89: 0.0368982408 | J89: 0.0001327119572 | K89: 0.01641238804 | L89: 0.008327430358 | M89: 0.0003809035307 | N89: 0.01006827074 | O89: 0.0127212766 | P89: 0.001555118213 | Q89: 0.01008724079 | R89: 0.03519583569 | S89: 1.836108289 | T89: 0.01100849617 | U89: 0.0007649472546 | V89: 0.002625014872 | W89: 0.007536752098 | X89: 0.001318807145 | Y89: 0.05468382891 | Z89: 0.04884650252 | AA89: 0.007997461907 | AB89: 0.009587050005 | AC89: 0.077465076 | AD89: 0.03889480523
C90: Wood and furniture manufacturing | D90: 0.007946426335 | E90: 0.005339541414 | F90: 0.003667801156 | G90: 0.004239764355 | H90: 0.001783953283 | I90: 0.004565855828 | J90: 0.0006902579953 | K90: 0.00389634709 | L90: 0.001269851349 | M90: 0.00524184053 | N90: 0.01279903702 | O90: 0.07237185805 | P90: 0.1901461085 | Q90: 0.02865749779 | R90: 0.04092577093 | S90: 0.1727238246 | T90: 1.696183273 | U90: 0.001832773336 | V90: 0.06478251364 | W90: 0.02136545634 | X90: 0.001293547348 | Y90: 0.1135157453 | Z90: 0.06031507363 | AA90: 0.01044996319 | AB90: 0.1150755606 | AC90: 0.03431962944 | AD90: 0.1264381747
C91: Fertilizer and industrial chemical manufacturing | D91: 0.1782682952 | E91: 0.007110875477 | F91: 0.01029873327 | G91: 0.1433609031 | H91: 0.07086190878 | I91: 0.1788670951 | J91: 0.03965180247 | K91: 0.02885211351 | L91: 0.06824620409 | M91: 0.06302012745 | N91: 0.005589155681 | O91: 0.004280645702 | P91: 0.0002987016482 | Q91: 0.01546418194 | R91: 0.01227851214 | S91: 0.01617651665 | T91: 0.001289719068 | U91: 1.140073205 | V91: 0.01592944618 | W91: 0.01359570545 | X91: 0.001439876119 | Y91: 0.01291081553 | Z91: 0.01257635179 | AA91: 0.001298428609 | AB91: 0.001932577155 | AC91: 0.002613309128 | AD91: 0.005514260136
C92: Other manufacturing | D92: 0.01311709745 | E92: 0.004526029433 | F92: 0.002816330242 | G92: 0.003772466668 | H92: 0.01756878007 | I92: 0.006892307419 | J92: 0.01166549171 | K92: 0.04183088328 | L92: 0.00547365858 | M92: 0.002403599732 | N92: 0.03379503248 | O92: 0.2213125033 | P92: 0.01425430206 | Q92: 0.1476992752 | R92: 0.05862221063 | S92: 0.05546840754 | T92: 0.04939715322 | U92: 0.006190576546 | V92: 1.381520183 | W92: 0.300317191 | X92: 0.009353353482 | Y92: 0.5057562549 | Z92: 0.1743148629 | AA92: 0.01767712541 | AB92: 0.08594303022 | AC92: 0.05621135142 | AD92: 0.2174780165
C93: Electricity and water | D93: 0.04898254148 | E93: 0.006514553117 | F93: 0.003483568271 | G93: 0.006899860187 | H93: 0.0503600367 | I93: 0.02952860213 | J93: 0.01069384789 | K93: 0.04657961872 | L93: 0.01954502464 | M93: 0.001697917664 | N93: 0.01119510195 | O93: 0.01923041567 | P93: 0.00763861213 | Q93: 0.0444317883 | R93: 0.02138649097 | S93: 0.1691454643 | T93: 0.01128478937 | U93: 0.0174262493 | V93: 0.08720567869 | W93: 2.039201838 | X93: 0.001659477042 | Y93: 0.08105624049 | Z93: 0.0353066823 | AA93: 0.008354714216 | AB93: 0.1351717706 | AC93: 0.02815021485 | AD93: 0.07535468725
C94: Equipment and machinery | D94: 0.007487317697 | E94: 0.002260136473 | F94: 0.001410875678 | G94: 0.002469565348 | H94: 0.005718288767 | I94: 0.004331640941 | J94: 0.001316054582 | K94: 0.005641517954 | L94: 0.002305167977 | M94: 0.002196685153 | N94: 0.06149220307 | O94: 0.2889594314 | P94: 0.005996321044 | Q94: 0.1806606853 | R94: 0.05790469849 | S94: 0.04213789148 | T94: 0.01118914966 | U94: 0.003500068907 | V94: 0.02667363461 | W94: 0.2026364148 | X94: 1.205107855 | Y94: 0.2747721139 | Z94: 0.06242986341 | AA94: 0.01539159617 | AB94: 0.05825374254 | AC94: 0.03225799926 | AD94: 0.1508355697
C95: Construction | D95: 0.003241733252 | E95: 0.001133487836 | F95: 0.0007018558904 | G95: 0.001019479861 | H95: 0.002244296507 | I95: 0.001965518887 | J95: 0.000480085634 | K95: 0.002067411682 | L95: 0.0008758470826 | M95: 0.001906340715 | N95: 0.004375183525 | O95: 0.00962663176 | P95: 0.001839665812 | Q95: 0.01954906036 | R95: 0.009980007794 | S95: 0.01256428761 | T95: 0.01171721594 | U95: 0.001303372634 | V95: 0.005826926998 | W95: 0.07439092411 | X95: 0.0007475161969 | Y95: 2.168775045 | Z95: 0.0457976976 | AA95: 0.00647118021 | AB95: 0.02455867807 | AC95: 0.0372732982 | AD95: 0.5181523416
C96: Trade, transportation | D96: 0.05998481887 | E96: 0.03621373074 | F96: 0.02272705084 | G96: 0.003017826007 | H96: 0.01914490355 | I96: 0.01631298538 | J96: 0.003315974256 | K96: 0.01374560184 | L96: 0.006223243981 | M96: 0.003173660915 | N96: 0.03572012199 | O96: 0.2756201028 | P96: 0.007965498026 | Q96: 0.02113176784 | R96: 0.08196341353 | S96: 0.04491299382 | T96: 0.03533276798 | U96: 0.01674774561 | V96: 0.01305473265 | W96: 0.07675559671 | X96: 0.01243906928 | Y96: 0.1069244962 | Z96: 2.123901431 | AA96: 0.02057358254 | AB96: 0.02619962699 | AC96: 0.2379754944 | AD96: 0.1122180534
C97: Tourism | D97: 0.000181825108 | E97: 0.0001095249883 | F97: 6.873414859e-05 | G97: 9.505075658e-06 | H97: 5.899597479e-05 | I97: 4.970570118e-05 | J97: 1.083892838e-05 | K97: 4.446053483e-05 | L97: 1.916071402e-05 | M97: 9.744444222e-06 | N97: 0.0001106083238 | O97: 0.0008471225385 | P97: 2.525814889e-05 | Q97: 7.444151828e-05 | R97: 0.0002530342272 | S97: 0.0001394702639 | T97: 0.0001101539049 | U97: 5.09528013e-05 | V97: 0.0001387656255 | W97: 0.000253153678 | X97: 3.818424972e-05 | Y97: 0.0003602562416 | Z97: 0.006416901293 | AA97: 2.000063467 | AB97: 8.900066422e-05 | AC97: 0.0007229199852 | AD97: 0.001218840055
C98: Other private and community services | D98: 0.002511535141 | E98: 0.001479767606 | F98: 0.0009313609567 | G98: 0.071857878 | H98: 0.0008360158227 | I98: 0.001326008261 | J98: 0.000156288893 | K98: 0.0006332219607 | L98: 0.0002874410076 | M98: 0.0001475498171 | N98: 0.01207315708 | O98: 0.01457373266 | P98: 0.0005158166273 | Q98: 0.009744746707 | R98: 0.006063555929 | S98: 0.003218050066 | T98: 0.001994482888 | U98: 0.0008857994138 | V98: 0.001424777484 | W98: 0.005276975657 | X98: 0.0005927676691 | Y98: 0.01149343455 | Z98: 0.08451213306 | AA98: 0.003681723472 | AB98: 2.059225821 | AC98: 0.05447126135 | AD98: 0.01121031304
C99: Financial services and insurance | D99: 0.02020566385 | E99: 0.01038316847 | F99: 0.006655986425 | G99: 0.004823625035 | H99: 0.007972473111 | I99: 0.03876282514 | J99: 0.001816878502 | K99: 0.006894835689 | L99: 0.003405770568 | M99: 0.001772880375 | N99: 0.03005201197 | O99: 0.2472716999 | P99: 0.01185697944 | Q99: 0.04218451382 | R99: 0.09563792529 | S99: 0.08351302967 | T99: 0.03764605097 | U99: 0.01512662021 | V99: 0.02467544014 | W99: 0.1266977212 | X99: 0.007507556237 | Y99: 0.3619478084 | Z99: 0.4929717197 | AA99: 0.04167951557 | AB99: 0.08387665994 | AC99: 2.388115874 | AD99: 0.2618151836
C100: Public services | D100: 0.0001165991456 | E100: 6.610888154e-05 | F100: 4.166535623e-05 | G100: 0.0003212435534 | H100: 4.412994165e-05 | I100: 7.685494481e-05 | J100: 1.049456904e-05 | K100: 4.122110086e-05 | L100: 1.556907799e-05 | M100: 1.013557819e-05 | N100: 0.001170550408 | O100: 0.0007685715258 | P100: 0.0005205573843 | Q100: 0.0002990095692 | R100: 0.004079451557 | S100: 0.000209063391 | T100: 0.0002109577482 | U100: 4.589827716e-05 | V100: 0.0004047585191 | W100: 0.0004467040369 | X100: 3.03965039e-05 | Y100: 0.003736043175 | Z100: 0.003664024853 | AA100: 0.0004120024191 | AB100: 0.00905456336 | AC100: 0.00345948275 | AD100: 2.037119984
B104: Type 2 Total Requirements
D105: Agriculture - Maize | E105: Agriculture - Drought tolerant staples | F105: Agriculture - Groundnuts (Peanuts) | G105: Agriculture - Sugar | H105: Agriculture - Cotton | I105: Agriculture - Tobacco | J105: Agriculture - Coffee | K105: Agriculture - Wheat | L105: Agriculture - Horticulture | M105: Agriculture - Other Crops | N105: Agriculture - Livestock | O105: Fishing | P105: Forestry | Q105: Mining | R105: Food and beverage manufacturing | S105: Textile manufacturing | T105: Wood and furniture manufacturing | U105: Fertilizer and industrial chemical manufacturing | V105: Other manufacturing | W105: Electricity and water | X105: Equipment and machinery | Y105: Construction | Z105: Trade, transportation | AA105: Tourism | AB105: Other private and community services | AC105: Financial services and insurance | AD105: Public services | AE105: Labor - less than primary schooling | AF105: Labor - primary schooling | AG105: Labor - secondary schooling | AH105: Labor - post-secondary schooling | AI105: Households - rural/remote - small | AJ105: Households - rural/remote - medium | AK105: Households - rural/remote - non-farm | AL105: Households - rural/non-remote - small | AM105: Households - rural/non-remote - medium | AN105: Households - rural/non-remote - large | AO105: Households - rural/non-remote - non-farm | AP105: Households - urban - low skilled self-employed | AQ105: Households - urban - private employees | AR105: Households - urban - public employees | AS105: Households - urban - high skilled
C106: Agriculture - Maize | D106: 1.388745302 | E106: 0.06779903856 | F106: 0.07675505559 | G106: 0.01995212744 | H106: 0.02428341132 | I106: 0.04434482544 | J106: 0.03844779401 | K106: 0.01865517843 | L106: 0.05447771544 | M106: 0.06514372083 | N106: 0.04528022794 | O106: 0.01099113294 | P106: 0.02951816459 | Q106: 0.002518001588 | R106: 0.05131695988 | S106: 0.008896551505 | T106: 0.008192049787 | U106: 0.003038260908 | V106: 0.001233659795 | W106: 0.00348991023 | X106: 0.00276315575 | Y106: 0.00788834762 | Z106: 0.01749865445 | AA106: 0.05129966912 | AB106: 0.04741633559 | AC106: 0.00981360342 | AD106: 0.02071497006 | AE106: 0.1329456248 | AF106: 0.1012986715 | AG106: 0.0452493485 | AH106: 0.0381118231 | AI106: 0.1718563742 | AJ106: 0.1358688504 | AK106: 0.1107943039 | AL106: 0.2202365468 | AM106: 0.04140827091 | AN106: 0.01201872754 | AO106: 0.0756117315 | AP106: 0.05257810893 | AQ106: 0.03356143024 | AR106: 0.02228883329 | AS106: 0.00838371255
C107: Agriculture - Drought tolerant staples | D107: 0.02930738301 | E107: 1.197071336 | F107: 0.04617269188 | G107: 0.01196479682 | H107: 0.01458441835 | I107: 0.02672749607 | J107: 0.02305959819 | K107: 0.01118853225 | L107: 0.03276763035 | M107: 0.03915248 | N107: 0.03010575581 | O107: 0.006592482999 | P107: 0.01771932422 | Q107: 0.001505564796 | R107: 0.04891795264 | S107: 0.005327435886 | T107: 0.004915115214 | U107: 0.001810970274 | V107: 0.0007471186315 | W107: 0.002086715269 | X107: 0.00165298059 | Y107: 0.004726676495 | Z107: 0.01046424727 | AA107: 0.03214519663 | AB107: 0.02841990081 | AC107: 0.005865794272 | AD107: 0.01299783838 | AE107: 0.08021171922 | AF107: 0.06047958817 | AG107: 0.02661995953 | AH107: 0.02309421512 | AI107: 0.1310761481 | AJ107: 0.03387156034 | AK107: 0.109333524 | AL107: 0.111600269 | AM107: 0.007611439681 | AN107: 0.006003710743 | AO107: 0.03865843141 | AP107: 0.02843897155 | AQ107: 0.02282584209 | AR107: 0.01301268059 | AS107: 0.004606589108
C108: Agriculture - Groundnuts (Peanuts) | D108: 0.01351188414 | E108: 0.01825556574 | F108: 1.775312042 | G108: 0.005815994236 | H108: 0.006727677207 | I108: 0.011602363 | J108: 0.01107742355 | K108: 0.005395861137 | L108: 0.0150796735 | M108: 0.01779539348 | N108: 0.01639001253 | O108: 0.003326307359 | P108: 0.008734217733 | Q108: 0.0008680167697 | R108: 0.03158969631 | S108: 0.002783655198 | T108: 0.002760721505 | U108: 0.001036953829 | V108: 0.0007730436906 | W108: 0.001277442501 | X108: 0.0008902199508 | Y108: 0.002744685665 | Z108: 0.005815815271 | AA108: 0.01776638341 | AB108: 0.01515096081 | AC108: 0.003510677623 | AD108: 0.008144660911 | AE108: 0.034042426 | AF108: 0.02999137327 | AG108: 0.0195582179 | AH108: 0.01591216828 | AI108: 0.04943211018 | AJ108: 0.06162643234 | AK108: 0.0153283153 | AL108: 0.04099715944 | AM108: 0.008740021271 | AN108: 0.01653484801 | AO108: 0.00827831795 | AP108: 0.0809031096 | AQ108: 0.01451529929 | AR108: 0.009384606899 | AS108: 0.002721959934
C109: Agriculture - Sugar | D109: 0.001845376858 | E109: 0.002386147371 | F109: 0.002755021605 | G109: 1.944252607 | H109: 0.0009159213168 | I109: 0.001455629976 | J109: 0.001600460268 | K109: 0.0007810029341 | L109: 0.002076663772 | M109: 0.002376973623 | N109: 0.007032360468 | O109: 0.0004982060428 | P109: 0.001324253652 | Q109: 0.0001429975664 | R109: 0.02207386323 | S109: 0.0004464559029 | T109: 0.0004958368477 | U109: 0.000180990613 | V109: 8.093806379e-05 | W109: 0.0002169569553 | X109: 0.0001487964768 | Y109: 0.0004604909344 | Z109: 0.0009956087401 | AA109: 0.004340151556 | AB109: 0.00254569754 | AC109: 0.000656142424 | AD109: 0.002068209341 | AE109: 0.004120840335 | AF109: 0.004416844383 | AG109: 0.004014894284 | AH109: 0.003712717137 | AI109: 0.005229532677 | AJ109: 0.003621371581 | AK109: 0.007668433902 | AL109: 0.005200256674 | AM109: 0.001332824358 | AN109: 0.0006747773776 | AO109: 0.003518488276 | AP109: 0.005925905345 | AQ109: 0.006493818088 | AR109: 0.00354119038 | AS109: 0.001215175143
C110: Agriculture - Cotton | D110: 0.01184536189 | E110: 0.01158442194 | F110: 0.01103769763 | G110: 0.002367842774 | H110: 1.398850897 | I110: 0.007983003906 | J110: 0.004347039183 | K110: 0.003928839537 | L110: 0.006526031709 | M110: 0.006442122511 | N110: 0.004683787364 | O110: 0.002750183634 | P110: 0.003762297472 | Q110: 0.001502079737 | R110: 0.006147801337 | S110: 0.2042947979 | T110: 0.002523611807 | U110: 0.0005795228773 | V110: 0.0004774978784 | W110: 0.001419885873 | X110: 0.0005521102213 | Y110: 0.007290359272 | Z110: 0.008101915837 | AA110: 0.008062854551 | AB110: 0.008006742059 | AC110: 0.01036457176 | AD110: 0.008072754807 | AE110: 0.01101761874 | AF110: 0.01196782464 | AG110: 0.01105784576 | AH110: 0.01034287919 | AI110: 0.01302806276 | AJ110: 0.01177663201 | AK110: 0.0133124415 | AL110: 0.01455036184 | AM110: 0.005032873454 | AN110: 0.001961712739 | AO110: 0.009819769239 | AP110: 0.01558359682 | AQ110: 0.01757663973 | AR110: 0.01041047064 | AS110: 0.002912172701
C111: Agriculture - Tobacco | D111: 0.001581966616 | E111: 0.002034088444 | F111: 0.00234343218 | G111: 0.0007356532001 | H111: 0.0007805330842 | I111: 1.690203276 | J111: 0.001359405602 | K111: 0.0006710253262 | L111: 0.00176382589 | M111: 0.002026556006 | N111: 0.00586621474 | O111: 0.0005782215638 | P111: 0.001532294456 | Q111: 0.0001829977564 | R111: 0.01834207442 | S111: 0.0007499932759 | T111: 0.00406378805 | U111: 0.0001577433048 | V111: 0.0002076059801 | W111: 0.0002301986782 | X111: 0.0001291666724 | Y111: 0.000634884275 | Z111: 0.0009752043781 | AA111: 0.003669142517 | AB111: 0.002409318499 | AC111: 0.0006314204365 | AD111: 0.002013046658 | AE111: 0.003490113889 | AF111: 0.003748420565 | AG111: 0.003416486551 | AH111: 0.00315846506 | AI111: 0.004410742196 | AJ111: 0.003060752924 | AK111: 0.006473009276 | AL111: 0.004408290889 | AM111: 0.001129793214 | AN111: 0.000586209888 | AO111: 0.003008453475 | AP111: 0.005064996911 | AQ111: 0.005529900428 | AR111: 0.003011392934 | AS111: 0.001038269411
C112: Agriculture - Coffee | D112: 0.0009689566023 | E112: 0.001252900316 | F112: 0.001446586025 | G112: 0.0004495622817 | H112: 0.0004809250768 | I112: 0.000764311241 | J112: 1.488942739 | K112: 0.0004100831471 | L112: 0.001090398996 | M112: 0.001248083434 | N112: 0.003692498948 | O112: 0.0002615942822 | P112: 0.0006953291486 | Q112: 7.508408677e-05 | R112: 0.0115903781 | S112: 0.000234421708 | T112: 0.0002603502831 | U112: 9.503318993e-05 | V112: 4.249834984e-05 | W112: 0.0001139181265 | X112: 7.8128935e-05 | Y112: 0.0002417911167 | Z112: 0.0005227667498 | AA112: 0.002278894139 | AB112: 0.001336675719 | AC112: 0.0003445223295 | AD112: 0.001085959807 | AE112: 0.002163739852 | AF112: 0.002319163432 | AG112: 0.002108110496 | AH112: 0.001949445593 | AI112: 0.00274588369 | AJ112: 0.001901482555 | AK112: 0.004026483603 | AL112: 0.002730511666 | AM112: 0.0006998293903 | AN112: 0.0003543070308 | AO112: 0.001847461363 | AP112: 0.003111529813 | AQ112: 0.003409725165 | AR112: 0.001859381613 | AS112: 0.0006380550253
C113: Agriculture - Wheat | D113: 0.005431065127 | E113: 0.007022588215 | F113: 0.008108209281 | G113: 0.002519825991 | H113: 0.002695616509 | I113: 0.004284014493 | J113: 0.004710259538 | K113: 1.382995143 | L113: 0.006111757685 | M113: 0.006995589274 | N113: 0.0206966981 | O113: 0.00146625306 | P113: 0.003897365353 | Q113: 0.000420851217 | R113: 0.06496482728 | S113: 0.001313949005 | T113: 0.001459280364 | U113: 0.0005326672448 | V113: 0.0002382060303 | W113: 0.0006385185492 | X113: 0.0004379177904 | Y113: 0.001355255023 | Z113: 0.002930141822 | AA113: 0.01277335069 | AB113: 0.007492154828 | AC113: 0.001931070189 | AD113: 0.006086875742 | AE113: 0.01212790338 | AF113: 0.01299906271 | AG113: 0.01181609721 | AH113: 0.01092677005 | AI113: 0.01539085767 | AJ113: 0.01065793408 | AK113: 0.02256870393 | AL113: 0.01530469647 | AM113: 0.003922589502 | AN113: 0.00198591408 | AO113: 0.01035514177 | AP113: 0.0174403281 | AQ113: 0.01911173255 | AR113: 0.01042195555 | AS113: 0.003576340146
C114: Agriculture - Horticulture | D114: 0.05796081895 | E114: 0.07836512833 | F114: 0.08947936675 | G114: 0.02495636943 | H114: 0.02880039831 | I114: 0.05018270692 | J114: 0.04745430063 | K114: 0.02309554931 | L114: 1.289662472 | M114: 0.07632184637 | N114: 0.0411761581 | O114: 0.01415958976 | P114: 0.03777067387 | Q114: 0.003642906378 | R114: 0.02689551721 | S114: 0.01192253307 | T114: 0.01187487109 | U114: 0.004448514399 | V114: 0.002415202335 | W114: 0.005343458274 | X114: 0.003841094328 | Y114: 0.0116029896 | Z114: 0.02497599756 | AA114: 0.06786360124 | AB114: 0.06593474982 | AC114: 0.01534241087 | AD114: 0.03195108906 | AE114: 0.147601241 | AF114: 0.1259910978 | AG114: 0.08347172319 | AH114: 0.07570196288 | AI114: 0.1260393115 | AJ114: 0.07438685837 | AK114: 0.08706664764 | AL114: 0.2863887189 | AM114: 0.02581581185 | AN114: 0.07403296679 | AO114: 0.0647611638 | AP114: 0.1083152856 | AQ114: 0.09386595159 | AR114: 0.06531741687 | AS114: 0.02111329387
C115: Agriculture - Other Crops | D115: 0.03179516051 | E115: 0.04290741613 | F115: 0.0489681422 | G115: 0.01373080279 | H115: 0.01581013431 | I115: 0.02732683055 | J115: 0.02610587824 | K115: 0.01270963387 | L115: 0.03563657731 | M115: 1.336288985 | N115: 0.02533809782 | O115: 0.007813250572 | P115: 0.02072623093 | Q115: 0.002027536866 | R115: 0.0250007037 | S115: 0.006580856772 | T115: 0.006559185484 | U115: 0.002456081737 | V115: 0.001481611771 | W115: 0.002977076354 | X115: 0.002121612817 | Y115: 0.006449161143 | Z115: 0.01380562227 | AA115: 0.03832800286 | AB115: 0.03632063839 | AC115: 0.008452874501 | AD115: 0.01797886276 | AE115: 0.08019024842 | AF115: 0.07010777243 | AG115: 0.04604691562 | AH115: 0.04133623058 | AI115: 0.1076056877 | AJ115: 0.1148356645 | AK115: 0.05317316652 | AL115: 0.1169063285 | AM115: 0.01121950803 | AN115: 0.02338609654 | AO115: 0.03371262183 | AP115: 0.06966993441 | AQ115: 0.06169841988 | AR115: 0.0322676422 | AS115: 0.01161834955
C116: Agriculture - Livestock | D116: 0.06441750123 | E116: 0.0887953153 | F116: 0.1008289027 | G116: 0.02677034576 | H116: 0.0320436402 | I116: 0.05774399231 | J116: 0.05135901923 | K116: 0.02495447079 | L116: 0.07213474524 | M116: 0.08564146692 | N116: 1.379050989 | O116: 0.01495751083 | P116: 0.03993498032 | Q116: 0.003589350428 | R116: 0.09074631863 | S116: 0.01223079568 | T116: 0.01164860679 | U116: 0.004283829732 | V116: 0.002354549169 | W116: 0.005101882559 | X116: 0.003845953913 | Y116: 0.01135230463 | Z116: 0.02459393134 | AA116: 0.07297414982 | AB116: 0.06610386277 | AC116: 0.01425332065 | AD116: 0.03118705554 | AE116: 0.1721920945 | AF116: 0.1354710938 | AG116: 0.06874164247 | AH116: 0.06232389536 | AI116: 0.3047453334 | AJ116: 0.1504284031 | AK116: 0.07673283122 | AL116: 0.2110666509 | AM116: 0.04556275937 | AN116: 0.03763900011 | AO116: 0.04302810326 | AP116: 0.07748772586 | AQ116: 0.07580333747 | AR116: 0.04383379872 | AS116: 0.01510717107
C117: Fishing | D117: 0.02543259354 | E117: 0.03350378003 | F117: 0.03848800137 | G117: 0.01144805065 | H117: 0.01263095974 | I117: 0.02083851105 | J117: 0.02154878633 | K117: 0.01050200629 | L117: 0.02857417866 | M117: 0.03305926262 | N117: 0.07955883003 | O117: 1.646597092 | P117: 0.01753834198 | Q117: 0.001806681123 | R117: 0.2400328264 | S117: 0.005774675265 | T117: 0.006198303052 | U117: 0.002266275677 | V117: 0.001001071504 | W117: 0.002699813103 | X117: 0.001898064152 | Y117: 0.005792560719 | Z117: 0.01261592546 | AA117: 0.06587830721 | AB117: 0.03249913454 | AC117: 0.008068721213 | AD117: 0.02426572784 | AE117: 0.0599711225 | AF117: 0.05877874568 | AG117: 0.04736932627 | AH117: 0.04344070929 | AI117: 0.08155677625 | AJ117: 0.04262558201 | AK117: 0.1029913406 | AL117: 0.07867250753 | AM117: 0.01530043011 | AN117: 0.008942697068 | AO117: 0.04567194824 | AP117: 0.06800762688 | AQ117: 0.07205811843 | AR117: 0.03942413627 | AS117: 0.01353535622
C118: Forestry | D118: 0.001399784437 | E118: 0.001485502378 | F118: 0.001575048357 | G118: 0.0006282684145 | H118: 0.0005878457172 | I118: 0.0009381543784 | J118: 0.0008658496483 | K118: 0.0006149166312 | L118: 0.001118904516 | M118: 0.001414784538 | N118: 0.001318237027 | O118: 0.00405677915 | P118: 1.695283565 | Q118: 0.01190461855 | R118: 0.002350703941 | S118: 0.007512244985 | T118: 0.07042647814 | U118: 0.0002168542373 | V118: 0.003371990146 | W118: 0.001399655147 | X118: 0.0005956246573 | Y118: 0.006214556715 | Z118: 0.00779149408 | AA118: 0.001907190146 | AB118: 0.006244773608 | AC118: 0.002350100793 | AD118: 0.006554018209 | AE118: 0.001973186384 | AF118: 0.002293872429 | AG118: 0.002308156294 | AH118: 0.002124110719 | AI118: 0.002097186374 | AJ118: 0.001666970067 | AK118: 0.00300379383 | AL118: 0.002565629514 | AM118: 0.0006925473643 | AN118: 0.0007719125881 | AO118: 0.002201876475 | AP118: 0.003883489457 | AQ118: 0.003787638047 | AR118: 0.002026823134 | AS118: 0.0008624625878
C119: Mining | D119: 0.00633924049 | E119: 0.006866522122 | F119: 0.007776061119 | G119: 0.002848007789 | H119: 0.004015617465 | I119: 0.004502364339 | J119: 0.00551303764 | K119: 0.005542398391 | L119: 0.00628316345 | M119: 0.006822184078 | N119: 0.00805539268 | O119: 0.01907287364 | P119: 0.005084616269 | Q119: 1.782900336 | R119: 0.01287244694 | S119: 0.006296821423 | T119: 0.005920113133 | U119: 0.001274856165 | V119: 0.1053115079 | W119: 0.02783909293 | X119: 0.002442161802 | Y119: 0.1619481143 | Z119: 0.0189351891 | AA119: 0.01025457545 | AB119: 0.015799509 | AC119: 0.008503771989 | AD119: 0.05041060163 | AE119: 0.01060521248 | AF119: 0.01276272054 | AG119: 0.01355186723 | AH119: 0.01279319589 | AI119: 0.01147699514 | AJ119: 0.01072868828 | AK119: 0.01267958498 | AL119: 0.01311565956 | AM119: 0.00453317869 | AN119: 0.008658232232 | AO119: 0.008979065333 | AP119: 0.02146890363 | AQ119: 0.02126054513 | AR119: 0.01304898774 | AS119: 0.007574813236
C120: Food and beverage manufacturing | D120: 0.1365597501 | E120: 0.1765773139 | F120: 0.2038743796 | G120: 0.06335899119 | H120: 0.06777910192 | I120: 0.1077180875 | J120: 0.1184356752 | K120: 0.05779500542 | L120: 0.1536752152 | M120: 0.1758984473 | N120: 0.5204017727 | O120: 0.03686775003 | P120: 0.09799610688 | Q120: 0.01058196425 | R120: 1.633488159 | S120: 0.03303818745 | T120: 0.0366924272 | U120: 0.01339348804 | V120: 0.005989498415 | W120: 0.01605503368 | X120: 0.01101108947 | Y120: 0.03407679394 | Z120: 0.07367605168 | AA120: 0.3211755959 | AB120: 0.1883841874 | AC120: 0.04855520165 | AD120: 0.1530495788 | AE120: 0.3049463441 | AF120: 0.3268509424 | AG120: 0.2971062294 | AH120: 0.2747448156 | AI120: 0.3869906965 | AJ120: 0.2679851522 | AK120: 0.5674718488 | AL120: 0.3848242427 | AM120: 0.09863034776 | AN120: 0.04993420702 | AO120: 0.2603716838 | AP120: 0.4385229768 | AQ120: 0.480549093 | AR120: 0.2620516624 | AS120: 0.0899241871
C121: Textile manufacturing | D121: 0.1069702075 | E121: 0.1045751203 | F121: 0.09960770958 | G121: 0.02135054023 | H121: 0.02607563544 | I121: 0.07207687425 | J121: 0.03919480308 | K121: 0.03546837559 | L121: 0.05886322696 | M121: 0.05808464589 | N121: 0.04187818952 | O121: 0.02483105049 | P121: 0.03392656668 | Q121: 0.01357066617 | R121: 0.05411422086 | S121: 1.846981914 | T121: 0.02278279171 | U121: 0.005227383546 | V121: 0.004311636072 | W121: 0.01282264157 | X121: 0.004981688432 | Y121: 0.06588089308 | Z121: 0.07318252997 | AA121: 0.07260702766 | AB121: 0.07221901874 | AC121: 0.09366157489 | AD121: 0.07284757876 | AE121: 0.09933537537 | AF121: 0.1079064257 | AG121: 0.09970610795 | AH121: 0.09326224639 | AI121: 0.1174379175 | AJ121: 0.1062307545 | AK121: 0.1198468176 | AL121: 0.1312028382 | AM121: 0.04541316443 | AN121: 0.01769081448 | AO121: 0.08854576736 | AP121: 0.1404959835 | AQ121: 0.158477156 | AR121: 0.09388473838 | AS121: 0.02624791394
C122: Wood and furniture manufacturing | D122: 0.02670438535 | E122: 0.02919453975 | F122: 0.03133043031 | G122: 0.01317004727 | H122: 0.01108961955 | I122: 0.01886092202 | J122: 0.01729166958 | K122: 0.01200178919 | L122: 0.02240899086 | M122: 0.02921629589 | N122: 0.02617686634 | O122: 0.07757707117 | P122: 0.2040409939 | Q122: 0.03019763662 | R122: 0.04893306129 | S122: 0.1774628451 | T122: 1.701403525 | U122: 0.003823830787 | V122: 0.06552838094 | W122: 0.02372433747 | X122: 0.002902626996 | Y122: 0.1184679644 | Z122: 0.07107657304 | AA122: 0.03883047345 | AB122: 0.1425300657 | AC122: 0.04159240347 | AD122: 0.1417009367 | AE122: 0.03983706356 | AF122: 0.04624111716 | AG122: 0.04631051098 | AH122: 0.04241389586 | AI122: 0.04200172637 | AJ122: 0.03205673224 | AK122: 0.06402329403 | AL122: 0.05212219833 | AM122: 0.01333537749 | AN122: 0.01337346309 | AO122: 0.04728249092 | AP122: 0.07875032444 | AQ122: 0.07675075194 | AR122: 0.0399181401 | AS122: 0.0159779953
C123: Fertilizer and industrial chemical manufacturing | D123: 0.1915712966 | E123: 0.02520479853 | F123: 0.03090986806 | G123: 0.1490271265 | H123: 0.07747614354 | I123: 0.1904843333 | J123: 0.05045904001 | K123: 0.03410494829 | L123: 0.08315578684 | M123: 0.08059181911 | N123: 0.01478305255 | O123: 0.007453735818 | P123: 0.008816148795 | Q123: 0.01625346812 | R123: 0.01759122403 | S123: 0.01883876206 | T123: 0.0038946766 | U123: 1.141049773 | V123: 0.01631085476 | W123: 0.01473130177 | X123: 0.002292157275 | Y123: 0.01540985155 | Z123: 0.0180748398 | AA123: 0.01631866184 | AB123: 0.01654815235 | AC123: 0.005928759213 | AD123: 0.01229226577 | AE123: 0.03430128542 | AF123: 0.02881018057 | AG123: 0.01754486255 | AH123: 0.01562411774 | AI123: 0.04066554327 | AJ123: 0.03217963649 | AK123: 0.02792635763 | AL123: 0.05658329825 | AM123: 0.00915105123 | AN123: 0.008943724169 | AO123: 0.01873579892 | AP123: 0.0236992059 | AQ123: 0.01985722484 | AR123: 0.01241210117 | AS123: 0.004888848785
C124: Other manufacturing | D124: 0.06349842975 | E124: 0.0677889348 | F124: 0.07654985487 | G124: 0.02823061176 | H124: 0.04252871992 | I124: 0.04443585383 | J124: 0.05690591498 | K124: 0.06393789607 | L124: 0.06252215826 | M124: 0.06638496586 | N124: 0.06997742967 | O124: 0.2356781437 | P124: 0.05266191057 | Q124: 0.1520581174 | R124: 0.08042323267 | S124: 0.06870459813 | T124: 0.0642630855 | U124: 0.01184955439 | V124: 1.383633709 | W124: 0.307061724 | X124: 0.01389084771 | Y124: 0.5198493563 | Z124: 0.2048043136 | AA124: 0.09767610758 | AB124: 0.1635441263 | AC124: 0.07719482762 | AD124: 0.2617825127 | AE124: 0.1034537445 | AF124: 0.1257446066 | AG124: 0.1351556079 | AH124: 0.1273306003 | AI124: 0.1114701535 | AJ124: 0.1126731375 | AK124: 0.1231661655 | AL124: 0.1265310554 | AM124: 0.04715395903 | AN124: 0.1005123992 | AO124: 0.08944994097 | AP124: 0.2115449824 | AQ124: 0.21475804 | AR124: 0.1277013416 | AS124: 0.08297861702
C125: Electricity and water | D125: 0.06944924307 | E125: 0.03178471276 | F125: 0.03310021488 | G125: 0.0170827622 | H125: 0.06048941202 | I125: 0.04426815156 | J125: 0.02942312297 | K125: 0.05574075719 | L125: 0.0427916357 | M125: 0.0274759582 | N125: 0.02601095461 | O125: 0.02526141981 | P125: 0.02376262696 | Q125: 0.04631578098 | R125: 0.03038566343 | S125: 0.1747830673 | T125: 0.01774315348 | U125: 0.01988450414 | V125: 0.08811980143 | W125: 2.042144875 | X125: 0.003612327137 | Y125: 0.08717208471 | Z125: 0.04849489056 | AA125: 0.04278544915 | AB125: 0.1685919135 | AC125: 0.037382894 | AD125: 0.09494353753 | AE125: 0.03992450848 | AF125: 0.05233402039 | AG125: 0.06038380804 | AH125: 0.05783530841 | AI125: 0.03795834484 | AJ125: 0.03181400658 | AK125: 0.0374722462 | AL125: 0.04889181012 | AM125: 0.01419592855 | AN125: 0.02426692862 | AO125: 0.03036729038 | AP125: 0.09537229265 | AQ125: 0.09641200087 | AR125: 0.06300136331 | AS125: 0.03672641485
C126: Equipment and machinery | D126: 0.02247248606 | E126: 0.02160212189 | F126: 0.02377545339 | G126: 0.009445545204 | H126: 0.01315122016 | I126: 0.01613613962 | J126: 0.01434258773 | K126: 0.01199626773 | L126: 0.01921197622 | M126: 0.02148146632 | N126: 0.07211783319 | O126: 0.2929977129 | P126: 0.01680436389 | Q126: 0.1818201454 | R126: 0.0642216124 | S126: 0.04575968873 | T126: 0.01511141587 | U126: 0.004985222066 | V126: 0.0272352923 | W126: 0.2043971756 | X126: 1.206327277 | Y126: 0.2785028693 | Z126: 0.0705320299 | AA126: 0.03689273749 | AB126: 0.07912951121 | AC126: 0.03765546778 | AD126: 0.1621569996 | AE126: 0.03338982007 | AF126: 0.03578724298 | AG126: 0.0331658194 | AH126: 0.03118968514 | AI126: 0.04229731901 | AJ126: 0.02765649638 | AK126: 0.03825318014 | AL126: 0.04238000355 | AM126: 0.01084001478 | AN126: 0.01173654118 | AO126: 0.02311189193 | AP126: 0.04983523487 | AQ126: 0.05059915725 | AR126: 0.03135843326 | AS126: 0.01405773376
C127: Construction | D127: 0.01763577658 | E127: 0.01913049783 | F127: 0.02171916482 | G127: 0.008053700506 | H127: 0.009371615801 | I127: 0.01260542753 | J127: 0.01346850113 | K127: 0.008416007337 | L127: 0.01720154991 | M127: 0.0201437672 | N127: 0.01473757067 | O127: 0.01376832879 | P127: 0.01291864612 | Q127: 0.02081561145 | R127: 0.01623827386 | S127: 0.01639478387 | T127: 0.0160472838 | U127: 0.002947025758 | V127: 0.006441269948 | W127: 0.07635609973 | X127: 0.002065734878 | Y127: 2.172881109 | Z127: 0.05466108776 | AA127: 0.02971416537 | AB127: 0.04713366088 | AC127: 0.04340815852 | AD127: 0.5311457428 | AE127: 0.0292030499 | AF127: 0.03610922202 | AG127: 0.03940820648 | AH127: 0.0379168997 | AI127: 0.02854480841 | AJ127: 0.02140655416 | AK127: 0.02287911357 | AL127: 0.03748048591 | AM127: 0.01060469298 | AN127: 0.01508137072 | AO127: 0.02219878161 | AP127: 0.06798426888 | AQ127: 0.0572864665 | AR127: 0.04277375885 | AS127: 0.01689987131
C128: Trade, transportation | D128: 0.1148683079 | E128: 0.1057557895 | F128: 0.1035567233 | G128: 0.02930491444 | H128: 0.04634816384 | I128: 0.05795154029 | J128: 0.05208921011 | K128: 0.03756584056 | L128: 0.06827471554 | M128: 0.07317622006 | N128: 0.07496885351 | O128: 0.2909873599 | P128: 0.04905521079 | Q128: 0.02571543835 | R128: 0.1055094271 | S128: 0.05895391513 | T128: 0.05092386945 | U128: 0.02267380089 | V128: 0.01527640602 | W128: 0.08380607897 | X128: 0.01722579528 | Y128: 0.1217198377 | Z128: 2.155952256 | AA128: 0.1049756295 | AB128: 0.1080713654 | AC128: 0.2598105675 | AD128: 0.1582251687 | AE128: 0.1157473613 | AF128: 0.1352005127 | AG128: 0.1387065206 | AH128: 0.130518626 | AI128: 0.1277676186 | AJ128: 0.1232516017 | AK128: 0.123812091 | AL128: 0.1463680512 | AM128: 0.0507777059 | AN128: 0.07503586188 | AO128: 0.08577017716 | AP128: 0.2222185181 | AQ128: 0.2166000862 | AR128: 0.1324493179 | AS128: 0.06980965309
C129: Tourism | D129: 0.0003647660656 | E129: 0.0003410214792 | F129: 0.0003379328977 | G129: 9.730436873e-05 | H129: 0.0001496623787 | I129: 0.0001881394211 | J129: 0.0001736622776 | K129: 0.0001239879678 | L129: 0.0002260585994 | M129: 0.0002429258383 | N129: 0.0002415216582 | O129: 0.0008984865139 | P129: 0.0001626030045 | Q129: 8.980139547e-05 | R129: 0.0003316245452 | S129: 0.0001864594366 | T129: 0.0001624282079 | U129: 7.08173954e-05 | V129: 0.0001462109991 | W129: 0.0002768007756 | X129: 5.421957647e-05 | Y129: 0.0004098596412 | Z129: 0.006524313045 | AA129: 2.000346212 | AB129: 0.000363308662 | AC129: 0.0007962173217 | AD129: 0.001373371742 | AE129: 0.0003843451791 | AF129: 0.0004515090887 | AG129: 0.0004660523489 | AH129: 0.0004398176858 | AI129: 0.0004207067319 | AJ129: 0.0004032734675 | AK129: 0.0004029927384 | AL129: 0.0004866716351 | AM129: 0.0001678555531 | AN129: 0.0002395406773 | AO129: 0.000288212078 | AP129: 0.0007393442649 | AQ129: 0.0007263747579 | AR129: 0.0004518761611 | AS129: 0.000234095261
C130: Other private and community services | D130: 0.01206135852 | E130: 0.01290528353 | F130: 0.01446452478 | G130: 0.0768188292 | H130: 0.005552839918 | I130: 0.007785673255 | J130: 0.009192184661 | K130: 0.005060736627 | L130: 0.0112085934 | M130: 0.01199655658 | N130: 0.01908813573 | O130: 0.0175551284 | P130: 0.008492202066 | Q130: 0.01072124573 | R130: 0.01038502058 | S130: 0.006071835877 | T130: 0.005368289654 | U130: 0.002173280758 | V130: 0.001899231938 | W130: 0.006827012363 | X130: 0.001596734772 | Y130: 0.01468088769 | Z130: 0.09135566582 | AA130: 0.02137388497 | AB130: 2.076421422 | AC130: 0.05939313388 | AD130: 0.0217147038 | AE130: 0.01690149731 | AF130: 0.02535556272 | AG130: 0.03318026682 | AH130: 0.03207180961 | AI130: 0.01529854106 | AJ130: 0.01226790088 | AK130: 0.01689769859 | AL130: 0.01768645172 | AM130: 0.006447324951 | AN130: 0.03954502821 | AO130: 0.01566082966 | AP130: 0.04439225244 | AQ130: 0.05691714912 | AR130: 0.03329728193 | AS130: 0.02669471097
C131: Financial services and insurance | D131: 0.05959430085 | E131: 0.05883005707 | F131: 0.06337076332 | G131: 0.02450886676 | H131: 0.02748745576 | I131: 0.06676878164 | J131: 0.03802275831 | K131: 0.0246058809 | L131: 0.04796406152 | M131: 0.05132196264 | N131: 0.05856430354 | O131: 0.2589328361 | P131: 0.04294312112 | Q131: 0.04584602642 | R131: 0.1129710588 | S131: 0.09444761908 | T131: 0.05016069042 | U131: 0.01992748169 | V131: 0.02645041801 | W131: 0.1324151645 | X131: 0.01129157909 | Y131: 0.3737782079 | Z131: 0.5185818405 | AA131: 0.1084141608 | AB131: 0.1483608425 | AC131: 2.406009289 | AD131: 0.2996121278 | AE131: 0.07539554303 | AF131: 0.1022573319 | AG131: 0.1193439681 | AH131: 0.1095079398 | AI131: 0.07498293227 | AJ131: 0.06090778101 | AK131: 0.08206197464 | AL131: 0.0856573759 | AM131: 0.02458181557 | AN131: 0.02929919729 | AO131: 0.05831717032 | AP131: 0.1856877079 | AQ131: 0.2358975215 | AR131: 0.09898051823 | AS131: 0.05737505235
C132: Public services | D132: 0.03277784816 | E132: 0.04082884431 | F132: 0.04768625722 | G132: 0.01632759375 | H132: 0.01621329083 | I132: 0.02412677356 | J132: 0.02954386169 | K132: 0.01447830608 | L132: 0.03707889713 | M132: 0.04135001989 | N132: 0.02470672741 | O132: 0.01020170817 | P132: 0.0257566753 | Q132: 0.003192689439 | R132: 0.01830823295 | S132: 0.008946853107 | T132: 0.01011415325 | U132: 0.003798077925 | V132: 0.001808454694 | W132: 0.004940249707 | X132: 0.003042958292 | Y132: 0.01312944147 | Z132: 0.02391823173 | AA132: 0.05353754409 | AB132: 0.06067947908 | AC132: 0.017508405 | AD132: 2.066922934 | AE132: 0.06589054499 | AF132: 0.08218480696 | AG132: 0.08995213255 | AH132: 0.08762296442 | AI132: 0.06482788791 | AJ132: 0.05562947698 | AK132: 0.04921336247 | AL132: 0.08557594759 | AM132: 0.02682944433 | AN132: 0.01439912835 | AO132: 0.05468796675 | AP132: 0.127742538 | AQ132: 0.1365449116 | AR132: 0.1022526812 | AS132: 0.04164792587
C133: Labor - less than primary schooling | D133: 0.2774659479 | E133: 0.4299831049 | F133: 0.4918155279 | G133: 0.08958143916 | H133: 0.1343091281 | I133: 0.3509873516 | J133: 0.1782384825 | K133: 0.08611789772 | L133: 0.3522443286 | M133: 0.3918359679 | N133: 0.1879075488 | O133: 0.04838446106 | P133: 0.1515997008 | Q133: 0.005969276568 | R133: 0.1015365301 | S133: 0.02976826022 | T133: 0.02192153477 | U133: 0.007566476568 | V133: 0.003302507565 | W133: 0.009373156107 | X133: 0.006827614498 | Y133: 0.02189994843 | Z133: 0.04365257242 | AA133: 0.1041072009 | AB133: 0.1511425998 | AC133: 0.02447983252 | AD133: 0.0473982683 | AE133: 1.138891854 | AF133: 0.1167976377 | AG133: 0.07150874257 | AH133: 0.06386066733 | AI133: 0.1818229348 | AJ133: 0.1190029447 | AK133: 0.1173354311 | AL133: 0.2137996093 | AM133: 0.02886746211 | AN133: 0.03901551285 | AO133: 0.06492385315 | AP133: 0.1064243569 | AQ133: 0.08249201823 | AR133: 0.04984005587 | AS133: 0.01792456455
C134: Labor - primary schooling | D134: 0.2056984519 | E134: 0.2446292126 | F134: 0.2600851055 | G134: 0.1055974639 | H134: 0.1090113045 | I134: 0.06363631307 | J134: 0.2027052724 | K134: 0.09821909228 | L134: 0.1576526294 | M134: 0.2546465343 | N134: 0.1354536476 | O134: 0.05557173039 | P134: 0.1152186039 | Q134: 0.01613093369 | R134: 0.08130894736 | S134: 0.05287461628 | T134: 0.04529713835 | U134: 0.01668095948 | V134: 0.00703988163 | W134: 0.01724625874 | X134: 0.01860998566 | Y134: 0.04394270471 | Z134: 0.1079615002 | AA134: 0.3548658612 | AB134: 0.2676096054 | AC134: 0.04314546856 | AD134: 0.08138364252 | AE134: 0.09167659914 | AF134: 1.080939648 | AG134: 0.05503496885 | AH134: 0.04985561584 | AI134: 0.1210364227 | AJ134: 0.08276790349 | AK134: 0.08278256709 | AL134: 0.1350319425 | AM134: 0.02197857467 | AN134: 0.02753603501 | AO134: 0.04759891264 | AP134: 0.08118898303 | AQ134: 0.07042307105 | AR134: 0.04188506336 | AS134: 0.01728244059
C135: Labor - secondary schooling | D135: 0.04031736214 | E135: 0.02513804088 | F135: 0.03170633625 | G135: 0.03185822026 | H135: 0.01948280327 | I135: 0.02026216608 | J135: 0.05431222045 | K135: 0.02734731988 | L135: 0.05889997832 | M135: 0.04454963891 | N135: 0.0361207583 | O135: 0.02318338411 | P135: 0.06600739583 | Q135: 0.01101954886 | R135: 0.02447857918 | S135: 0.02670846886 | T135: 0.03655753579 | U135: 0.02167453195 | V135: 0.005536462511 | W135: 0.02159646631 | X135: 0.008060115296 | Y135: 0.02996592437 | Z135: 0.07610866077 | AA135: 0.1282353098 | AB135: 0.1168524368 | AC135: 0.06544827812 | AD135: 0.1112313149 | AE135: 0.02619545515 | AF135: 0.02642085053 | AG135: 1.022706181 | AH135: 0.02111262543 | AI135: 0.03043693958 | AJ135: 0.02257908868 | AK135: 0.02352056763 | AL135: 0.03794278749 | AM135: 0.007741232037 | AN135: 0.01047051929 | AO135: 0.01621653273 | AP135: 0.03310973053 | AQ135: 0.03370505024 | AR135: 0.0202156625 | AS135: 0.009187008698
C136: Labor - post-secondary schooling | D136: 0.02714125972 | E136: 0.01716911843 | F136: 0.04673925242 | G136: 0.02610067692 | H136: 0.009662554837 | I136: 0.01277993613 | J136: 0.03777020746 | K136: 0.01904037216 | L136: 0.05911257336 | M136: 0.02025295425 | N136: 0.03095468969 | O136: 0.01941089367 | P136: 0.06271584132 | Q136: 0.008358119705 | R136: 0.02412597415 | S136: 0.0209327248 | T136: 0.03737234847 | U136: 0.007079292213 | V136: 0.004279778739 | W136: 0.01507038965 | X136: 0.01022317992 | Y136: 0.03870186372 | Z136: 0.06262329025 | AA136: 0.181718256 | AB136: 0.2194985957 | AC136: 0.06154491784 | AD136: 0.170245557 | AE136: 0.02432534722 | AF136: 0.02588315187 | AG136: 0.02399246865 | AH136: 1.022526621 | AI136: 0.02681165961 | AJ136: 0.02000677793 | AK136: 0.02188351371 | AL136: 0.0347325237 | AM136: 0.007590934816 | AN136: 0.0116039083 | AO136: 0.01608267401 | AP136: 0.03524807445 | AQ136: 0.03632308425 | AR136: 0.02248084108 | AS136: 0.01060514226
C137: Households - rural/remote - small | D137: 0.1241355331 | E137: 0.1758287529 | F137: 0.1984479288 | G137: 0.04894934759 | H137: 0.06177490075 | I137: 0.117244544 | J137: 0.09511081904 | K137: 0.04607649342 | L137: 0.1388523753 | M137: 0.1672740578 | N137: 0.08411243133 | O137: 0.02656722683 | P137: 0.07172872442 | Q137: 0.005577282734 | R137: 0.04746997828 | S137: 0.02072355004 | T137: 0.01791283916 | U137: 0.006478201473 | V137: 0.002689710544 | W137: 0.007423381339 | X137: 0.006276918834 | Y137: 0.01746632015 | Z137: 0.03875921482 | AA137: 0.1105869357 | AB137: 0.1087191894 | AC137: 0.02018326577 | AD137: 0.0400715821 | AE137: 0.3562742242 | AF137: 0.2448074297 | AG137: 0.06831438866 | AH137: 0.06821954181 | AI137: 1.09063767 | AJ137: 0.05794067119 | AK137: 0.05704488352 | AL137: 0.09242839858 | AM137: 0.01412595593 | AN137: 0.01941580929 | AO137: 0.03064350758 | AP137: 0.05071231934 | AQ137: 0.04387277758 | AR137: 0.02522682677 | AS137: 0.009367363948
C138: Households - rural/remote - medium | D138: 0.007435467765 | E138: 0.009996664978 | F138: 0.01113152177 | G138: 0.003212384927 | H138: 0.003766359559 | I138: 0.005651248008 | J138: 0.006200876797 | K138: 0.003006031212 | L138: 0.007603786578 | M138: 0.009768311865 | N138: 0.0050152235 | O138: 0.001736332056 | P138: 0.004339052762 | Q138: 0.0004211041118 | R138: 0.002888587413 | S138: 0.001467201687 | T138: 0.001290555379 | U138: 0.0004810616209 | V138: 0.0001959148227 | W138: 0.0005290694048 | X138: 0.0004720953684 | Y138: 0.001247908294 | Z138: 0.002884572273 | AA138: 0.008573367548 | AB138: 0.007592557993 | AC138: 0.001416480514 | AD138: 0.002753276448 | AE138: 0.0160703071 | AF138: 0.02149964678 | AG138: 0.005051771623 | AH138: 0.003728745178 | AI138: 0.004648424587 | AJ138: 1.005372082 | AK138: 0.003106320578 | AL138: 0.005344275344 | AM138: 0.0008040918647 | AN138: 0.001049420786 | AO138: 0.001769330298 | AP138: 0.00306022018 | AQ138: 0.002632674484 | AR138: 0.001538451914 | AS138: 0.0006466118847
C139: Households - rural/remote - non-farm | D139: 0.004444722385 | E139: 0.00555305211 | F139: 0.006322442274 | G139: 0.002157447078 | H139: 0.002236043849 | I139: 0.002996657306 | J139: 0.004038169645 | K139: 0.001969452647 | L139: 0.004703902292 | M139: 0.005648344262 | N139: 0.003126265616 | O139: 0.001237440043 | P139: 0.003165342321 | Q139: 0.0003698330915 | R139: 0.001871981942 | S139: 0.001142831938 | T139: 0.001205342214 | U139: 0.0004779391091 | V139: 0.0001760972354 | W139: 0.0005423410389 | X139: 0.0003859533891 | Y139: 0.001135895007 | Z139: 0.002559208007 | AA139: 0.006889561933 | AB139: 0.006302161856 | AC139: 0.001614936926 | AD139: 0.003266117902 | AE139: 0.007958570195 | AF139: 0.01320293532 | AG139: 0.01082147744 | AH139: 0.007321830315 | AI139: 0.002909980711 | AJ139: 0.002484955573 | AK139: 1.005621344 | AL139: 0.003363502118 | AM139: 0.0006358851693 | AN139: 0.0008750405365 | AO139: 0.001270311195 | AP139: 0.002262866222 | AQ139: 0.002139315188 | AR139: 0.001182282064 | AS139: 0.0006103473913
C140: Households - rural/non-remote - small | D140: 0.1456251313 | E140: 0.2049064508 | F140: 0.2314099719 | G140: 0.058132554 | H140: 0.07247084199 | I140: 0.1361715943 | J140: 0.1126425439 | K140: 0.05460542447 | L140: 0.163035943 | M140: 0.1957195981 | N140: 0.09898356911 | O140: 0.03174865626 | P140: 0.08567187014 | Q140: 0.006901579264 | R140: 0.05604966101 | S140: 0.0251147776 | T140: 0.02221578965 | U140: 0.008265351274 | V140: 0.003332149281 | W140: 0.009394515705 | X140: 0.00764007394 | Y140: 0.02149657469 | Z140: 0.04794602465 | AA140: 0.1343427802 | AB140: 0.131518088 | AC140: 0.02582889579 | AD140: 0.0509133943 | AE140: 0.4120369738 | AF140: 0.2893293455 | AG140: 0.1107029379 | AH140: 0.08455434619 | AI140: 0.09367916953 | AJ140: 0.06785250121 | AK140: 0.06690266467 | AL140: 1.120263129 | AM140: 0.01660237363 | AN140: 0.02286181158 | AO140: 0.03612675487 | AP140: 0.0598320859 | AQ140: 0.05203707272 | AR140: 0.02997625118 | AS140: 0.01121997781
